Body,Body Name,Date,TransNo,Amount � (Excl VAT),Supplier name,Supplier ID,Expense Area,Expense Type,Expense Code,,
http://opendatacommunities.org/id/london-borough-council/sutton,London Borough of Sutton,01/11/2017,6921191,"1,497.00",A To Z Property Management Ltd,26729,"Environment, Housing & Regeneration Directorate",Bed and Breakfast Accommodation,G400,,
http://opendatacommunities.org/id/london-borough-council/sutton,London Borough of Sutton,22/11/2017,6920644,868,AA Guesthouses Ltd,29292,Peoples Services Directorate,C.C.A Rent & Utilities,H211,,
http://opendatacommunities.org/id/london-borough-council/sutton,London Borough of Sutton,13/12/2017,6922293,840,AA Guesthouses Ltd,29292,Peoples Services Directorate,C.C.A Rent & Utilities,H211,,
http://opendatacommunities.org/id/london-borough-council/sutton,London Borough of Sutton,06/12/2017,40139735,"2,280.00",Abbeyfield Kent Society,28532,Peoples Services Directorate,Residential Care - Ext Provider,G310,,
http://opendatacommunities.org/id/london-borough-council/sutton,London Borough of Sutton,13/11/2017,6920139,"4,851.00",Absolute Care Services Ltd,10021,Peoples Services Directorate,Homecare Core Services,G336,,
http://opendatacommunities.org/id/london-borough-council/sutton,London Borough of Sutton,20/11/2017,6920529,"4,851.00",Absolute Care Services Ltd,10021,Peoples Services Directorate,Homecare Core Services,G336,,
http://opendatacommunities.org/id/london-borough-council/sutton,London Borough of Sutton,27/11/2017,6920807,"4,851.00",Absolute Care Services Ltd,10021,Peoples Services Directorate,Homecare Core Services,G336,,
http://opendatacommunities.org/id/london-borough-council/sutton,London Borough of Sutton,01/12/2017,6921163,"1,469.76",Absolute Care Services Ltd,10021,Peoples Services Directorate,Rent - General,D650,,
http://opendatacommunities.org/id/london-borough-council/sutton,London Borough of Sutton,04/12/2017,6921280,"5,766.81",Absolute Care Services Ltd,10021,Peoples Services Directorate,Homecare Core Services,G336,,
http://opendatacommunities.org/id/london-borough-council/sutton,London Borough of Sutton,04/12/2017,6921281,921.69,Absolute Care Services Ltd,10021,Peoples Services Directorate,Homecare Core Services,G336,,
http://opendatacommunities.org/id/london-borough-council/sutton,London Borough of Sutton,04/12/2017,6921320,486.42,Absolute Care Services Ltd,10021,Peoples Services Directorate,Homecare Core Services,G336,,
http://opendatacommunities.org/id/london-borough-council/sutton,London Borough of Sutton,11/12/2017,6921751,"5,070.19",Absolute Care Services Ltd,10021,Peoples Services Directorate,Homecare Core Services,G336,,
http://opendatacommunities.org/id/london-borough-council/sutton,London Borough of Sutton,18/12/2017,6922203,486.42,Absolute Care Services Ltd,10021,Peoples Services Directorate,Homecare Core Services,G336,,
http://opendatacommunities.org/id/london-borough-council/sutton,London Borough of Sutton,18/12/2017,6922204,921.69,Absolute Care Services Ltd,10021,Peoples Services Directorate,Homecare Core Services,G336,,
http://opendatacommunities.org/id/london-borough-council/sutton,London Borough of Sutton,19/12/2017,6922240,486.42,Absolute Care Services Ltd,10021,Peoples Services Directorate,Homecare Core Services,G336,,
http://opendatacommunities.org/id/london-borough-council/sutton,London Borough of Sutton,19/12/2017,6922241,"5,070.19",Absolute Care Services Ltd,10021,Peoples Services Directorate,Homecare Core Services,G336,,
http://opendatacommunities.org/id/london-borough-council/sutton,London Borough of Sutton,25/12/2017,6922526,"5,070.19",Absolute Care Services Ltd,10021,Peoples Services Directorate,Homecare Core Services,G336,,
http://opendatacommunities.org/id/london-borough-council/sutton,London Borough of Sutton,25/12/2017,6922528,486.42,Absolute Care Services Ltd,10021,Peoples Services Directorate,Homecare Core Services,G336,,
http://opendatacommunities.org/id/london-borough-council/sutton,London Borough of Sutton,25/12/2017,6922529,921.69,Absolute Care Services Ltd,10021,Peoples Services Directorate,Homecare Core Services,G336,,
http://opendatacommunities.org/id/london-borough-council/sutton,London Borough of Sutton,29/10/2017,40136487,433.44,Absolute Care Services Ltd,10021,Peoples Services Directorate,Home Care,G334,,
http://opendatacommunities.org/id/london-borough-council/sutton,London Borough of Sutton,12/11/2017,40136488,433.44,Absolute Care Services Ltd,10021,Peoples Services Directorate,Home Care,G334,,
http://opendatacommunities.org/id/london-borough-council/sutton,London Borough of Sutton,22/10/2017,40136499,596.82,Absolute Care Services Ltd,10021,Peoples Services Directorate,Home Care,G334,,
http://opendatacommunities.org/id/london-borough-council/sutton,London Borough of Sutton,29/10/2017,40136500,596.82,Absolute Care Services Ltd,10021,Peoples Services Directorate,Home Care,G334,,
http://opendatacommunities.org/id/london-borough-council/sutton,London Borough of Sutton,22/10/2017,40136501,603.93,Absolute Care Services Ltd,10021,Peoples Services Directorate,Home Care,G334,,
http://opendatacommunities.org/id/london-borough-council/sutton,London Borough of Sutton,29/10/2017,40136502,596.82,Absolute Care Services Ltd,10021,Peoples Services Directorate,Home Care,G334,,
http://opendatacommunities.org/id/london-borough-council/sutton,London Borough of Sutton,22/10/2017,40136531,547.09,Absolute Care Services Ltd,10021,Peoples Services Directorate,Home Care,G334,,
http://opendatacommunities.org/id/london-borough-council/sutton,London Borough of Sutton,29/10/2017,40136532,547.09,Absolute Care Services Ltd,10021,Peoples Services Directorate,Home Care,G334,,
http://opendatacommunities.org/id/london-borough-council/sutton,London Borough of Sutton,22/10/2017,40136544,767.34,Absolute Care Services Ltd,10021,Peoples Services Directorate,Home Care,G334,,
http://opendatacommunities.org/id/london-borough-council/sutton,London Borough of Sutton,22/10/2017,40136548,426.3,Absolute Care Services Ltd,10021,Peoples Services Directorate,Home Care,G334,,
http://opendatacommunities.org/id/london-borough-council/sutton,London Borough of Sutton,29/10/2017,40136549,426.3,Absolute Care Services Ltd,10021,Peoples Services Directorate,Home Care,G334,,
http://opendatacommunities.org/id/london-borough-council/sutton,London Borough of Sutton,05/11/2017,40136644,596.82,Absolute Care Services Ltd,10021,Peoples Services Directorate,Home Care,G334,,
http://opendatacommunities.org/id/london-borough-council/sutton,London Borough of Sutton,19/11/2017,40136645,596.82,Absolute Care Services Ltd,10021,Peoples Services Directorate,Home Care,G334,,
http://opendatacommunities.org/id/london-borough-council/sutton,London Borough of Sutton,05/11/2017,40136646,596.82,Absolute Care Services Ltd,10021,Peoples Services Directorate,Home Care,G334,,
http://opendatacommunities.org/id/london-borough-council/sutton,London Borough of Sutton,19/11/2017,40136647,596.82,Absolute Care Services Ltd,10021,Peoples Services Directorate,Home Care,G334,,
http://opendatacommunities.org/id/london-borough-council/sutton,London Borough of Sutton,05/11/2017,40136676,547.09,Absolute Care Services Ltd,10021,Peoples Services Directorate,Home Care,G334,,
http://opendatacommunities.org/id/london-borough-council/sutton,London Borough of Sutton,19/11/2017,40136677,547.09,Absolute Care Services Ltd,10021,Peoples Services Directorate,Home Care,G334,,
http://opendatacommunities.org/id/london-borough-council/sutton,London Borough of Sutton,05/11/2017,40136692,426.3,Absolute Care Services Ltd,10021,Peoples Services Directorate,Home Care,G334,,
http://opendatacommunities.org/id/london-borough-council/sutton,London Borough of Sutton,19/11/2017,40136693,426.3,Absolute Care Services Ltd,10021,Peoples Services Directorate,Home Care,G334,,
http://opendatacommunities.org/id/london-borough-council/sutton,London Borough of Sutton,22/10/2017,40136715,468.58,Absolute Care Services Ltd,10021,Peoples Services Directorate,Home Care,G334,,
http://opendatacommunities.org/id/london-borough-council/sutton,London Borough of Sutton,22/10/2017,40136726,426.56,Absolute Care Services Ltd,10021,Peoples Services Directorate,Home Care,G334,,
http://opendatacommunities.org/id/london-borough-council/sutton,London Borough of Sutton,22/10/2017,40136727,433.44,Absolute Care Services Ltd,10021,Peoples Services Directorate,Home Care,G334,,
http://opendatacommunities.org/id/london-borough-council/sutton,London Borough of Sutton,22/10/2017,40136735,433.44,Absolute Care Services Ltd,10021,Peoples Services Directorate,Home Care,G334,,
http://opendatacommunities.org/id/london-borough-council/sutton,London Borough of Sutton,29/10/2017,40136748,468.58,Absolute Care Services Ltd,10021,Peoples Services Directorate,Home Care,G334,,
http://opendatacommunities.org/id/london-borough-council/sutton,London Borough of Sutton,12/11/2017,40136749,468.58,Absolute Care Services Ltd,10021,Peoples Services Directorate,Home Care,G334,,
http://opendatacommunities.org/id/london-borough-council/sutton,London Borough of Sutton,29/10/2017,40136769,426.56,Absolute Care Services Ltd,10021,Peoples Services Directorate,Home Care,G334,,
http://opendatacommunities.org/id/london-borough-council/sutton,London Borough of Sutton,12/11/2017,40136770,426.56,Absolute Care Services Ltd,10021,Peoples Services Directorate,Home Care,G334,,
http://opendatacommunities.org/id/london-borough-council/sutton,London Borough of Sutton,29/10/2017,40136771,433.44,Absolute Care Services Ltd,10021,Peoples Services Directorate,Home Care,G334,,
http://opendatacommunities.org/id/london-borough-council/sutton,London Borough of Sutton,12/11/2017,40136772,433.44,Absolute Care Services Ltd,10021,Peoples Services Directorate,Home Care,G334,,
http://opendatacommunities.org/id/london-borough-council/sutton,London Borough of Sutton,26/11/2017,40137749,426.56,Absolute Care Services Ltd,10021,Peoples Services Directorate,Home Care,G334,,
http://opendatacommunities.org/id/london-borough-council/sutton,London Borough of Sutton,26/11/2017,40137750,433.44,Absolute Care Services Ltd,10021,Peoples Services Directorate,Home Care,G334,,
http://opendatacommunities.org/id/london-borough-council/sutton,London Borough of Sutton,26/11/2017,40137773,596.82,Absolute Care Services Ltd,10021,Peoples Services Directorate,Home Care,G334,,
http://opendatacommunities.org/id/london-borough-council/sutton,London Borough of Sutton,26/11/2017,40137774,596.82,Absolute Care Services Ltd,10021,Peoples Services Directorate,Home Care,G334,,
http://opendatacommunities.org/id/london-borough-council/sutton,London Borough of Sutton,26/11/2017,40137788,547.09,Absolute Care Services Ltd,10021,Peoples Services Directorate,Home Care,G334,,
http://opendatacommunities.org/id/london-borough-council/sutton,London Borough of Sutton,26/11/2017,40137796,426.3,Absolute Care Services Ltd,10021,Peoples Services Directorate,Home Care,G334,,
http://opendatacommunities.org/id/london-borough-council/sutton,London Borough of Sutton,26/11/2017,40137850,468.58,Absolute Care Services Ltd,10021,Peoples Services Directorate,Home Care,G334,,
http://opendatacommunities.org/id/london-borough-council/sutton,London Borough of Sutton,26/11/2017,40137895,433.44,Absolute Care Services Ltd,10021,Peoples Services Directorate,Home Care,G334,,
http://opendatacommunities.org/id/london-borough-council/sutton,London Borough of Sutton,03/12/2017,40142048,596.82,Absolute Care Services Ltd,10021,Peoples Services Directorate,Home Care,G334,,
http://opendatacommunities.org/id/london-borough-council/sutton,London Borough of Sutton,03/12/2017,40142049,596.82,Absolute Care Services Ltd,10021,Peoples Services Directorate,Home Care,G334,,
http://opendatacommunities.org/id/london-borough-council/sutton,London Borough of Sutton,03/12/2017,40142063,547.09,Absolute Care Services Ltd,10021,Peoples Services Directorate,Home Care,G334,,
http://opendatacommunities.org/id/london-borough-council/sutton,London Borough of Sutton,03/12/2017,40142071,426.3,Absolute Care Services Ltd,10021,Peoples Services Directorate,Home Care,G334,,
http://opendatacommunities.org/id/london-borough-council/sutton,London Borough of Sutton,30/11/2017,1246383,"1,596.00",Access Mobility Transport Ltd,27456,Peoples Services Directorate,Hired Peoples Transport (Children),E072,,
http://opendatacommunities.org/id/london-borough-council/sutton,London Borough of Sutton,30/11/2017,1246384,"3,256.00",Access Mobility Transport Ltd,27456,Peoples Services Directorate,Hired Peoples Transport (Children),E072,,
http://opendatacommunities.org/id/london-borough-council/sutton,London Borough of Sutton,27/10/2017,6921914,925,Achilles Information Ltd,23642,Chief Executive's Directorate,Other Services,F340,,
http://opendatacommunities.org/id/london-borough-council/sutton,London Borough of Sutton,01/11/2017,40139244,"10,071.30",Acorn Homes UK Ltd,25726,Peoples Services Directorate,Residential Care-Children,G330,,
http://opendatacommunities.org/id/london-borough-council/sutton,London Borough of Sutton,01/11/2017,40139278,"4,383.90",Acorn Homes UK Ltd,25726,Peoples Services Directorate,Approved Lodgings,H323,,
http://opendatacommunities.org/id/london-borough-council/sutton,London Borough of Sutton,17/11/2017,40139341,"5,250.00",Acorn Homes UK Ltd,25726,Peoples Services Directorate,Residential Care-Children,G330,,
http://opendatacommunities.org/id/london-borough-council/sutton,London Borough of Sutton,06/12/2017,40139401,"2,903.20",Acorn Lodge,15804,Peoples Services Directorate,Residential Care - Ext Provider,G310,,
http://opendatacommunities.org/id/london-borough-council/sutton,London Borough of Sutton,06/12/2017,40139415,"3,042.36",Acorn Residential Home,15828,Peoples Services Directorate,Residential Care - Ext Provider,G310,,
http://opendatacommunities.org/id/london-borough-council/sutton,London Borough of Sutton,06/12/2017,6921426,"1,200.00",Active Prospects,13617,Peoples Services Directorate,Supported Living - Ext Provider,G306,,
http://opendatacommunities.org/id/london-borough-council/sutton,London Borough of Sutton,14/12/2017,6922021,"1,200.00",Active Prospects,13617,Peoples Services Directorate,Supported Living - Ext Provider,G306,,
http://opendatacommunities.org/id/london-borough-council/sutton,London Borough of Sutton,21/12/2017,6922453,"1,200.00",Active Prospects,13617,Peoples Services Directorate,Supported Living - Ext Provider,G306,,
http://opendatacommunities.org/id/london-borough-council/sutton,London Borough of Sutton,28/12/2017,6922564,"1,200.00",Active Prospects,13617,Peoples Services Directorate,Supported Living - Ext Provider,G306,,
http://opendatacommunities.org/id/london-borough-council/sutton,London Borough of Sutton,13/11/2017,6922221,"7,647.00",AD Wibden Limited,99815,"Environment, Housing & Regeneration Directorate",Grants -Made,Y610,,
http://opendatacommunities.org/id/london-borough-council/sutton,London Borough of Sutton,08/12/2017,1246349,"150,039.47",Adecco Uk Ltd,10059,Resources Directorate,Suspense/Holding Accounts,X550,,
http://opendatacommunities.org/id/london-borough-council/sutton,London Borough of Sutton,18/12/2017,1247000,"185,761.02",Adecco Uk Ltd,10059,Resources Directorate,Suspense/Holding Accounts,X550,,
http://opendatacommunities.org/id/london-borough-council/sutton,London Borough of Sutton,20/12/2017,1247074,"189,532.95",Adecco Uk Ltd,10059,Resources Directorate,Suspense/Holding Accounts,X550,,
http://opendatacommunities.org/id/london-borough-council/sutton,London Borough of Sutton,27/12/2017,1247166,"141,715.67",Adecco Uk Ltd,10059,Resources Directorate,Suspense/Holding Accounts,X550,,
http://opendatacommunities.org/id/london-borough-council/sutton,London Borough of Sutton,01/11/2017,6921886,"1,112.41",Adt Fire & Security Plc,10063,Peoples Services Directorate,Security Systems - SCH,D880,,
http://opendatacommunities.org/id/london-borough-council/sutton,London Borough of Sutton,30/11/2017,6921592,791.17,Advanced Demand Side Management Ltd,26989,Resources Directorate,Water - Metered,D690,,
http://opendatacommunities.org/id/london-borough-council/sutton,London Borough of Sutton,09/11/2017,6922192,836.03,Advanced Health & Care,23939,Peoples Services Directorate,Telephones - Other Expenses,F373,,
http://opendatacommunities.org/id/london-borough-council/sutton,London Borough of Sutton,06/12/2017,6921421,"15,833.33",Advocacy For All,24795,Peoples Services Directorate,Provider Contract Payments,F470,,
http://opendatacommunities.org/id/london-borough-council/sutton,London Borough of Sutton,06/12/2017,6921422,"4,166.66",Advocacy For All,24795,Peoples Services Directorate,Provider Contract Payments,F470,,
http://opendatacommunities.org/id/london-borough-council/sutton,London Borough of Sutton,06/12/2017,40139426,"7,511.00",Aims Care Partnership (Leighton House Ltd),12628,Peoples Services Directorate,Residential Care - Ext Provider,G310,,
http://opendatacommunities.org/id/london-borough-council/sutton,London Borough of Sutton,06/12/2017,40139436,"5,278.00",Aitch Care Homes,20446,Peoples Services Directorate,Residential Care - Ext Provider,G310,,
http://opendatacommunities.org/id/london-borough-council/sutton,London Borough of Sutton,06/12/2017,40139581,"8,400.16",Aitch Care Homes,20446,Peoples Services Directorate,Residential Care - Ext Provider,G310,,
http://opendatacommunities.org/id/london-borough-council/sutton,London Borough of Sutton,01/12/2017,6921227,"1,442.35",All Security Ltd,97190,"Environment, Housing & Regeneration Directorate",Agency Services,G431,,
http://opendatacommunities.org/id/london-borough-council/sutton,London Borough of Sutton,22/11/2017,6920607,"1,750.00",Allen Lane Ltd,18334,Resources Directorate,Agency Staff - Other,A301,,
http://opendatacommunities.org/id/london-borough-council/sutton,London Borough of Sutton,28/11/2017,6920917,"1,455.89",Allen Lane Ltd,18334,Resources Directorate,Agency Staff - Other,A301,,
http://opendatacommunities.org/id/london-borough-council/sutton,London Borough of Sutton,05/12/2017,6921363,970.59,Allen Lane Ltd,18334,Resources Directorate,Agency Staff - Other,A301,,
http://opendatacommunities.org/id/london-borough-council/sutton,London Borough of Sutton,13/12/2017,6922004,"1,617.65",Allen Lane Ltd,18334,Resources Directorate,Agency Staff - Other,A301,,
http://opendatacommunities.org/id/london-borough-council/sutton,London Borough of Sutton,13/12/2017,6922005,"1,750.00",Allen Lane Ltd,18334,Resources Directorate,Agency Staff - Other,A301,,
http://opendatacommunities.org/id/london-borough-council/sutton,London Borough of Sutton,19/12/2017,6922261,"1,617.65",Allen Lane Ltd,18334,Resources Directorate,Agency Staff - Other,A301,,
http://opendatacommunities.org/id/london-borough-council/sutton,London Borough of Sutton,01/11/2017,40141038,"3,772.33",Alliance Care (Dale Homes) Ltd T/A Uplands Care Home,26835,Peoples Services Directorate,Nursing Care - Ext Provider,G311,,
http://opendatacommunities.org/id/london-borough-council/sutton,London Borough of Sutton,06/12/2017,40139772,"6,234.48",Allied Care (Mhs) Ltd,10145,Peoples Services Directorate,Residential Care - Ext Provider,G310,,
http://opendatacommunities.org/id/london-borough-council/sutton,London Borough of Sutton,01/12/2017,6921236,"1,296.91",Allstar Business Solutions,24482,"Environment, Housing & Regeneration Directorate",Fuel Etc,E030,,
http://opendatacommunities.org/id/london-borough-council/sutton,London Borough of Sutton,06/12/2017,40139429,"6,370.00",Allswell Care Services Ltd,20761,Peoples Services Directorate,Residential Care - Ext Provider,G310,,
http://opendatacommunities.org/id/london-borough-council/sutton,London Borough of Sutton,06/12/2017,40139471,"3,480.00",Allswell Care Services Ltd,20761,Peoples Services Directorate,Residential Care - Ext Provider,G310,,
http://opendatacommunities.org/id/london-borough-council/sutton,London Borough of Sutton,06/12/2017,40139781,"4,400.00",Allswell Care Services Ltd,20761,Peoples Services Directorate,Residential Care - Ext Provider,G310,,
http://opendatacommunities.org/id/london-borough-council/sutton,London Borough of Sutton,30/10/2017,40139374,"12,857.10",Amegreen Childrens Services,27145,Peoples Services Directorate,Residential Care-Children,G330,,
http://opendatacommunities.org/id/london-borough-council/sutton,London Borough of Sutton,30/11/2017,6921712,"13,070.50",Ameo Professional Services Ltd,27868,Chief Executive's Directorate,Fees - Consultants (Ad Hoc),F283,,
http://opendatacommunities.org/id/london-borough-council/sutton,London Borough of Sutton,30/11/2017,6921736,"42,835.30",Ameo Professional Services Ltd,27868,Resources Directorate,Internal Fees - Project Management,Y180,,
http://opendatacommunities.org/id/london-borough-council/sutton,London Borough of Sutton,28/11/2017,40139375,"14,331.43",Anderida Adolescent Care Ltd,26195,Peoples Services Directorate,Residential Care-Children,G330,,
http://opendatacommunities.org/id/london-borough-council/sutton,London Borough of Sutton,01/12/2017,6921101,"2,360.00",Angel Lettings,18658,"Environment, Housing & Regeneration Directorate",General Office Expenses,F235,,
http://opendatacommunities.org/id/london-borough-council/sutton,London Borough of Sutton,30/11/2017,6921479,725,Aoc Archaeology Group,28515,Peoples Services Directorate,"Surveys, Trial Holes Etc",Y200,,
http://opendatacommunities.org/id/london-borough-council/sutton,London Borough of Sutton,30/11/2017,6921471,"6,830.14",Apetito Ltd,10206,Peoples Services Directorate,Provisions - General,F150,,
http://opendatacommunities.org/id/london-borough-council/sutton,London Borough of Sutton,30/11/2017,6921700,"10,322.00",Apex Housing Solutions Ltd,29950,"Environment, Housing & Regeneration Directorate",Bed and Breakfast Accommodation,G400,,
http://opendatacommunities.org/id/london-borough-council/sutton,London Borough of Sutton,05/11/2017,40136865,518,Aquaflocare Ltd,26274,Peoples Services Directorate,Home Care,G334,,
http://opendatacommunities.org/id/london-borough-council/sutton,London Borough of Sutton,05/11/2017,40136879,539,Aquaflocare Ltd,26274,Peoples Services Directorate,Home Care,G334,,
http://opendatacommunities.org/id/london-borough-council/sutton,London Borough of Sutton,19/11/2017,40136936,518,Aquaflocare Ltd,26274,Peoples Services Directorate,Home Care,G334,,
http://opendatacommunities.org/id/london-borough-council/sutton,London Borough of Sutton,19/11/2017,40136945,441,Aquaflocare Ltd,26274,Peoples Services Directorate,Home Care,G334,,
http://opendatacommunities.org/id/london-borough-council/sutton,London Borough of Sutton,19/11/2017,40136950,539,Aquaflocare Ltd,26274,Peoples Services Directorate,Home Care,G334,,
http://opendatacommunities.org/id/london-borough-council/sutton,London Borough of Sutton,12/11/2017,40136984,518,Aquaflocare Ltd,26274,Peoples Services Directorate,Home Care,G334,,
http://opendatacommunities.org/id/london-borough-council/sutton,London Borough of Sutton,12/11/2017,40136992,441,Aquaflocare Ltd,26274,Peoples Services Directorate,Home Care,G334,,
http://opendatacommunities.org/id/london-borough-council/sutton,London Borough of Sutton,12/11/2017,40137001,539,Aquaflocare Ltd,26274,Peoples Services Directorate,Home Care,G334,,
http://opendatacommunities.org/id/london-borough-council/sutton,London Borough of Sutton,04/10/2017,6921328,"1,028.00",Architype Ltd,25419,Peoples Services Directorate,External Fees  - Architects,Y100,,
http://opendatacommunities.org/id/london-borough-council/sutton,London Borough of Sutton,05/12/2017,6921445,"10,827.00",Architype Ltd,25419,Peoples Services Directorate,External Fees  - Architects,Y100,,
http://opendatacommunities.org/id/london-borough-council/sutton,London Borough of Sutton,05/12/2017,6921528,"4,472.00",Architype Ltd,25419,Peoples Services Directorate,External Fees  - Architects,Y100,,
http://opendatacommunities.org/id/london-borough-council/sutton,London Borough of Sutton,23/09/2017,6920102,"3,555.00",Ardleigh Improvements Ltd,97701,Peoples Services Directorate,Building Works -Main Contractor,Y350,,
http://opendatacommunities.org/id/london-borough-council/sutton,London Borough of Sutton,23/09/2017,6920102,"3,555.00",Ardleigh Improvements Ltd,97701,Peoples Services Directorate,Building Works -Main Contractor,Y350,,
http://opendatacommunities.org/id/london-borough-council/sutton,London Borough of Sutton,03/11/2017,6920242,798,Ardleigh Improvements Ltd,97701,Peoples Services Directorate,Building Works -Main Contractor,Y350,,
http://opendatacommunities.org/id/london-borough-council/sutton,London Borough of Sutton,03/11/2017,6920242,798,Ardleigh Improvements Ltd,97701,Peoples Services Directorate,Building Works -Main Contractor,Y350,,
http://opendatacommunities.org/id/london-borough-council/sutton,London Borough of Sutton,03/11/2017,6921403,"1,190.00",Ardleigh Improvements Ltd,97701,Peoples Services Directorate,Building Works -Main Contractor,Y350,,
http://opendatacommunities.org/id/london-borough-council/sutton,London Borough of Sutton,03/11/2017,6921403,"1,190.00",Ardleigh Improvements Ltd,97701,Peoples Services Directorate,Building Works -Main Contractor,Y350,,
http://opendatacommunities.org/id/london-borough-council/sutton,London Borough of Sutton,01/12/2017,40139317,"20,250.00",Area Camden Ltd,29908,Peoples Services Directorate,Residential Care-Children,G330,,
http://opendatacommunities.org/id/london-borough-council/sutton,London Borough of Sutton,04/12/2017,6921881,"7,644.51",Arnold & Self,16110,"Environment, Housing & Regeneration Directorate",Bed and Breakfast Accommodation,G400,,
http://opendatacommunities.org/id/london-borough-council/sutton,London Borough of Sutton,28/11/2017,6921038,"10,035.00",Ascendit Lifts Limited,99815,"Environment, Housing & Regeneration Directorate",Grants -Made,Y610,,
http://opendatacommunities.org/id/london-borough-council/sutton,London Borough of Sutton,29/11/2017,6921982,700,Ascendit Lifts Ltd,99815,"Environment, Housing & Regeneration Directorate",Grants -Made,Y610,,
http://opendatacommunities.org/id/london-borough-council/sutton,London Borough of Sutton,01/11/2017,40139295,"1,022.80",Ascent Fostering Agency Ltd,25280,Peoples Services Directorate,Foster Parents,G326,,
http://opendatacommunities.org/id/london-borough-council/sutton,London Borough of Sutton,31/10/2017,40138977,"8,341.66",Ashcroft Care Services,22571,Peoples Services Directorate,Supported Living - Ext Provider,G306,,
http://opendatacommunities.org/id/london-borough-council/sutton,London Borough of Sutton,03/11/2017,40138983,"8,072.57",Ashcroft Care Services,22571,Peoples Services Directorate,Supported Living - Ext Provider,G306,,
http://opendatacommunities.org/id/london-borough-council/sutton,London Borough of Sutton,01/11/2017,40138982,"1,992.00",Ashlong House Ltd,23101,Peoples Services Directorate,Supported Living - Ext Provider,G306,,
http://opendatacommunities.org/id/london-borough-council/sutton,London Borough of Sutton,06/12/2017,40139643,"3,852.52",Ashtead House Ltd,29629,Peoples Services Directorate,Nursing Care - Ext Provider,G311,,
http://opendatacommunities.org/id/london-borough-council/sutton,London Borough of Sutton,06/12/2017,40139642,"1,928.56",Asprey Healthcare Ltd (Smallbrook Care Home),29112,Peoples Services Directorate,Residential Care - Ext Provider,G310,,
http://opendatacommunities.org/id/london-borough-council/sutton,London Borough of Sutton,31/10/2017,6921580,961,Assetgrove Lettings Ltd,28820,"Environment, Housing & Regeneration Directorate",Bed and Breakfast Accommodation,G400,,
http://opendatacommunities.org/id/london-borough-council/sutton,London Borough of Sutton,31/10/2017,6921581,961,Assetgrove Lettings Ltd,28820,"Environment, Housing & Regeneration Directorate",Bed and Breakfast Accommodation,G400,,
http://opendatacommunities.org/id/london-borough-council/sutton,London Borough of Sutton,31/10/2017,6921582,961,Assetgrove Lettings Ltd,28820,"Environment, Housing & Regeneration Directorate",Bed and Breakfast Accommodation,G400,,
http://opendatacommunities.org/id/london-borough-council/sutton,London Borough of Sutton,31/10/2017,6921583,"1,054.00",Assetgrove Lettings Ltd,28820,"Environment, Housing & Regeneration Directorate",Bed and Breakfast Accommodation,G400,,
http://opendatacommunities.org/id/london-borough-council/sutton,London Borough of Sutton,31/10/2017,6921584,"1,236.90",Assetgrove Lettings Ltd,28820,"Environment, Housing & Regeneration Directorate",Bed and Breakfast Accommodation,G400,,
http://opendatacommunities.org/id/london-borough-council/sutton,London Borough of Sutton,31/10/2017,6921585,"1,358.55",Assetgrove Lettings Ltd,28820,"Environment, Housing & Regeneration Directorate",Bed and Breakfast Accommodation,G400,,
http://opendatacommunities.org/id/london-borough-council/sutton,London Borough of Sutton,31/10/2017,6921587,961,Assetgrove Lettings Ltd,28820,"Environment, Housing & Regeneration Directorate",Bed and Breakfast Accommodation,G400,,
http://opendatacommunities.org/id/london-borough-council/sutton,London Borough of Sutton,31/10/2017,6921588,961,Assetgrove Lettings Ltd,28820,"Environment, Housing & Regeneration Directorate",Bed and Breakfast Accommodation,G400,,
http://opendatacommunities.org/id/london-borough-council/sutton,London Borough of Sutton,31/10/2017,6921589,961,Assetgrove Lettings Ltd,28820,"Environment, Housing & Regeneration Directorate",Bed and Breakfast Accommodation,G400,,
http://opendatacommunities.org/id/london-borough-council/sutton,London Borough of Sutton,31/10/2017,6921590,961,Assetgrove Lettings Ltd,28820,"Environment, Housing & Regeneration Directorate",Bed and Breakfast Accommodation,G400,,
http://opendatacommunities.org/id/london-borough-council/sutton,London Borough of Sutton,31/10/2017,6921591,"1,054.00",Assetgrove Lettings Ltd,28820,"Environment, Housing & Regeneration Directorate",Bed and Breakfast Accommodation,G400,,
http://opendatacommunities.org/id/london-borough-council/sutton,London Borough of Sutton,31/10/2017,6921593,961,Assetgrove Lettings Ltd,28820,"Environment, Housing & Regeneration Directorate",Bed and Breakfast Accommodation,G400,,
http://opendatacommunities.org/id/london-borough-council/sutton,London Borough of Sutton,31/10/2017,6921594,"1,054.00",Assetgrove Lettings Ltd,28820,"Environment, Housing & Regeneration Directorate",Bed and Breakfast Accommodation,G400,,
http://opendatacommunities.org/id/london-borough-council/sutton,London Borough of Sutton,31/10/2017,6921595,450,Assetgrove Lettings Ltd,28820,"Environment, Housing & Regeneration Directorate",Bed and Breakfast Accommodation,G400,,
http://opendatacommunities.org/id/london-borough-council/sutton,London Borough of Sutton,31/10/2017,6921596,961,Assetgrove Lettings Ltd,28820,"Environment, Housing & Regeneration Directorate",Bed and Breakfast Accommodation,G400,,
http://opendatacommunities.org/id/london-borough-council/sutton,London Borough of Sutton,31/10/2017,6921597,961,Assetgrove Lettings Ltd,28820,"Environment, Housing & Regeneration Directorate",Bed and Breakfast Accommodation,G400,,
http://opendatacommunities.org/id/london-borough-council/sutton,London Borough of Sutton,31/10/2017,6921598,961,Assetgrove Lettings Ltd,28820,"Environment, Housing & Regeneration Directorate",Bed and Breakfast Accommodation,G400,,
http://opendatacommunities.org/id/london-borough-council/sutton,London Borough of Sutton,31/10/2017,6921599,961,Assetgrove Lettings Ltd,28820,"Environment, Housing & Regeneration Directorate",Bed and Breakfast Accommodation,G400,,
http://opendatacommunities.org/id/london-borough-council/sutton,London Borough of Sutton,31/10/2017,6921600,961,Assetgrove Lettings Ltd,28820,"Environment, Housing & Regeneration Directorate",Bed and Breakfast Accommodation,G400,,
http://opendatacommunities.org/id/london-borough-council/sutton,London Borough of Sutton,31/10/2017,6921601,961,Assetgrove Lettings Ltd,28820,"Environment, Housing & Regeneration Directorate",Bed and Breakfast Accommodation,G400,,
http://opendatacommunities.org/id/london-borough-council/sutton,London Borough of Sutton,31/10/2017,6921602,961,Assetgrove Lettings Ltd,28820,"Environment, Housing & Regeneration Directorate",Bed and Breakfast Accommodation,G400,,
http://opendatacommunities.org/id/london-borough-council/sutton,London Borough of Sutton,31/10/2017,6921603,"1,085.00",Assetgrove Lettings Ltd,28820,"Environment, Housing & Regeneration Directorate",Bed and Breakfast Accommodation,G400,,
http://opendatacommunities.org/id/london-borough-council/sutton,London Borough of Sutton,31/10/2017,6921604,"1,054.00",Assetgrove Lettings Ltd,28820,"Environment, Housing & Regeneration Directorate",Bed and Breakfast Accommodation,G400,,
http://opendatacommunities.org/id/london-borough-council/sutton,London Borough of Sutton,31/10/2017,6921605,961,Assetgrove Lettings Ltd,28820,"Environment, Housing & Regeneration Directorate",Bed and Breakfast Accommodation,G400,,
http://opendatacommunities.org/id/london-borough-council/sutton,London Borough of Sutton,31/10/2017,6921606,"1,085.00",Assetgrove Lettings Ltd,28820,"Environment, Housing & Regeneration Directorate",Bed and Breakfast Accommodation,G400,,
http://opendatacommunities.org/id/london-borough-council/sutton,London Borough of Sutton,31/10/2017,6921607,961,Assetgrove Lettings Ltd,28820,"Environment, Housing & Regeneration Directorate",Bed and Breakfast Accommodation,G400,,
http://opendatacommunities.org/id/london-borough-council/sutton,London Borough of Sutton,31/10/2017,6921608,961,Assetgrove Lettings Ltd,28820,"Environment, Housing & Regeneration Directorate",Bed and Breakfast Accommodation,G400,,
http://opendatacommunities.org/id/london-borough-council/sutton,London Borough of Sutton,31/10/2017,6921609,"1,054.00",Assetgrove Lettings Ltd,28820,"Environment, Housing & Regeneration Directorate",Bed and Breakfast Accommodation,G400,,
http://opendatacommunities.org/id/london-borough-council/sutton,London Borough of Sutton,31/10/2017,6921611,620,Assetgrove Lettings Ltd,28820,"Environment, Housing & Regeneration Directorate",Bed and Breakfast Accommodation,G400,,
http://opendatacommunities.org/id/london-borough-council/sutton,London Borough of Sutton,31/10/2017,6921612,899,Assetgrove Lettings Ltd,28820,"Environment, Housing & Regeneration Directorate",Bed and Breakfast Accommodation,G400,,
http://opendatacommunities.org/id/london-borough-council/sutton,London Borough of Sutton,31/10/2017,6921613,899,Assetgrove Lettings Ltd,28820,"Environment, Housing & Regeneration Directorate",Bed and Breakfast Accommodation,G400,,
http://opendatacommunities.org/id/london-borough-council/sutton,London Borough of Sutton,31/10/2017,6921615,961,Assetgrove Lettings Ltd,28820,"Environment, Housing & Regeneration Directorate",Bed and Breakfast Accommodation,G400,,
http://opendatacommunities.org/id/london-borough-council/sutton,London Borough of Sutton,31/10/2017,6921616,"1,240.00",Assetgrove Lettings Ltd,28820,"Environment, Housing & Regeneration Directorate",Bed and Breakfast Accommodation,G400,,
http://opendatacommunities.org/id/london-borough-council/sutton,London Borough of Sutton,31/10/2017,6921620,"1,236.90",Assetgrove Lettings Ltd,28820,"Environment, Housing & Regeneration Directorate",Bed and Breakfast Accommodation,G400,,
http://opendatacommunities.org/id/london-borough-council/sutton,London Borough of Sutton,31/10/2017,6921621,"1,271.00",Assetgrove Lettings Ltd,28820,"Environment, Housing & Regeneration Directorate",Bed and Breakfast Accommodation,G400,,
http://opendatacommunities.org/id/london-borough-council/sutton,London Borough of Sutton,31/10/2017,6921622,961,Assetgrove Lettings Ltd,28820,"Environment, Housing & Regeneration Directorate",Bed and Breakfast Accommodation,G400,,
http://opendatacommunities.org/id/london-borough-council/sutton,London Borough of Sutton,31/10/2017,6921623,961,Assetgrove Lettings Ltd,28820,"Environment, Housing & Regeneration Directorate",Bed and Breakfast Accommodation,G400,,
http://opendatacommunities.org/id/london-borough-council/sutton,London Borough of Sutton,30/11/2017,6921741,930,Assetgrove Lettings Ltd,28820,"Environment, Housing & Regeneration Directorate",Bed and Breakfast Accommodation,G400,,
http://opendatacommunities.org/id/london-borough-council/sutton,London Borough of Sutton,30/11/2017,6921742,"1,197.00",Assetgrove Lettings Ltd,28820,"Environment, Housing & Regeneration Directorate",Bed and Breakfast Accommodation,G400,,
http://opendatacommunities.org/id/london-borough-council/sutton,London Borough of Sutton,30/11/2017,6921761,930,Assetgrove Lettings Ltd,28820,"Environment, Housing & Regeneration Directorate",Bed and Breakfast Accommodation,G400,,
http://opendatacommunities.org/id/london-borough-council/sutton,London Borough of Sutton,30/11/2017,6921762,930,Assetgrove Lettings Ltd,28820,"Environment, Housing & Regeneration Directorate",Bed and Breakfast Accommodation,G400,,
http://opendatacommunities.org/id/london-borough-council/sutton,London Borough of Sutton,30/11/2017,6921763,930,Assetgrove Lettings Ltd,28820,"Environment, Housing & Regeneration Directorate",Bed and Breakfast Accommodation,G400,,
http://opendatacommunities.org/id/london-borough-council/sutton,London Borough of Sutton,30/11/2017,6921764,930,Assetgrove Lettings Ltd,28820,"Environment, Housing & Regeneration Directorate",Bed and Breakfast Accommodation,G400,,
http://opendatacommunities.org/id/london-borough-council/sutton,London Borough of Sutton,30/11/2017,6921765,"1,881.00",Assetgrove Lettings Ltd,28820,"Environment, Housing & Regeneration Directorate",Bed and Breakfast Accommodation,G400,,
http://opendatacommunities.org/id/london-borough-council/sutton,London Borough of Sutton,30/11/2017,6921766,"1,020.00",Assetgrove Lettings Ltd,28820,"Environment, Housing & Regeneration Directorate",Bed and Breakfast Accommodation,G400,,
http://opendatacommunities.org/id/london-borough-council/sutton,London Borough of Sutton,30/11/2017,6921767,930,Assetgrove Lettings Ltd,28820,"Environment, Housing & Regeneration Directorate",Bed and Breakfast Accommodation,G400,,
http://opendatacommunities.org/id/london-borough-council/sutton,London Borough of Sutton,30/11/2017,6921768,620,Assetgrove Lettings Ltd,28820,"Environment, Housing & Regeneration Directorate",Bed and Breakfast Accommodation,G400,,
http://opendatacommunities.org/id/london-borough-council/sutton,London Borough of Sutton,30/11/2017,6921769,"1,200.00",Assetgrove Lettings Ltd,28820,"Environment, Housing & Regeneration Directorate",Bed and Breakfast Accommodation,G400,,
http://opendatacommunities.org/id/london-borough-council/sutton,London Borough of Sutton,30/11/2017,6921770,"1,567.50",Assetgrove Lettings Ltd,28820,"Environment, Housing & Regeneration Directorate",Bed and Breakfast Accommodation,G400,,
http://opendatacommunities.org/id/london-borough-council/sutton,London Borough of Sutton,30/11/2017,6921771,"1,197.00",Assetgrove Lettings Ltd,28820,"Environment, Housing & Regeneration Directorate",Bed and Breakfast Accommodation,G400,,
http://opendatacommunities.org/id/london-borough-council/sutton,London Borough of Sutton,30/11/2017,6921772,"1,050.00",Assetgrove Lettings Ltd,28820,"Environment, Housing & Regeneration Directorate",Bed and Breakfast Accommodation,G400,,
http://opendatacommunities.org/id/london-borough-council/sutton,London Borough of Sutton,30/11/2017,6921774,918,Assetgrove Lettings Ltd,28820,"Environment, Housing & Regeneration Directorate",Bed and Breakfast Accommodation,G400,,
http://opendatacommunities.org/id/london-borough-council/sutton,London Borough of Sutton,30/11/2017,6921775,930,Assetgrove Lettings Ltd,28820,"Environment, Housing & Regeneration Directorate",Bed and Breakfast Accommodation,G400,,
http://opendatacommunities.org/id/london-borough-council/sutton,London Borough of Sutton,30/11/2017,6921776,"1,020.00",Assetgrove Lettings Ltd,28820,"Environment, Housing & Regeneration Directorate",Bed and Breakfast Accommodation,G400,,
http://opendatacommunities.org/id/london-borough-council/sutton,London Borough of Sutton,30/11/2017,6921777,620,Assetgrove Lettings Ltd,28820,"Environment, Housing & Regeneration Directorate",Bed and Breakfast Accommodation,G400,,
http://opendatacommunities.org/id/london-borough-council/sutton,London Borough of Sutton,30/11/2017,6921779,930,Assetgrove Lettings Ltd,28820,"Environment, Housing & Regeneration Directorate",Bed and Breakfast Accommodation,G400,,
http://opendatacommunities.org/id/london-borough-council/sutton,London Borough of Sutton,30/11/2017,6921781,930,Assetgrove Lettings Ltd,28820,"Environment, Housing & Regeneration Directorate",Bed and Breakfast Accommodation,G400,,
http://opendatacommunities.org/id/london-borough-council/sutton,London Borough of Sutton,30/11/2017,6921784,682,Assetgrove Lettings Ltd,28820,"Environment, Housing & Regeneration Directorate",Bed and Breakfast Accommodation,G400,,
http://opendatacommunities.org/id/london-borough-council/sutton,London Borough of Sutton,30/11/2017,6921786,775,Assetgrove Lettings Ltd,28820,"Environment, Housing & Regeneration Directorate",Bed and Breakfast Accommodation,G400,,
http://opendatacommunities.org/id/london-borough-council/sutton,London Borough of Sutton,30/11/2017,6921787,930,Assetgrove Lettings Ltd,28820,"Environment, Housing & Regeneration Directorate",Bed and Breakfast Accommodation,G400,,
http://opendatacommunities.org/id/london-borough-council/sutton,London Borough of Sutton,30/11/2017,6921788,930,Assetgrove Lettings Ltd,28820,"Environment, Housing & Regeneration Directorate",Bed and Breakfast Accommodation,G400,,
http://opendatacommunities.org/id/london-borough-council/sutton,London Borough of Sutton,30/11/2017,6921789,"1,134.00",Assetgrove Lettings Ltd,28820,"Environment, Housing & Regeneration Directorate",Bed and Breakfast Accommodation,G400,,
http://opendatacommunities.org/id/london-borough-council/sutton,London Borough of Sutton,30/11/2017,6921790,930,Assetgrove Lettings Ltd,28820,"Environment, Housing & Regeneration Directorate",Bed and Breakfast Accommodation,G400,,
http://opendatacommunities.org/id/london-borough-council/sutton,London Borough of Sutton,30/11/2017,6921791,930,Assetgrove Lettings Ltd,28820,"Environment, Housing & Regeneration Directorate",Bed and Breakfast Accommodation,G400,,
http://opendatacommunities.org/id/london-borough-council/sutton,London Borough of Sutton,30/11/2017,6921792,930,Assetgrove Lettings Ltd,28820,"Environment, Housing & Regeneration Directorate",Bed and Breakfast Accommodation,G400,,
http://opendatacommunities.org/id/london-borough-council/sutton,London Borough of Sutton,30/11/2017,6921793,930,Assetgrove Lettings Ltd,28820,"Environment, Housing & Regeneration Directorate",Bed and Breakfast Accommodation,G400,,
http://opendatacommunities.org/id/london-borough-council/sutton,London Borough of Sutton,30/11/2017,6921794,930,Assetgrove Lettings Ltd,28820,"Environment, Housing & Regeneration Directorate",Bed and Breakfast Accommodation,G400,,
http://opendatacommunities.org/id/london-borough-council/sutton,London Borough of Sutton,30/11/2017,6921795,"1,197.00",Assetgrove Lettings Ltd,28820,"Environment, Housing & Regeneration Directorate",Bed and Breakfast Accommodation,G400,,
http://opendatacommunities.org/id/london-borough-council/sutton,London Borough of Sutton,30/11/2017,6921796,930,Assetgrove Lettings Ltd,28820,"Environment, Housing & Regeneration Directorate",Bed and Breakfast Accommodation,G400,,
http://opendatacommunities.org/id/london-borough-council/sutton,London Borough of Sutton,30/11/2017,6921797,930,Assetgrove Lettings Ltd,28820,"Environment, Housing & Regeneration Directorate",Bed and Breakfast Accommodation,G400,,
http://opendatacommunities.org/id/london-borough-council/sutton,London Borough of Sutton,30/11/2017,6921798,930,Assetgrove Lettings Ltd,28820,"Environment, Housing & Regeneration Directorate",Bed and Breakfast Accommodation,G400,,
http://opendatacommunities.org/id/london-borough-council/sutton,London Borough of Sutton,30/11/2017,6921799,930,Assetgrove Lettings Ltd,28820,"Environment, Housing & Regeneration Directorate",Bed and Breakfast Accommodation,G400,,
http://opendatacommunities.org/id/london-borough-council/sutton,London Borough of Sutton,30/11/2017,6921800,496,Assetgrove Lettings Ltd,28820,"Environment, Housing & Regeneration Directorate",Bed and Breakfast Accommodation,G400,,
http://opendatacommunities.org/id/london-borough-council/sutton,London Borough of Sutton,30/11/2017,6921801,930,Assetgrove Lettings Ltd,28820,"Environment, Housing & Regeneration Directorate",Bed and Breakfast Accommodation,G400,,
http://opendatacommunities.org/id/london-borough-council/sutton,London Borough of Sutton,30/11/2017,6921802,930,Assetgrove Lettings Ltd,28820,"Environment, Housing & Regeneration Directorate",Bed and Breakfast Accommodation,G400,,
http://opendatacommunities.org/id/london-borough-council/sutton,London Borough of Sutton,30/11/2017,6921803,"1,230.00",Assetgrove Lettings Ltd,28820,"Environment, Housing & Regeneration Directorate",Bed and Breakfast Accommodation,G400,,
http://opendatacommunities.org/id/london-borough-council/sutton,London Borough of Sutton,30/11/2017,6921804,930,Assetgrove Lettings Ltd,28820,"Environment, Housing & Regeneration Directorate",Bed and Breakfast Accommodation,G400,,
http://opendatacommunities.org/id/london-borough-council/sutton,London Borough of Sutton,30/11/2017,6921805,"1,020.00",Assetgrove Lettings Ltd,28820,"Environment, Housing & Regeneration Directorate",Bed and Breakfast Accommodation,G400,,
http://opendatacommunities.org/id/london-borough-council/sutton,London Borough of Sutton,30/11/2017,6921806,868,Assetgrove Lettings Ltd,28820,"Environment, Housing & Regeneration Directorate",Bed and Breakfast Accommodation,G400,,
http://opendatacommunities.org/id/london-borough-council/sutton,London Borough of Sutton,30/11/2017,6921807,"1,197.00",Assetgrove Lettings Ltd,28820,"Environment, Housing & Regeneration Directorate",Bed and Breakfast Accommodation,G400,,
http://opendatacommunities.org/id/london-borough-council/sutton,London Borough of Sutton,30/11/2017,6921808,"1,230.00",Assetgrove Lettings Ltd,28820,"Environment, Housing & Regeneration Directorate",Bed and Breakfast Accommodation,G400,,
http://opendatacommunities.org/id/london-borough-council/sutton,London Borough of Sutton,30/11/2017,6921809,"1,197.00",Assetgrove Lettings Ltd,28820,"Environment, Housing & Regeneration Directorate",Bed and Breakfast Accommodation,G400,,
http://opendatacommunities.org/id/london-borough-council/sutton,London Borough of Sutton,30/11/2017,6921810,930,Assetgrove Lettings Ltd,28820,"Environment, Housing & Regeneration Directorate",Bed and Breakfast Accommodation,G400,,
http://opendatacommunities.org/id/london-borough-council/sutton,London Borough of Sutton,30/11/2017,6921827,"1,197.00",Assetgrove Lettings Ltd,28820,"Environment, Housing & Regeneration Directorate",Bed and Breakfast Accommodation,G400,,
http://opendatacommunities.org/id/london-borough-council/sutton,London Borough of Sutton,30/11/2017,6921828,930,Assetgrove Lettings Ltd,28820,"Environment, Housing & Regeneration Directorate",Bed and Breakfast Accommodation,G400,,
http://opendatacommunities.org/id/london-borough-council/sutton,London Borough of Sutton,07/12/2017,6922301,434,Assetgrove Lettings Ltd,28820,"Environment, Housing & Regeneration Directorate",Bed and Breakfast Accommodation,G400,,
http://opendatacommunities.org/id/london-borough-council/sutton,London Borough of Sutton,01/11/2017,6921950,480,Association of Democratic Services Officers,23679,Resources Directorate,Staff Advertising,A500,,
http://opendatacommunities.org/id/london-borough-council/sutton,London Borough of Sutton,06/12/2017,40139439,"3,639.72",Assurance Care Services Ltd T/A Christ the King Residential Care Homes,27458,Peoples Services Directorate,Residential Care - Ext Provider,G310,,
http://opendatacommunities.org/id/london-borough-council/sutton,London Borough of Sutton,18/12/2017,1247017,600,Astor College,28821,Peoples Services Directorate,Payments to Schools,G065,,
http://opendatacommunities.org/id/london-borough-council/sutton,London Borough of Sutton,13/12/2017,6922063,"-5,691.52",Atkins Ltd,10307,Peoples Services Directorate,External Fees  - Architects,Y100,,
http://opendatacommunities.org/id/london-borough-council/sutton,London Borough of Sutton,14/12/2017,6922158,"2,750.00",Auditel Rental & Services Ltd,26901,Resources Directorate,Other Equipment-Hire,F070,,
http://opendatacommunities.org/id/london-borough-council/sutton,London Borough of Sutton,14/12/2017,6922159,"2,750.00",Auditel Rental & Services Ltd,26901,Resources Directorate,Other Equipment-Hire,F070,,
http://opendatacommunities.org/id/london-borough-council/sutton,London Borough of Sutton,06/12/2017,40139384,"4,580.72",Autism & Aspergers Care Services,10327,Peoples Services Directorate,Residential Care - Ext Provider,G310,,
http://opendatacommunities.org/id/london-borough-council/sutton,London Borough of Sutton,06/12/2017,40139737,"2,805.00",Avante Ltd (Weybourne),24009,Peoples Services Directorate,Residential Care - Ext Provider,G310,,
http://opendatacommunities.org/id/london-borough-council/sutton,London Borough of Sutton,18/12/2017,1247029,420,Avenue Primary Acadamy,26025,Peoples Services Directorate,Payments to Schools,G065,,
http://opendatacommunities.org/id/london-borough-council/sutton,London Borough of Sutton,30/11/2017,6921213,"4,930.00",Aworth Survey Consultants,16330,"Environment, Housing & Regeneration Directorate",Surveys & Analysis,Y685,,
http://opendatacommunities.org/id/london-borough-council/sutton,London Borough of Sutton,18/12/2017,6922316,"2,100.00",REDACTED - PERSONAL DATA,26486,Peoples Services Directorate,Miscellaneous Costs,G499,,
http://opendatacommunities.org/id/london-borough-council/sutton,London Borough of Sutton,06/12/2017,40139688,"3,200.00",Balcombe Care Homes Ltd,10367,Peoples Services Directorate,Nursing Care - Ext Provider,G311,,
http://opendatacommunities.org/id/london-borough-council/sutton,London Borough of Sutton,04/12/2017,1246027,510,Bandon Hill Primary,10372,Peoples Services Directorate,Special Educational Needs,G331,,
http://opendatacommunities.org/id/london-borough-council/sutton,London Borough of Sutton,30/11/2017,40141058,"3,141.99",Banya,10375,Peoples Services Directorate,Foster Parents,G326,,
http://opendatacommunities.org/id/london-borough-council/sutton,London Borough of Sutton,30/11/2017,40141064,"3,491.10",Banya,10375,Peoples Services Directorate,Foster Parents,G326,,
http://opendatacommunities.org/id/london-borough-council/sutton,London Borough of Sutton,06/12/2017,40139596,"4,000.00",Barchester Healthcare - Atfield House,27028,Peoples Services Directorate,Nursing Care - Ext Provider,G311,,
http://opendatacommunities.org/id/london-borough-council/sutton,London Borough of Sutton,03/11/2017,40139306,"3,444.30",Barnardo's,10370,Peoples Services Directorate,Foster Parents,G326,,
http://opendatacommunities.org/id/london-borough-council/sutton,London Borough of Sutton,22/12/2017,40144675,430.5,Barnardo's,10370,Peoples Services Directorate,Provider Contract Payments,F470,,
http://opendatacommunities.org/id/london-borough-council/sutton,London Borough of Sutton,22/12/2017,40144676,"1,863.00",Barnardo's,10370,Peoples Services Directorate,Provider Contract Payments,F470,,
http://opendatacommunities.org/id/london-borough-council/sutton,London Borough of Sutton,22/12/2017,40144678,616,Barnardo's,10370,Peoples Services Directorate,Provider Contract Payments,F470,,
http://opendatacommunities.org/id/london-borough-council/sutton,London Borough of Sutton,22/12/2017,40144680,546,Barnardo's,10370,Peoples Services Directorate,Provider Contract Payments,F470,,
http://opendatacommunities.org/id/london-borough-council/sutton,London Borough of Sutton,22/12/2017,40144681,672,Barnardo's,10370,Peoples Services Directorate,Provider Contract Payments,F470,,
http://opendatacommunities.org/id/london-borough-council/sutton,London Borough of Sutton,22/12/2017,40144682,630,Barnardo's,10370,Peoples Services Directorate,Provider Contract Payments,F470,,
http://opendatacommunities.org/id/london-borough-council/sutton,London Borough of Sutton,22/12/2017,40144683,731.5,Barnardo's,10370,Peoples Services Directorate,Provider Contract Payments,F470,,
http://opendatacommunities.org/id/london-borough-council/sutton,London Borough of Sutton,22/12/2017,40144685,552,Barnardo's,10370,Peoples Services Directorate,Provider Contract Payments,F470,,
http://opendatacommunities.org/id/london-borough-council/sutton,London Borough of Sutton,22/12/2017,40144688,822.25,Barnardo's,10370,Peoples Services Directorate,Provider Contract Payments,F470,,
http://opendatacommunities.org/id/london-borough-council/sutton,London Borough of Sutton,22/12/2017,40144689,798,Barnardo's,10370,Peoples Services Directorate,Provider Contract Payments,F470,,
http://opendatacommunities.org/id/london-borough-council/sutton,London Borough of Sutton,11/12/2017,6921877,"25,042.50",Barnett Waddingham LLP,28449,Unknown Directorate,Investment Expenses,A931,,
http://opendatacommunities.org/id/london-borough-council/sutton,London Borough of Sutton,01/11/2017,40139339,"3,835.80",Be My Family Fostering Agency,25179,Peoples Services Directorate,Foster Parents,G326,,
http://opendatacommunities.org/id/london-borough-council/sutton,London Borough of Sutton,01/11/2017,40139340,"3,475.80",Be My Family Fostering Agency,25179,Peoples Services Directorate,Foster Parents,G326,,
http://opendatacommunities.org/id/london-borough-council/sutton,London Borough of Sutton,15/12/2017,6922093,"92,638.61",Beddington Bid Ltd,26888,"Environment, Housing & Regeneration Directorate",Other Services,F340,,
http://opendatacommunities.org/id/london-borough-council/sutton,London Borough of Sutton,30/11/2017,6922318,"103,886.18",Beddington Infants School,10445,Peoples Services Directorate,Building Works -Main Contractor,Y350,,
http://opendatacommunities.org/id/london-borough-council/sutton,London Borough of Sutton,20/10/2017,40139298,"14,807.42",Benjamin UK Ltd,23244,Peoples Services Directorate,Residential Care-Children,G330,,
http://opendatacommunities.org/id/london-borough-council/sutton,London Borough of Sutton,20/10/2017,40139299,"17,764.28",Benjamin UK Ltd,23244,Peoples Services Directorate,Residential Care-Children,G330,,
http://opendatacommunities.org/id/london-borough-council/sutton,London Borough of Sutton,06/12/2017,40139692,"1,998.86",Bertinaley Care Ltd T/A Angel Lodge,27109,Peoples Services Directorate,Interim Placements - Ext Provider,G317,,
http://opendatacommunities.org/id/london-borough-council/sutton,London Borough of Sutton,30/11/2017,6922199,"3,330.00",Bestcourt UK Ltd,10441,"Environment, Housing & Regeneration Directorate",Bed and Breakfast Accommodation,G400,,
http://opendatacommunities.org/id/london-borough-council/sutton,London Borough of Sutton,06/12/2017,40139456,"3,400.00",Beverley Lodge Nursing Home,10434,Peoples Services Directorate,Nursing Care - Ext Provider,G311,,
http://opendatacommunities.org/id/london-borough-council/sutton,London Borough of Sutton,06/12/2017,40139495,"2,226.40",Beverley Lodge Nursing Home,10434,Peoples Services Directorate,Nursing Care - Ext Provider,G311,,
http://opendatacommunities.org/id/london-borough-council/sutton,London Borough of Sutton,06/12/2017,40139652,"2,535.00",Beverley Lodge Nursing Home,10434,Peoples Services Directorate,Nursing Care - Ext Provider,G311,,
http://opendatacommunities.org/id/london-borough-council/sutton,London Borough of Sutton,06/12/2017,40139699,"1,298.54",Beverley Lodge Nursing Home,10434,Peoples Services Directorate,Nursing Care - Ext Provider,G311,,
http://opendatacommunities.org/id/london-borough-council/sutton,London Borough of Sutton,06/12/2017,40139748,"2,800.00",Beverley Lodge Nursing Home,10434,Peoples Services Directorate,Nursing Care - Ext Provider,G311,,
http://opendatacommunities.org/id/london-borough-council/sutton,London Borough of Sutton,20/11/2017,40136478,490,Beyond Community Care Services Ltd,29933,Peoples Services Directorate,Home Care,G334,,
http://opendatacommunities.org/id/london-borough-council/sutton,London Borough of Sutton,20/11/2017,40136479,490,Beyond Community Care Services Ltd,29933,Peoples Services Directorate,Home Care,G334,,
http://opendatacommunities.org/id/london-borough-council/sutton,London Borough of Sutton,03/12/2017,40140300,490,Beyond Community Care Services Ltd,29933,Peoples Services Directorate,Home Care,G334,,
http://opendatacommunities.org/id/london-borough-council/sutton,London Borough of Sutton,11/12/2017,40142042,490,Beyond Community Care Services Ltd,29933,Peoples Services Directorate,Home Care,G334,,
http://opendatacommunities.org/id/london-borough-council/sutton,London Borough of Sutton,18/12/2017,40144712,490,Beyond Community Care Services Ltd,29933,Peoples Services Directorate,Home Care,G334,,
http://opendatacommunities.org/id/london-borough-council/sutton,London Borough of Sutton,01/12/2017,6922329,"3,512.23",Bloom Procurement Services Ltd,29692,Peoples Services Directorate,Contractual Consultant Fees,G430,,
http://opendatacommunities.org/id/london-borough-council/sutton,London Borough of Sutton,01/12/2017,1246832,"12,199.77",Blossom House Lower School,10507,Peoples Services Directorate,Independent Schools,G325,,
http://opendatacommunities.org/id/london-borough-council/sutton,London Borough of Sutton,01/12/2017,1246833,"10,783.08",Blossom House Lower School,10507,Peoples Services Directorate,Independent Schools,G325,,
http://opendatacommunities.org/id/london-borough-council/sutton,London Borough of Sutton,01/12/2017,1246834,"10,783.08",Blossom House Lower School,10507,Peoples Services Directorate,Independent Schools,G325,,
http://opendatacommunities.org/id/london-borough-council/sutton,London Borough of Sutton,01/12/2017,1246835,"11,950.00",Blossom House Lower School,10507,Peoples Services Directorate,Independent Schools,G325,,
http://opendatacommunities.org/id/london-borough-council/sutton,London Borough of Sutton,01/12/2017,1246836,"11,008.08",Blossom House Lower School,10507,Peoples Services Directorate,Independent Schools,G325,,
http://opendatacommunities.org/id/london-borough-council/sutton,London Borough of Sutton,01/12/2017,1246837,"14,350.00",Blossom House Lower School,10507,Peoples Services Directorate,Independent Schools,G325,,
http://opendatacommunities.org/id/london-borough-council/sutton,London Borough of Sutton,01/12/2017,1246838,"14,350.00",Blossom House Lower School,10507,Peoples Services Directorate,Independent Schools,G325,,
http://opendatacommunities.org/id/london-borough-council/sutton,London Borough of Sutton,01/12/2017,1246839,"13,950.00",Blossom House Lower School,10507,Peoples Services Directorate,Independent Schools,G325,,
http://opendatacommunities.org/id/london-borough-council/sutton,London Borough of Sutton,01/12/2017,1246840,"12,199.77",Blossom House Lower School,10507,Peoples Services Directorate,Independent Schools,G325,,
http://opendatacommunities.org/id/london-borough-council/sutton,London Borough of Sutton,01/12/2017,1246841,"10,783.08",Blossom House Lower School,10507,Peoples Services Directorate,Independent Schools,G325,,
http://opendatacommunities.org/id/london-borough-council/sutton,London Borough of Sutton,01/12/2017,1246842,"19,850.00",Blossom House Lower School,10507,Peoples Services Directorate,Independent Schools,G325,,
http://opendatacommunities.org/id/london-borough-council/sutton,London Borough of Sutton,01/12/2017,1246843,"12,199.77",Blossom House Lower School,10507,Peoples Services Directorate,Independent Schools,G325,,
http://opendatacommunities.org/id/london-borough-council/sutton,London Borough of Sutton,01/12/2017,1246845,"16,570.47",Blossom House Lower School,10507,Peoples Services Directorate,Independent Schools,G325,,
http://opendatacommunities.org/id/london-borough-council/sutton,London Borough of Sutton,20/09/2017,6916892,457.92,Bluebird Care Sutton,26822,Peoples Services Directorate,Home Care,G334,,
http://opendatacommunities.org/id/london-borough-council/sutton,London Borough of Sutton,27/11/2017,6921029,"1,025.00",Bournemouth University,10556,Peoples Services Directorate,Training - Course Fees,A520,,
http://opendatacommunities.org/id/london-borough-council/sutton,London Borough of Sutton,30/11/2017,6921198,"29,500.00",Bower & Baily Client Account,99827,Peoples Services Directorate,Purchase Price,Y010,,
http://opendatacommunities.org/id/london-borough-council/sutton,London Borough of Sutton,06/12/2017,40139420,"3,380.00",Bridge House Care Centre,10620,Peoples Services Directorate,Nursing Care - Ext Provider,G311,,
http://opendatacommunities.org/id/london-borough-council/sutton,London Borough of Sutton,06/12/2017,40139421,"1,996.00",Bridge House Care Centre,10620,Peoples Services Directorate,Nursing Care - Ext Provider,G311,,
http://opendatacommunities.org/id/london-borough-council/sutton,London Borough of Sutton,06/12/2017,40139469,"3,200.00",Bridge House Care Centre,10620,Peoples Services Directorate,Nursing Care - Ext Provider,G311,,
http://opendatacommunities.org/id/london-borough-council/sutton,London Borough of Sutton,06/12/2017,40139520,"3,475.36",Bridge House Care Centre,10620,Peoples Services Directorate,Nursing Care - Ext Provider,G311,,
http://opendatacommunities.org/id/london-borough-council/sutton,London Borough of Sutton,06/12/2017,40139620,"1,942.48",Bridge House Care Centre,10620,Peoples Services Directorate,Nursing Care - Ext Provider,G311,,
http://opendatacommunities.org/id/london-borough-council/sutton,London Borough of Sutton,06/12/2017,40139667,"3,000.00",Bridge House Care Centre,10620,Peoples Services Directorate,Nursing Care - Ext Provider,G311,,
http://opendatacommunities.org/id/london-borough-council/sutton,London Borough of Sutton,06/12/2017,40139714,"3,400.00",Bridge House Care Centre,10620,Peoples Services Directorate,Nursing Care - Ext Provider,G311,,
http://opendatacommunities.org/id/london-borough-council/sutton,London Borough of Sutton,06/12/2017,40139715,"2,034.96",Bridge House Care Centre,10620,Peoples Services Directorate,Nursing Care - Ext Provider,G311,,
http://opendatacommunities.org/id/london-borough-council/sutton,London Borough of Sutton,06/12/2017,40139773,"3,360.00",Bridge House Care Centre,10620,Peoples Services Directorate,Nursing Care - Ext Provider,G311,,
http://opendatacommunities.org/id/london-borough-council/sutton,London Borough of Sutton,06/12/2017,40139774,"2,033.92",Bridge House Care Centre,10620,Peoples Services Directorate,Nursing Care - Ext Provider,G311,,
http://opendatacommunities.org/id/london-borough-council/sutton,London Borough of Sutton,06/12/2017,40139775,931.29,Bridge House Care Centre,10620,Peoples Services Directorate,Nursing Care - Ext Provider,G311,,
http://opendatacommunities.org/id/london-borough-council/sutton,London Borough of Sutton,01/11/2017,40139284,"2,978.57",Brighter Futures Foster Care Ltd,27648,Peoples Services Directorate,Foster Parents,G326,,
http://opendatacommunities.org/id/london-borough-council/sutton,London Borough of Sutton,01/11/2017,40139285,"2,978.57",Brighter Futures Foster Care Ltd,27648,Peoples Services Directorate,Foster Parents,G326,,
http://opendatacommunities.org/id/london-borough-council/sutton,London Borough of Sutton,01/11/2017,40139286,"3,685.71",Brighter Futures Foster Care Ltd,27648,Peoples Services Directorate,Foster Parents,G326,,
http://opendatacommunities.org/id/london-borough-council/sutton,London Borough of Sutton,01/11/2017,40139287,"2,768.57",Brighter Futures Foster Care Ltd,27648,Peoples Services Directorate,Foster Parents,G326,,
http://opendatacommunities.org/id/london-borough-council/sutton,London Borough of Sutton,06/12/2017,40139496,"2,439.36",British Home & Hospital For Incurables,10589,Peoples Services Directorate,Nursing Care - Ext Provider,G311,,
http://opendatacommunities.org/id/london-borough-council/sutton,London Borough of Sutton,06/12/2017,40139749,"2,710.40",British Home & Hospital For Incurables,10589,Peoples Services Directorate,Nursing Care - Ext Provider,G311,,
http://opendatacommunities.org/id/london-borough-council/sutton,London Borough of Sutton,13/11/2017,6920670,"1,430.00",British Telecommunications Plc,10574,Resources Directorate,"Telephones - Mobile, Pagers etc.",F374,,
http://opendatacommunities.org/id/london-borough-council/sutton,London Borough of Sutton,27/11/2017,6921310,"15,966.85",British Telecommunications Plc,10574,Resources Directorate,"Telephones - Mobile, Pagers etc.",F374,,
http://opendatacommunities.org/id/london-borough-council/sutton,London Borough of Sutton,06/12/2017,40139458,"2,945.00",Broadlands Nursing Home,10586,Peoples Services Directorate,Nursing Care - Ext Provider,G311,,
http://opendatacommunities.org/id/london-borough-council/sutton,London Borough of Sutton,06/12/2017,40139459,"1,835.60",Broadlands Nursing Home,10586,Peoples Services Directorate,Nursing Care - Ext Provider,G311,,
http://opendatacommunities.org/id/london-borough-council/sutton,London Borough of Sutton,06/12/2017,40139497,"3,400.00",Broadlands Nursing Home,10586,Peoples Services Directorate,Nursing Care - Ext Provider,G311,,
http://opendatacommunities.org/id/london-borough-council/sutton,London Borough of Sutton,06/12/2017,40139588,"3,400.00",Broadlands Nursing Home,10586,Peoples Services Directorate,Nursing Care - Short Term Placements,G328,,
http://opendatacommunities.org/id/london-borough-council/sutton,London Borough of Sutton,06/12/2017,40139653,"3,277.16",Broadlands Nursing Home,10586,Peoples Services Directorate,Nursing Care - Ext Provider,G311,,
http://opendatacommunities.org/id/london-borough-council/sutton,London Borough of Sutton,06/12/2017,40139750,"17,382.86",Broadlands Nursing Home,10586,Peoples Services Directorate,Nursing Care - Short Term Placements,G328,,
http://opendatacommunities.org/id/london-borough-council/sutton,London Borough of Sutton,06/12/2017,40139751,"3,380.00",Broadlands Nursing Home,10586,Peoples Services Directorate,Nursing Care - Ext Provider,G311,,
http://opendatacommunities.org/id/london-borough-council/sutton,London Borough of Sutton,20/11/2017,1246830,"14,500.00",Brown's School,27856,Peoples Services Directorate,Independent Schools,G325,,
http://opendatacommunities.org/id/london-borough-council/sutton,London Borough of Sutton,30/11/2017,1246566,"3,586.00",Brunswick Cars 9761/1961276/Loc09,10611,Peoples Services Directorate,Hired Peoples Transport (Children),E072,,
http://opendatacommunities.org/id/london-borough-council/sutton,London Borough of Sutton,30/11/2017,1246567,"10,354.00",Brunswick Cars 9761/1961276/Loc09,10611,Peoples Services Directorate,Hired Peoples Transport (Children),E072,,
http://opendatacommunities.org/id/london-borough-council/sutton,London Borough of Sutton,30/11/2017,1246568,"5,885.00",Brunswick Cars 9761/1961276/Loc09,10611,Peoples Services Directorate,Hired Peoples Transport (Children),E072,,
http://opendatacommunities.org/id/london-borough-council/sutton,London Borough of Sutton,30/11/2017,1246569,"3,850.00",Brunswick Cars 9761/1961276/Loc09,10611,Peoples Services Directorate,Hired Peoples Transport (Children),E072,,
http://opendatacommunities.org/id/london-borough-council/sutton,London Borough of Sutton,30/11/2017,1246570,"7,315.00",Brunswick Cars 9761/1961276/Loc09,10611,Peoples Services Directorate,Hired Peoples Transport (Children),E072,,
http://opendatacommunities.org/id/london-borough-council/sutton,London Borough of Sutton,30/11/2017,1246572,"5,874.00",Brunswick Cars 9761/1961276/Loc09,10611,Peoples Services Directorate,Hired Peoples Transport (Children),E072,,
http://opendatacommunities.org/id/london-borough-council/sutton,London Borough of Sutton,30/11/2017,1246573,"6,699.00",Brunswick Cars 9761/1961276/Loc09,10611,Peoples Services Directorate,Hired Peoples Transport (Children),E072,,
http://opendatacommunities.org/id/london-borough-council/sutton,London Borough of Sutton,30/11/2017,1246574,"5,606.00",Brunswick Cars 9761/1961276/Loc09,10611,Peoples Services Directorate,Hired Peoples Transport (Children),E072,,
http://opendatacommunities.org/id/london-borough-council/sutton,London Borough of Sutton,30/11/2017,1246575,"4,334.00",Brunswick Cars 9761/1961276/Loc09,10611,Peoples Services Directorate,Hired Peoples Transport (Children),E072,,
http://opendatacommunities.org/id/london-borough-council/sutton,London Borough of Sutton,30/11/2017,1246576,"3,443.00",Brunswick Cars 9761/1961276/Loc09,10611,Peoples Services Directorate,Hired Peoples Transport (Children),E072,,
http://opendatacommunities.org/id/london-borough-council/sutton,London Borough of Sutton,30/11/2017,1246577,"4,004.00",Brunswick Cars 9761/1961276/Loc09,10611,Peoples Services Directorate,Hired Peoples Transport (Children),E072,,
http://opendatacommunities.org/id/london-borough-council/sutton,London Borough of Sutton,30/11/2017,1246578,"2,134.00",Brunswick Cars 9761/1961276/Loc09,10611,Peoples Services Directorate,Hired Peoples Transport (Children),E072,,
http://opendatacommunities.org/id/london-borough-council/sutton,London Borough of Sutton,30/11/2017,1246579,"6,668.00",Brunswick Cars 9761/1961276/Loc09,10611,Peoples Services Directorate,Hired Peoples Transport (Children),E072,,
http://opendatacommunities.org/id/london-borough-council/sutton,London Borough of Sutton,30/11/2017,1246580,"4,340.00",Brunswick Cars 9761/1961276/Loc09,10611,Peoples Services Directorate,Hired Peoples Transport (Children),E072,,
http://opendatacommunities.org/id/london-borough-council/sutton,London Borough of Sutton,30/11/2017,1246581,"4,828.00",Brunswick Cars 9761/1961276/Loc09,10611,Peoples Services Directorate,Hired Peoples Transport (Children),E072,,
http://opendatacommunities.org/id/london-borough-council/sutton,London Borough of Sutton,30/11/2017,1246582,"2,288.00",Brunswick Cars 9761/1961276/Loc09,10611,Peoples Services Directorate,Hired Peoples Transport (Children),E072,,
http://opendatacommunities.org/id/london-borough-council/sutton,London Borough of Sutton,30/11/2017,1246583,"2,618.00",Brunswick Cars 9761/1961276/Loc09,10611,Peoples Services Directorate,Hired Peoples Transport (Children),E072,,
http://opendatacommunities.org/id/london-borough-council/sutton,London Borough of Sutton,30/11/2017,1246584,"3,984.00",Brunswick Cars 9761/1961276/Loc09,10611,Peoples Services Directorate,Hired Peoples Transport (Children),E072,,
http://opendatacommunities.org/id/london-borough-council/sutton,London Borough of Sutton,30/11/2017,1246585,"3,916.00",Brunswick Cars 9761/1961276/Loc09,10611,Peoples Services Directorate,Hired Peoples Transport (Children),E072,,
http://opendatacommunities.org/id/london-borough-council/sutton,London Borough of Sutton,30/11/2017,1246586,"1,892.00",Brunswick Cars 9761/1961276/Loc09,10611,Peoples Services Directorate,Hired Peoples Transport (Children),E072,,
http://opendatacommunities.org/id/london-borough-council/sutton,London Borough of Sutton,30/11/2017,1246587,"2,068.00",Brunswick Cars 9761/1961276/Loc09,10611,Peoples Services Directorate,Hired Peoples Transport (Children),E072,,
http://opendatacommunities.org/id/london-borough-council/sutton,London Borough of Sutton,30/11/2017,1246588,"2,156.00",Brunswick Cars 9761/1961276/Loc09,10611,Peoples Services Directorate,Hired Peoples Transport (Children),E072,,
http://opendatacommunities.org/id/london-borough-council/sutton,London Borough of Sutton,30/11/2017,1246589,"2,964.00",Brunswick Cars 9761/1961276/Loc09,10611,Peoples Services Directorate,Hired Peoples Transport (Children),E072,,
http://opendatacommunities.org/id/london-borough-council/sutton,London Borough of Sutton,30/11/2017,1246590,"4,422.00",Brunswick Cars 9761/1961276/Loc09,10611,Peoples Services Directorate,Hired Peoples Transport (Children),E072,,
http://opendatacommunities.org/id/london-borough-council/sutton,London Borough of Sutton,30/11/2017,1246591,"2,596.00",Brunswick Cars 9761/1961276/Loc09,10611,Peoples Services Directorate,Hired Peoples Transport (Children),E072,,
http://opendatacommunities.org/id/london-borough-council/sutton,London Borough of Sutton,30/11/2017,1246592,"2,354.00",Brunswick Cars 9761/1961276/Loc09,10611,Peoples Services Directorate,Hired Peoples Transport (Children),E072,,
http://opendatacommunities.org/id/london-borough-council/sutton,London Borough of Sutton,30/11/2017,1246593,"1,782.00",Brunswick Cars 9761/1961276/Loc09,10611,Peoples Services Directorate,Hired Peoples Transport (Children),E072,,
http://opendatacommunities.org/id/london-borough-council/sutton,London Borough of Sutton,30/11/2017,1246594,"2,618.00",Brunswick Cars 9761/1961276/Loc09,10611,Peoples Services Directorate,Hired Peoples Transport (Children),E072,,
http://opendatacommunities.org/id/london-borough-council/sutton,London Borough of Sutton,30/11/2017,1246595,"4,950.00",Brunswick Cars 9761/1961276/Loc09,10611,Peoples Services Directorate,Hired Peoples Transport (Children),E072,,
http://opendatacommunities.org/id/london-borough-council/sutton,London Borough of Sutton,30/11/2017,1246596,"1,184.00",Brunswick Cars 9761/1961276/Loc09,10611,Peoples Services Directorate,Hired Peoples Transport (Children),E072,,
http://opendatacommunities.org/id/london-borough-council/sutton,London Borough of Sutton,30/11/2017,1246597,"1,540.00",Brunswick Cars 9761/1961276/Loc09,10611,Peoples Services Directorate,Hired Peoples Transport (Children),E072,,
http://opendatacommunities.org/id/london-borough-council/sutton,London Borough of Sutton,30/11/2017,1246598,950,Brunswick Cars 9761/1961276/Loc09,10611,Peoples Services Directorate,Hired Peoples Transport (Children),E072,,
http://opendatacommunities.org/id/london-borough-council/sutton,London Borough of Sutton,30/11/2017,1246599,"2,728.00",Brunswick Cars 9761/1961276/Loc09,10611,Peoples Services Directorate,Hired Peoples Transport (Children),E072,,
http://opendatacommunities.org/id/london-borough-council/sutton,London Borough of Sutton,30/11/2017,1246600,"2,816.00",Brunswick Cars 9761/1961276/Loc09,10611,Peoples Services Directorate,Hired Peoples Transport (Children),E072,,
http://opendatacommunities.org/id/london-borough-council/sutton,London Borough of Sutton,30/11/2017,1246601,444,Brunswick Cars 9761/1961276/Loc09,10611,Peoples Services Directorate,Hired Peoples Transport (Children),E072,,
http://opendatacommunities.org/id/london-borough-council/sutton,London Borough of Sutton,30/11/2017,1246602,"5,412.00",Brunswick Cars 9761/1961276/Loc09,10611,Peoples Services Directorate,Hired Peoples Transport (Children),E072,,
http://opendatacommunities.org/id/london-borough-council/sutton,London Borough of Sutton,30/11/2017,1246603,"1,254.00",Brunswick Cars 9761/1961276/Loc09,10611,Peoples Services Directorate,Hired Peoples Transport (Children),E072,,
http://opendatacommunities.org/id/london-borough-council/sutton,London Borough of Sutton,30/11/2017,1246917,"2,706.00",Brunswick Cars 9761/1961276/Loc09,10611,Peoples Services Directorate,Hired Peoples Transport (Children),E072,,
http://opendatacommunities.org/id/london-borough-council/sutton,London Borough of Sutton,30/11/2017,1246918,"3,150.00",Brunswick Cars 9761/1961276/Loc09,10611,Peoples Services Directorate,Hired Peoples Transport (Children),E072,,
http://opendatacommunities.org/id/london-borough-council/sutton,London Borough of Sutton,30/11/2017,1246919,"2,596.00",Brunswick Cars 9761/1961276/Loc09,10611,Peoples Services Directorate,Hired Peoples Transport (Children),E072,,
http://opendatacommunities.org/id/london-borough-council/sutton,London Borough of Sutton,30/11/2017,1246920,"2,331.00",Brunswick Cars 9761/1961276/Loc09,10611,Peoples Services Directorate,Hired Peoples Transport (Children),E072,,
http://opendatacommunities.org/id/london-borough-council/sutton,London Borough of Sutton,30/11/2017,1246921,"5,676.00",Brunswick Cars 9761/1961276/Loc09,10611,Peoples Services Directorate,Hired Peoples Transport (Children),E072,,
http://opendatacommunities.org/id/london-borough-council/sutton,London Borough of Sutton,30/11/2017,1246922,"4,180.00",Brunswick Cars 9761/1961276/Loc09,10611,Peoples Services Directorate,Hired Peoples Transport (Children),E072,,
http://opendatacommunities.org/id/london-borough-council/sutton,London Borough of Sutton,30/11/2017,1247140,"4,928.00",Brunswick Cars 9761/1961276/Loc09,10611,Peoples Services Directorate,Hired Peoples Transport (Children),E072,,
http://opendatacommunities.org/id/london-borough-council/sutton,London Borough of Sutton,30/11/2017,1247142,"6,490.00",Brunswick Cars 9761/1961276/Loc09,10611,Peoples Services Directorate,Hired Peoples Transport (Children),E072,,
http://opendatacommunities.org/id/london-borough-council/sutton,London Borough of Sutton,30/11/2017,1247143,"4,752.00",Brunswick Cars 9761/1961276/Loc09,10611,Peoples Services Directorate,Hired Peoples Transport (Children),E072,,
http://opendatacommunities.org/id/london-borough-council/sutton,London Borough of Sutton,30/11/2017,1247144,"1,892.00",Brunswick Cars 9761/1961276/Loc09,10611,Peoples Services Directorate,Hired Peoples Transport (Children),E072,,
http://opendatacommunities.org/id/london-borough-council/sutton,London Borough of Sutton,30/11/2017,6922129,"168,360.14",Built Off-Site Ltd,28510,Peoples Services Directorate,Building Works -Main Contractor,Y350,,
http://opendatacommunities.org/id/london-borough-council/sutton,London Borough of Sutton,30/11/2017,6922133,840,Buller Hotel,23493,"Environment, Housing & Regeneration Directorate",Bed and Breakfast Accommodation,G400,,
http://opendatacommunities.org/id/london-borough-council/sutton,London Borough of Sutton,30/11/2017,6922134,"1,120.00",Buller Hotel,23493,"Environment, Housing & Regeneration Directorate",Bed and Breakfast Accommodation,G400,,
http://opendatacommunities.org/id/london-borough-council/sutton,London Borough of Sutton,30/11/2017,6922135,"1,050.00",Buller Hotel,23493,"Environment, Housing & Regeneration Directorate",Bed and Breakfast Accommodation,G400,,
http://opendatacommunities.org/id/london-borough-council/sutton,London Borough of Sutton,30/11/2017,6922136,"1,050.00",Buller Hotel,23493,"Environment, Housing & Regeneration Directorate",Bed and Breakfast Accommodation,G400,,
http://opendatacommunities.org/id/london-borough-council/sutton,London Borough of Sutton,30/11/2017,6922139,960,Buller Hotel,23493,"Environment, Housing & Regeneration Directorate",Bed and Breakfast Accommodation,G400,,
http://opendatacommunities.org/id/london-borough-council/sutton,London Borough of Sutton,30/11/2017,6922141,420,Buller Hotel,23493,"Environment, Housing & Regeneration Directorate",Bed and Breakfast Accommodation,G400,,
http://opendatacommunities.org/id/london-borough-council/sutton,London Borough of Sutton,30/11/2017,6922142,"1,050.00",Buller Hotel,23493,"Environment, Housing & Regeneration Directorate",Bed and Breakfast Accommodation,G400,,
http://opendatacommunities.org/id/london-borough-council/sutton,London Borough of Sutton,30/11/2017,6922144,840,Buller Hotel,23493,"Environment, Housing & Regeneration Directorate",Bed and Breakfast Accommodation,G400,,
http://opendatacommunities.org/id/london-borough-council/sutton,London Borough of Sutton,06/12/2017,40139585,"1,868.00",Bupa Care Services,10175,Peoples Services Directorate,Residential Care - Ext Provider,G310,,
http://opendatacommunities.org/id/london-borough-council/sutton,London Borough of Sutton,06/12/2017,40139722,"1,971.80",Bupa Care Services,10175,Peoples Services Directorate,Nursing Care - Ext Provider,G311,,
http://opendatacommunities.org/id/london-borough-council/sutton,London Borough of Sutton,06/12/2017,40139730,"3,436.00",Bupa Care Services,10175,Peoples Services Directorate,Nursing Care - Ext Provider,G311,,
http://opendatacommunities.org/id/london-borough-council/sutton,London Borough of Sutton,02/11/2017,40141051,"1,971.80",Bupa Care Services,10175,Peoples Services Directorate,Nursing Care - Ext Provider,G311,,
http://opendatacommunities.org/id/london-borough-council/sutton,London Borough of Sutton,02/11/2017,40141052,"1,868.00",Bupa Care Services,10175,Peoples Services Directorate,Residential Care - Ext Provider,G310,,
http://opendatacommunities.org/id/london-borough-council/sutton,London Borough of Sutton,06/12/2017,40139387,"2,439.56",Burlington Nursing Home Ltd,19236,Peoples Services Directorate,Nursing Care - Ext Provider,G311,,
http://opendatacommunities.org/id/london-borough-council/sutton,London Borough of Sutton,06/12/2017,40139539,"7,824.28",Butterfly's Care Homes Ltd,28860,Peoples Services Directorate,Residential Care - Ext Provider,G310,,
http://opendatacommunities.org/id/london-borough-council/sutton,London Borough of Sutton,01/12/2017,40139242,"4,559.40",By The Bridge Ltd,25655,Peoples Services Directorate,Foster Parents,G326,,
http://opendatacommunities.org/id/london-borough-council/sutton,London Borough of Sutton,01/12/2017,40139243,"3,786.64",By The Bridge Ltd,25655,Peoples Services Directorate,Foster Parents,G326,,
http://opendatacommunities.org/id/london-borough-council/sutton,London Borough of Sutton,01/12/2017,40139367,"5,438.85",By The Bridge Ltd,25655,Peoples Services Directorate,Foster Parents,G326,,
http://opendatacommunities.org/id/london-borough-council/sutton,London Borough of Sutton,01/12/2017,40139377,"3,786.64",By The Bridge Ltd,25655,Peoples Services Directorate,Foster Parents,G326,,
http://opendatacommunities.org/id/london-borough-council/sutton,London Borough of Sutton,01/12/2017,40139378,"4,246.50",By The Bridge Ltd,25655,Peoples Services Directorate,Foster Parents,G326,,
http://opendatacommunities.org/id/london-borough-council/sutton,London Borough of Sutton,20/11/2017,6920505,912,C.E.R Investments Ltd,26967,"Environment, Housing & Regeneration Directorate",Temporary Protection - Homeless Persons,H300,,
http://opendatacommunities.org/id/london-borough-council/sutton,London Borough of Sutton,20/12/2017,6922299,912,C.E.R Investments Ltd,26967,"Environment, Housing & Regeneration Directorate",Temporary Protection - Homeless Persons,H300,,
http://opendatacommunities.org/id/london-borough-council/sutton,London Borough of Sutton,28/11/2017,40137320,"7,500.00",C.J. Construction (Surrey) Ltd,97637,Peoples Services Directorate,Building Works -Main Contractor,Y350,,
http://opendatacommunities.org/id/london-borough-council/sutton,London Borough of Sutton,01/11/2017,40139289,"4,285.80",Caldecott Fostering Ltd,26730,Peoples Services Directorate,Foster Parents,G326,,
http://opendatacommunities.org/id/london-borough-council/sutton,London Borough of Sutton,07/12/2017,6922023,660,Calm Training Ltd,29698,Peoples Services Directorate,Training - Course Fees,A520,,
http://opendatacommunities.org/id/london-borough-council/sutton,London Borough of Sutton,25/08/2017,1246035,"17,653.44",Cambian Asperger Syndrome Services Ltd,12082,Peoples Services Directorate,Independent Schools,G325,,
http://opendatacommunities.org/id/london-borough-council/sutton,London Borough of Sutton,15/11/2017,1246848,"17,653.44",Cambian Asperger Syndrome Services Ltd,12082,Peoples Services Directorate,Independent Schools,G325,,
http://opendatacommunities.org/id/london-borough-council/sutton,London Borough of Sutton,06/12/2017,40139792,"4,705.24",Cambian Asperger Syndrome Services Ltd,12082,Peoples Services Directorate,Residential Care - Ext Provider,G310,,
http://opendatacommunities.org/id/london-borough-council/sutton,London Borough of Sutton,15/11/2017,1246822,"19,685.48",Cambian Autism Services Ltd,12064,Peoples Services Directorate,Independent Schools,G325,,
http://opendatacommunities.org/id/london-borough-council/sutton,London Borough of Sutton,15/11/2017,1246822,"27,184.72",Cambian Autism Services Ltd,12064,Peoples Services Directorate,Residential Care-Children,G330,,
http://opendatacommunities.org/id/london-borough-council/sutton,London Borough of Sutton,09/11/2017,40139336,"17,571.30",Cambian Childcare Ltd,26117,Peoples Services Directorate,Residential Care-Children,G330,,
http://opendatacommunities.org/id/london-borough-council/sutton,London Borough of Sutton,06/12/2017,40139441,"4,610.55",Canterbury Oast Trust,10755,Peoples Services Directorate,Residential Care - Client Cont ( Net Paymt ),G351,,
http://opendatacommunities.org/id/london-borough-council/sutton,London Borough of Sutton,02/11/2017,40139312,"5,554.20",Capstone Foster Care (South East) Ltd,16360,Peoples Services Directorate,Foster Parents,G326,,
http://opendatacommunities.org/id/london-borough-council/sutton,London Borough of Sutton,02/11/2017,40139313,"3,321.60",Capstone Foster Care (South East) Ltd,16360,Peoples Services Directorate,Foster Parents,G326,,
http://opendatacommunities.org/id/london-borough-council/sutton,London Borough of Sutton,27/11/2017,40139381,"4,440.00",Capstone Foster Care (South East) Ltd,16360,Peoples Services Directorate,Foster Parents,G326,,
http://opendatacommunities.org/id/london-borough-council/sutton,London Borough of Sutton,02/11/2017,40139296,"21,428.70",Care 4 Children Residential Services Ltd,29992,Peoples Services Directorate,Residential Care-Children,G330,,
http://opendatacommunities.org/id/london-borough-council/sutton,London Borough of Sutton,25/10/2017,40141056,"2,429.36",Care Base(Redhill)Ltd t/a Acorn Court Care Home,24206,Peoples Services Directorate,Residential Care - Ext Provider,G310,,
http://opendatacommunities.org/id/london-borough-council/sutton,London Borough of Sutton,01/12/2017,6921207,"5,585.08",Care Connections Ltd,10798,Peoples Services Directorate,Supported Living - Ext Provider,G306,,
http://opendatacommunities.org/id/london-borough-council/sutton,London Borough of Sutton,01/01/2018,6922575,"5,585.08",Care Connections Ltd,10798,Peoples Services Directorate,Supported Living - Ext Provider,G306,,
http://opendatacommunities.org/id/london-borough-council/sutton,London Borough of Sutton,06/12/2017,40139499,"3,053.24",Care Direct Uk Ltd  (David House),27080,Peoples Services Directorate,Residential Care - Ext Provider,G310,,
http://opendatacommunities.org/id/london-borough-council/sutton,London Borough of Sutton,06/12/2017,40139752,"3,080.00",Care Direct Uk Ltd  (David House),27080,Peoples Services Directorate,Residential Care - Ext Provider,G310,,
http://opendatacommunities.org/id/london-borough-council/sutton,London Borough of Sutton,08/08/2017,5015700,"1,442.00",Care Management Group,28952,Peoples Services Directorate,Telephones - Other Expenses,F373,,
http://opendatacommunities.org/id/london-borough-council/sutton,London Borough of Sutton,06/12/2017,40139428,"3,800.00",Care UK Homecare Ltd,10853,Peoples Services Directorate,Nursing Care - Ext Provider,G311,,
http://opendatacommunities.org/id/london-borough-council/sutton,London Borough of Sutton,06/12/2017,40139442,"1,692.00",Care Unlimited Group Ltd,10774,Peoples Services Directorate,Residential Care - Ext Provider,G310,,
http://opendatacommunities.org/id/london-borough-council/sutton,London Borough of Sutton,06/12/2017,40139537,"1,780.00",Care Unlimited Group Ltd,10774,Peoples Services Directorate,Residential Care - Ext Provider,G310,,
http://opendatacommunities.org/id/london-borough-council/sutton,London Borough of Sutton,06/12/2017,40139594,755,Care Unlimited Group Ltd,10774,Peoples Services Directorate,Interim Placements - Ext Provider,G317,,
http://opendatacommunities.org/id/london-borough-council/sutton,London Borough of Sutton,06/12/2017,40139640,"2,550.00",Care Unlimited Group Ltd,10774,Peoples Services Directorate,Interim Placements - Ext Provider,G317,,
http://opendatacommunities.org/id/london-borough-council/sutton,London Borough of Sutton,19/11/2017,40137842,516.45,Caremark (Sutton),25541,Peoples Services Directorate,Home Care,G334,,
http://opendatacommunities.org/id/london-borough-council/sutton,London Borough of Sutton,19/11/2017,40137852,712.08,Caremark (Sutton),25541,Peoples Services Directorate,Home Care,G334,,
http://opendatacommunities.org/id/london-borough-council/sutton,London Borough of Sutton,19/11/2017,40137869,766.85,Caremark (Sutton),25541,Peoples Services Directorate,Home Care,G334,,
http://opendatacommunities.org/id/london-borough-council/sutton,London Borough of Sutton,19/11/2017,40137885,547.75,Caremark (Sutton),25541,Peoples Services Directorate,Home Care,G334,,
http://opendatacommunities.org/id/london-borough-council/sutton,London Borough of Sutton,19/11/2017,40137907,603.81,Caremark (Sutton),25541,Peoples Services Directorate,Home Care,G334,,
http://opendatacommunities.org/id/london-borough-council/sutton,London Borough of Sutton,26/11/2017,40140166,712.08,Caremark (Sutton),25541,Peoples Services Directorate,Home Care,G334,,
http://opendatacommunities.org/id/london-borough-council/sutton,London Borough of Sutton,03/12/2017,40140167,649.48,Caremark (Sutton),25541,Peoples Services Directorate,Home Care,G334,,
http://opendatacommunities.org/id/london-borough-council/sutton,London Borough of Sutton,26/11/2017,40140181,547.75,Caremark (Sutton),25541,Peoples Services Directorate,Home Care,G334,,
http://opendatacommunities.org/id/london-borough-council/sutton,London Borough of Sutton,03/12/2017,40140182,563.4,Caremark (Sutton),25541,Peoples Services Directorate,Home Care,G334,,
http://opendatacommunities.org/id/london-borough-council/sutton,London Borough of Sutton,26/11/2017,40140197,712.08,Caremark (Sutton),25541,Peoples Services Directorate,Home Care,G334,,
http://opendatacommunities.org/id/london-borough-council/sutton,London Borough of Sutton,03/12/2017,40140198,712.08,Caremark (Sutton),25541,Peoples Services Directorate,Home Care,G334,,
http://opendatacommunities.org/id/london-borough-council/sutton,London Borough of Sutton,26/11/2017,40140208,766.85,Caremark (Sutton),25541,Peoples Services Directorate,Home Care,G334,,
http://opendatacommunities.org/id/london-borough-council/sutton,London Borough of Sutton,03/12/2017,40140209,766.85,Caremark (Sutton),25541,Peoples Services Directorate,Home Care,G334,,
http://opendatacommunities.org/id/london-borough-council/sutton,London Borough of Sutton,26/11/2017,40140211,547.75,Caremark (Sutton),25541,Peoples Services Directorate,Home Care,G334,,
http://opendatacommunities.org/id/london-borough-council/sutton,London Borough of Sutton,03/12/2017,40140212,547.75,Caremark (Sutton),25541,Peoples Services Directorate,Home Care,G334,,
http://opendatacommunities.org/id/london-borough-council/sutton,London Borough of Sutton,26/11/2017,40140245,603.81,Caremark (Sutton),25541,Peoples Services Directorate,Home Care,G334,,
http://opendatacommunities.org/id/london-borough-council/sutton,London Borough of Sutton,03/12/2017,40140246,603.81,Caremark (Sutton),25541,Peoples Services Directorate,Home Care,G334,,
http://opendatacommunities.org/id/london-borough-council/sutton,London Borough of Sutton,30/11/2017,6922245,554.85,Caretech,10783,Peoples Services Directorate,Furniture - Repairs and Maintenance,F081,,
http://opendatacommunities.org/id/london-borough-council/sutton,London Borough of Sutton,06/12/2017,40139432,"5,270.48",Caretech Community Services Ltd,10791,Peoples Services Directorate,Residential Care - Ext Provider,G310,,
http://opendatacommunities.org/id/london-borough-council/sutton,London Borough of Sutton,06/12/2017,40139433,"5,270.48",Caretech Community Services Ltd,10791,Peoples Services Directorate,Residential Care - Ext Provider,G310,,
http://opendatacommunities.org/id/london-borough-council/sutton,London Borough of Sutton,06/12/2017,40139675,"5,405.88",Caretech Community Services Ltd,10791,Peoples Services Directorate,Residential Care - Ext Provider,G310,,
http://opendatacommunities.org/id/london-borough-council/sutton,London Borough of Sutton,06/12/2017,40139783,"5,270.48",Caretech Community Services Ltd,10791,Peoples Services Directorate,Residential Care - Ext Provider,G310,,
http://opendatacommunities.org/id/london-borough-council/sutton,London Borough of Sutton,01/11/2017,40142168,"2,025.00",Caretech Community Services Ltd,10791,Peoples Services Directorate,One to One Care,G335,,
http://opendatacommunities.org/id/london-borough-council/sutton,London Borough of Sutton,06/12/2017,40139416,"2,625.28",Carlene House,10763,Peoples Services Directorate,Residential Care - Ext Provider,G310,,
http://opendatacommunities.org/id/london-borough-council/sutton,London Borough of Sutton,06/12/2017,40139513,"2,740.64",Carlene House,10763,Peoples Services Directorate,Residential Care - Ext Provider,G310,,
http://opendatacommunities.org/id/london-borough-council/sutton,London Borough of Sutton,06/12/2017,40139514,"2,654.68",Carlene House,10763,Peoples Services Directorate,Residential Care - Ext Provider,G310,,
http://opendatacommunities.org/id/london-borough-council/sutton,London Borough of Sutton,06/12/2017,40139515,"2,630.60",Carlene House,10763,Peoples Services Directorate,Residential Care - Ext Provider,G310,,
http://opendatacommunities.org/id/london-borough-council/sutton,London Borough of Sutton,06/12/2017,40139516,"4,440.00",Carlene House,10763,Peoples Services Directorate,Residential Care - Ext Provider,G310,,
http://opendatacommunities.org/id/london-borough-council/sutton,London Borough of Sutton,06/12/2017,40139617,"2,625.28",Carlene House,10763,Peoples Services Directorate,Residential Care - Ext Provider,G310,,
http://opendatacommunities.org/id/london-borough-council/sutton,London Borough of Sutton,06/12/2017,40139766,"2,682.68",Carlene House,10763,Peoples Services Directorate,Residential Care - Ext Provider,G310,,
http://opendatacommunities.org/id/london-borough-council/sutton,London Borough of Sutton,31/10/2017,40142208,"1,675.00",Carlene House,10763,Peoples Services Directorate,Supported Living - Ext Provider,G306,,
http://opendatacommunities.org/id/london-borough-council/sutton,London Borough of Sutton,31/10/2017,40142210,"1,340.00",Carlene House,10763,Peoples Services Directorate,Supported Living - Ext Provider,G306,,
http://opendatacommunities.org/id/london-borough-council/sutton,London Borough of Sutton,19/12/2017,6922376,"247,500.00",Carpenter & Co Solicitors Client Acc,99827,Peoples Services Directorate,Purchase Price,Y010,,
http://opendatacommunities.org/id/london-borough-council/sutton,London Borough of Sutton,13/12/2017,6921929,"27,500.00",Carpenter & Co. Client Account,99827,Peoples Services Directorate,Purchase Price,Y010,,
http://opendatacommunities.org/id/london-borough-council/sutton,London Borough of Sutton,15/11/2017,40139352,"14,895.69",Castle Homes Ltd,10759,Peoples Services Directorate,Residential Care-Children,G330,,
http://opendatacommunities.org/id/london-borough-council/sutton,London Borough of Sutton,18/10/2017,6918912,507.3,Castle Water Ltd (collection account - Thames (other),27112,Peoples Services Directorate,Sewerage - Metered,D695,,
http://opendatacommunities.org/id/london-borough-council/sutton,London Borough of Sutton,26/07/2017,6921563,"1,400.33",Castle Water Ltd (collection account - Thames (other),27112,Peoples Services Directorate,Sewerage - Metered,D695,,
http://opendatacommunities.org/id/london-borough-council/sutton,London Borough of Sutton,18/10/2017,6921564,758.09,Castle Water Ltd (collection account - Thames (other),27112,Peoples Services Directorate,Sewerage - Metered,D695,,
http://opendatacommunities.org/id/london-borough-council/sutton,London Borough of Sutton,23/11/2017,6920710,-500,Castleton Software Solutions Ltd,28711,HRA Directorate,IT Equipment - Repair and Maintenance,F382,,
http://opendatacommunities.org/id/london-borough-council/sutton,London Borough of Sutton,20/10/2017,6920716,"4,150.00",Castleton Software Solutions Ltd,28711,HRA Directorate,IT Equipment - Repair and Maintenance,F382,,
http://opendatacommunities.org/id/london-borough-council/sutton,London Borough of Sutton,12/10/2017,6921240,"1,055.95",Caysh Enterprise Cic,28016,Peoples Services Directorate,Approved Lodgings,H323,,
http://opendatacommunities.org/id/london-borough-council/sutton,London Borough of Sutton,12/12/2017,6921818,"1,055.95",Caysh Enterprise Cic,28016,Peoples Services Directorate,Approved Lodgings,H323,,
http://opendatacommunities.org/id/london-borough-council/sutton,London Borough of Sutton,21/12/2017,1246923,"29,666.67",Caysh Housing Project,23133,"Environment, Housing & Regeneration Directorate",Supporting People - Teenage Parent Services,H247,,
http://opendatacommunities.org/id/london-borough-council/sutton,London Borough of Sutton,30/11/2017,6921090,"1,321.50",Caysh Housing Project,23133,Peoples Services Directorate,Approved Lodgings,H323,,
http://opendatacommunities.org/id/london-borough-council/sutton,London Borough of Sutton,30/11/2017,6921091,"1,254.60",Caysh Housing Project,23133,Peoples Services Directorate,Approved Lodgings,H323,,
http://opendatacommunities.org/id/london-borough-council/sutton,London Borough of Sutton,30/11/2017,6921092,"1,254.60",Caysh Housing Project,23133,Peoples Services Directorate,Approved Lodgings,H323,,
http://opendatacommunities.org/id/london-borough-council/sutton,London Borough of Sutton,30/11/2017,6921093,"1,321.50",Caysh Housing Project,23133,Peoples Services Directorate,Approved Lodgings,H323,,
http://opendatacommunities.org/id/london-borough-council/sutton,London Borough of Sutton,30/11/2017,6921094,"1,321.50",Caysh Housing Project,23133,Peoples Services Directorate,Approved Lodgings,H323,,
http://opendatacommunities.org/id/london-borough-council/sutton,London Borough of Sutton,30/11/2017,6921095,"1,215.60",Caysh Housing Project,23133,Peoples Services Directorate,Approved Lodgings,H323,,
http://opendatacommunities.org/id/london-borough-council/sutton,London Borough of Sutton,30/11/2017,6921096,"1,215.60",Caysh Housing Project,23133,Peoples Services Directorate,Approved Lodgings,H323,,
http://opendatacommunities.org/id/london-borough-council/sutton,London Borough of Sutton,30/11/2017,6921097,"1,215.39",Caysh Housing Project,23133,Peoples Services Directorate,Approved Lodgings,H323,,
http://opendatacommunities.org/id/london-borough-council/sutton,London Borough of Sutton,30/11/2017,6921098,"1,190.10",Caysh Housing Project,23133,Peoples Services Directorate,Approved Lodgings,H323,,
http://opendatacommunities.org/id/london-borough-council/sutton,London Borough of Sutton,30/11/2017,6921099,460.02,Caysh Housing Project,23133,Peoples Services Directorate,Approved Lodgings,H323,,
http://opendatacommunities.org/id/london-borough-council/sutton,London Borough of Sutton,30/11/2017,6921100,"1,200.30",Caysh Housing Project,23133,Peoples Services Directorate,Approved Lodgings,H323,,
http://opendatacommunities.org/id/london-borough-council/sutton,London Borough of Sutton,03/07/2017,6921149,"-2,431.85",Caysh Housing Project,23133,Peoples Services Directorate,Approved Lodgings,H323,,
http://opendatacommunities.org/id/london-borough-council/sutton,London Borough of Sutton,01/11/2017,40139279,"5,785.80",Channels & Choices Theraputic Fostering Ltd,25665,Peoples Services Directorate,Foster Parents,G326,,
http://opendatacommunities.org/id/london-borough-council/sutton,London Borough of Sutton,01/11/2017,40139280,"5,785.80",Channels & Choices Theraputic Fostering Ltd,25665,Peoples Services Directorate,Foster Parents,G326,,
http://opendatacommunities.org/id/london-borough-council/sutton,London Borough of Sutton,20/11/2017,6921069,"4,000.00",Cheam Common Junior Academy,28932,"Environment, Housing & Regeneration Directorate",Earmarked Reserves - General,X680,,
http://opendatacommunities.org/id/london-borough-council/sutton,London Borough of Sutton,30/11/2017,1246540,850,Cheam Station Cars,15604,Peoples Services Directorate,Hired Peoples Transport (Children),E072,,
http://opendatacommunities.org/id/london-borough-council/sutton,London Borough of Sutton,30/11/2017,1246541,"2,052.00",Cheam Station Cars,15604,Peoples Services Directorate,Hired Peoples Transport (Children),E072,,
http://opendatacommunities.org/id/london-borough-council/sutton,London Borough of Sutton,30/11/2017,1246542,560,Cheam Station Cars,15604,Peoples Services Directorate,Hired Peoples Transport (Children),E072,,
http://opendatacommunities.org/id/london-borough-council/sutton,London Borough of Sutton,30/11/2017,1246543,"3,812.00",Cheam Station Cars,15604,Peoples Services Directorate,Hired Peoples Transport (Children),E072,,
http://opendatacommunities.org/id/london-borough-council/sutton,London Borough of Sutton,30/11/2017,1246544,"1,075.00",Cheam Station Cars,15604,Peoples Services Directorate,Hired Peoples Transport (Children),E072,,
http://opendatacommunities.org/id/london-borough-council/sutton,London Borough of Sutton,30/11/2017,1246545,"1,290.00",Cheam Station Cars,15604,Peoples Services Directorate,Hired Peoples Transport (Children),E072,,
http://opendatacommunities.org/id/london-borough-council/sutton,London Borough of Sutton,30/11/2017,1246546,650,Cheam Station Cars,15604,Peoples Services Directorate,Hired Peoples Transport (Children),E072,,
http://opendatacommunities.org/id/london-borough-council/sutton,London Borough of Sutton,30/11/2017,1246547,448,Cheam Station Cars,15604,Peoples Services Directorate,Hired Peoples Transport (Children),E072,,
http://opendatacommunities.org/id/london-borough-council/sutton,London Borough of Sutton,30/11/2017,1246548,"2,151.00",Cheam Station Cars,15604,Peoples Services Directorate,Hired Peoples Transport (Children),E072,,
http://opendatacommunities.org/id/london-borough-council/sutton,London Borough of Sutton,30/11/2017,1246549,"3,432.00",Cheam Station Cars,15604,Peoples Services Directorate,Hired Peoples Transport (Children),E072,,
http://opendatacommunities.org/id/london-borough-council/sutton,London Borough of Sutton,30/11/2017,1246550,"1,730.00",Cheam Station Cars,15604,Peoples Services Directorate,Hired Peoples Transport (Children),E072,,
http://opendatacommunities.org/id/london-borough-council/sutton,London Borough of Sutton,30/11/2017,1246551,770,Cheam Station Cars,15604,Peoples Services Directorate,Hired Peoples Transport (Children),E072,,
http://opendatacommunities.org/id/london-borough-council/sutton,London Borough of Sutton,30/11/2017,1246552,"3,532.00",Cheam Station Cars,15604,Peoples Services Directorate,Hired Peoples Transport (Children),E072,,
http://opendatacommunities.org/id/london-borough-council/sutton,London Borough of Sutton,30/11/2017,1246553,965,Cheam Station Cars,15604,Peoples Services Directorate,Hired Peoples Transport (Children),E072,,
http://opendatacommunities.org/id/london-borough-council/sutton,London Borough of Sutton,30/11/2017,1246554,"1,184.00",Cheam Station Cars,15604,Peoples Services Directorate,Hired Peoples Transport (Children),E072,,
http://opendatacommunities.org/id/london-borough-council/sutton,London Borough of Sutton,30/11/2017,1246555,"3,150.00",Cheam Station Cars,15604,Peoples Services Directorate,Hired Peoples Transport (Children),E072,,
http://opendatacommunities.org/id/london-borough-council/sutton,London Borough of Sutton,30/11/2017,1246556,"1,100.00",Cheam Station Cars,15604,Peoples Services Directorate,Hired Peoples Transport (Children),E072,,
http://opendatacommunities.org/id/london-borough-council/sutton,London Borough of Sutton,30/11/2017,1246557,805,Cheam Station Cars,15604,Peoples Services Directorate,Hired Peoples Transport (Children),E072,,
http://opendatacommunities.org/id/london-borough-council/sutton,London Borough of Sutton,30/11/2017,1246558,"3,385.00",Cheam Station Cars,15604,Peoples Services Directorate,Hired Peoples Transport (Children),E072,,
http://opendatacommunities.org/id/london-borough-council/sutton,London Borough of Sutton,30/11/2017,1246559,"1,230.00",Cheam Station Cars,15604,Peoples Services Directorate,Hired Peoples Transport (Children),E072,,
http://opendatacommunities.org/id/london-borough-council/sutton,London Borough of Sutton,30/11/2017,1246560,"2,520.00",Cheam Station Cars,15604,Peoples Services Directorate,Hired Peoples Transport (Children),E072,,
http://opendatacommunities.org/id/london-borough-council/sutton,London Borough of Sutton,30/11/2017,1246561,"1,200.00",Cheam Station Cars,15604,Peoples Services Directorate,Hired Peoples Transport (Children),E072,,
http://opendatacommunities.org/id/london-borough-council/sutton,London Borough of Sutton,30/11/2017,1246562,"1,568.00",Cheam Station Cars,15604,Peoples Services Directorate,Hired Peoples Transport (Children),E072,,
http://opendatacommunities.org/id/london-borough-council/sutton,London Borough of Sutton,30/11/2017,1246563,500,Cheam Station Cars,15604,Peoples Services Directorate,Hired Peoples Transport (Children),E072,,
http://opendatacommunities.org/id/london-borough-council/sutton,London Borough of Sutton,30/11/2017,1246564,"1,635.00",Cheam Station Cars,15604,Peoples Services Directorate,Hired Peoples Transport (Children),E072,,
http://opendatacommunities.org/id/london-borough-council/sutton,London Borough of Sutton,30/11/2017,1246913,"2,552.00",Cheam Station Cars,15604,Peoples Services Directorate,Hired Peoples Transport (Children),E072,,
http://opendatacommunities.org/id/london-borough-council/sutton,London Borough of Sutton,30/11/2017,1246914,"2,310.00",Cheam Station Cars,15604,Peoples Services Directorate,Hired Peoples Transport (Children),E072,,
http://opendatacommunities.org/id/london-borough-council/sutton,London Borough of Sutton,30/11/2017,1246915,"3,740.00",Cheam Station Cars,15604,Peoples Services Directorate,Hired Peoples Transport (Children),E072,,
http://opendatacommunities.org/id/london-borough-council/sutton,London Borough of Sutton,06/12/2017,40139498,"3,400.00",Chegworth Nursing Home Bayswift Ltd,10908,Peoples Services Directorate,Nursing Care - Ext Provider,G311,,
http://opendatacommunities.org/id/london-borough-council/sutton,London Borough of Sutton,06/12/2017,40139605,"2,781.64",Chegworth Nursing Home Bayswift Ltd,10908,Peoples Services Directorate,Nursing Care - Ext Provider,G311,,
http://opendatacommunities.org/id/london-borough-council/sutton,London Borough of Sutton,06/12/2017,40139606,"1,928.24",Chegworth Nursing Home Bayswift Ltd,10908,Peoples Services Directorate,Nursing Care - Ext Provider,G311,,
http://opendatacommunities.org/id/london-borough-council/sutton,London Borough of Sutton,06/12/2017,40139654,"1,904.00",Chegworth Nursing Home Bayswift Ltd,10908,Peoples Services Directorate,Nursing Care - Ext Provider,G311,,
http://opendatacommunities.org/id/london-borough-council/sutton,London Borough of Sutton,06/12/2017,40139701,"3,200.00",Chegworth Nursing Home Bayswift Ltd,10908,Peoples Services Directorate,Nursing Care - Ext Provider,G311,,
http://opendatacommunities.org/id/london-borough-council/sutton,London Borough of Sutton,06/12/2017,40139801,"3,400.01",Chegworth Nursing Home Bayswift Ltd,10908,Peoples Services Directorate,Nursing Care - Ext Provider,G311,,
http://opendatacommunities.org/id/london-borough-council/sutton,London Borough of Sutton,27/11/2017,6921448,"92,186.29",Chelsea and Westminster NHS ft,28891,Chief Executive's Directorate,Provider Contract Payments,F470,,
http://opendatacommunities.org/id/london-borough-council/sutton,London Borough of Sutton,27/11/2017,6921449,"90,875.83",Chelsea and Westminster NHS ft,28891,Chief Executive's Directorate,Provider Contract Payments,F470,,
http://opendatacommunities.org/id/london-borough-council/sutton,London Borough of Sutton,27/11/2017,6921450,674.37,Chelsea and Westminster NHS ft,28891,Chief Executive's Directorate,Provider Contract Payments,F470,,
http://opendatacommunities.org/id/london-borough-council/sutton,London Borough of Sutton,01/12/2017,6921892,"6,219.58",Chelsea and Westminster NHS ft,28891,Chief Executive's Directorate,Provider Contract Payments,F470,,
http://opendatacommunities.org/id/london-borough-council/sutton,London Borough of Sutton,01/12/2017,6921893,"9,513.61",Chelsea and Westminster NHS ft,28891,Chief Executive's Directorate,Provider Contract Payments,F470,,
http://opendatacommunities.org/id/london-borough-council/sutton,London Borough of Sutton,18/12/2017,6922308,939,Chelsea Studios Ltd,99898,"Environment, Housing & Regeneration Directorate",Depositors,X460,,
http://opendatacommunities.org/id/london-borough-council/sutton,London Borough of Sutton,18/12/2017,6922308,"3,000.00",Chelsea Studios Ltd,99898,"Environment, Housing & Regeneration Directorate",Depositors,X460,,
http://opendatacommunities.org/id/london-borough-council/sutton,London Borough of Sutton,29/10/2017,40136785,686,Chenash Homecare Specialists And Care Agency,25667,Peoples Services Directorate,Home Care,G334,,
http://opendatacommunities.org/id/london-borough-council/sutton,London Borough of Sutton,05/11/2017,40136952,420,Chenash Homecare Specialists And Care Agency,25667,Peoples Services Directorate,Home Care,G334,,
http://opendatacommunities.org/id/london-borough-council/sutton,London Borough of Sutton,30/10/2017,40144700,"2,114.00",Chenash Homecare Specialists And Care Agency,25667,Peoples Services Directorate,Home Care,G334,,
http://opendatacommunities.org/id/london-borough-council/sutton,London Borough of Sutton,06/11/2017,40144701,"2,114.00",Chenash Homecare Specialists And Care Agency,25667,Peoples Services Directorate,Home Care,G334,,
http://opendatacommunities.org/id/london-borough-council/sutton,London Borough of Sutton,10/10/2017,40144741,"1,952.00",Chenash Homecare Specialists And Care Agency,25667,Peoples Services Directorate,Home Care,G334,,
http://opendatacommunities.org/id/london-borough-council/sutton,London Borough of Sutton,16/10/2017,40144742,"1,952.00",Chenash Homecare Specialists And Care Agency,25667,Peoples Services Directorate,Home Care,G334,,
http://opendatacommunities.org/id/london-borough-council/sutton,London Borough of Sutton,23/10/2017,40144743,"1,952.00",Chenash Homecare Specialists And Care Agency,25667,Peoples Services Directorate,Home Care,G334,,
http://opendatacommunities.org/id/london-borough-council/sutton,London Borough of Sutton,14/11/2017,40144744,"1,952.00",Chenash Homecare Specialists And Care Agency,25667,Peoples Services Directorate,Home Care,G334,,
http://opendatacommunities.org/id/london-borough-council/sutton,London Borough of Sutton,20/11/2017,40144745,"1,952.00",Chenash Homecare Specialists And Care Agency,25667,Peoples Services Directorate,Home Care,G334,,
http://opendatacommunities.org/id/london-borough-council/sutton,London Borough of Sutton,20/11/2017,40144746,"1,952.00",Chenash Homecare Specialists And Care Agency,25667,Peoples Services Directorate,Home Care,G334,,
http://opendatacommunities.org/id/london-borough-council/sutton,London Borough of Sutton,04/12/2017,40144754,"1,952.00",Chenash Homecare Specialists And Care Agency,25667,Peoples Services Directorate,Home Care,G334,,
http://opendatacommunities.org/id/london-borough-council/sutton,London Borough of Sutton,11/12/2017,40144755,"1,952.00",Chenash Homecare Specialists And Care Agency,25667,Peoples Services Directorate,Home Care,G334,,
http://opendatacommunities.org/id/london-borough-council/sutton,London Borough of Sutton,18/12/2017,40144756,"1,952.00",Chenash Homecare Specialists And Care Agency,25667,Peoples Services Directorate,Home Care,G334,,
http://opendatacommunities.org/id/london-borough-council/sutton,London Borough of Sutton,06/12/2017,40139431,"3,360.00",Cherry Lodge,10934,Peoples Services Directorate,Residential Care - Ext Provider,G310,,
http://opendatacommunities.org/id/london-borough-council/sutton,London Borough of Sutton,06/12/2017,40139782,"2,725.00",Cherry Lodge,10934,Peoples Services Directorate,Residential Care - Ext Provider,G310,,
http://opendatacommunities.org/id/london-borough-council/sutton,London Borough of Sutton,06/12/2017,40139487,"17,947.32",CHHG Ltd T/A Belmont House,29991,Peoples Services Directorate,Nursing Care - Ext Provider,G311,,
http://opendatacommunities.org/id/london-borough-council/sutton,London Borough of Sutton,01/11/2017,40139308,"3,342.90",Children First Fostering Agency,21215,Peoples Services Directorate,Foster Parents,G326,,
http://opendatacommunities.org/id/london-borough-council/sutton,London Borough of Sutton,01/11/2017,40139309,"4,321.80",Children First Fostering Agency,21215,Peoples Services Directorate,Foster Parents,G326,,
http://opendatacommunities.org/id/london-borough-council/sutton,London Borough of Sutton,01/11/2017,40139310,"3,229.80",Children First Fostering Agency,21215,Peoples Services Directorate,Foster Parents,G326,,
http://opendatacommunities.org/id/london-borough-council/sutton,London Borough of Sutton,01/11/2017,40139290,"4,417.80",Children of All Nations,19625,Peoples Services Directorate,Foster Parents,G326,,
http://opendatacommunities.org/id/london-borough-council/sutton,London Borough of Sutton,01/12/2017,6921139,"3,558.80",Children of Colour,16870,Peoples Services Directorate,Approved Lodgings,H323,,
http://opendatacommunities.org/id/london-borough-council/sutton,London Borough of Sutton,23/11/2017,40139248,"3,444.00",Children of Colour,16870,Peoples Services Directorate,Foster Parents,G326,,
http://opendatacommunities.org/id/london-borough-council/sutton,London Borough of Sutton,01/11/2017,40139282,"2,898.00",Children of Colour,16870,Peoples Services Directorate,Foster Parents,G326,,
http://opendatacommunities.org/id/london-borough-council/sutton,London Borough of Sutton,01/11/2017,40139283,"3,276.00",Children of Colour,16870,Peoples Services Directorate,Foster Parents,G326,,
http://opendatacommunities.org/id/london-borough-council/sutton,London Borough of Sutton,05/12/2017,6921321,750,Chinara Enterprises Ltd,29870,Peoples Services Directorate,Training - Course Fees,A520,,
http://opendatacommunities.org/id/london-borough-council/sutton,London Borough of Sutton,06/12/2017,40139584,"7,682.20",Choice Care Group,22029,Peoples Services Directorate,Residential Care - Ext Provider,G310,,
http://opendatacommunities.org/id/london-borough-council/sutton,London Borough of Sutton,06/12/2017,40139631,"7,511.00",Choice Care Group,22029,Peoples Services Directorate,Residential Care - Ext Provider,G310,,
http://opendatacommunities.org/id/london-borough-council/sutton,London Borough of Sutton,02/11/2017,40142237,"2,228.57",Choice Care Group,22029,Peoples Services Directorate,Supported Living - Ext Provider,G306,,
http://opendatacommunities.org/id/london-borough-council/sutton,London Borough of Sutton,06/12/2017,40139486,"3,000.00",Christchurch Fairmile Village Llp,27141,Peoples Services Directorate,Nursing Care - Ext Provider,G311,,
http://opendatacommunities.org/id/london-borough-council/sutton,London Borough of Sutton,21/11/2017,6922262,"3,000.00",Christopher Ransome    (Baltar Media Ltd),30038,Peoples Services Directorate,Juvenile Support Team - Other Expenses,F274,,
http://opendatacommunities.org/id/london-borough-council/sutton,London Borough of Sutton,07/12/2017,6921492,"34,665.00",Chroma Vision Limited,20351,Resources Directorate,Other,Y450,,
http://opendatacommunities.org/id/london-borough-council/sutton,London Borough of Sutton,12/12/2017,6921903,661.2,Chroma Vision Limited,20351,"Environment, Housing & Regeneration Directorate",IT Equipment - Repair and Maintenance,F382,,
http://opendatacommunities.org/id/london-borough-council/sutton,London Borough of Sutton,20/12/2017,6922328,"35,600.00",Chroma Vision Limited,20351,"Environment, Housing & Regeneration Directorate",Equipment -General,Y520,,
http://opendatacommunities.org/id/london-borough-council/sutton,London Borough of Sutton,30/11/2017,6921395,"3,420.00",City Sprint UK (Excel) Ltd,26267,Peoples Services Directorate,Hired Vehicles,E070,,
http://opendatacommunities.org/id/london-borough-council/sutton,London Borough of Sutton,30/11/2017,6921058,450,City Suburban Tree Surgeons,24817,"Environment, Housing & Regeneration Directorate",Emergency Repairs,D540,,
http://opendatacommunities.org/id/london-borough-council/sutton,London Borough of Sutton,01/12/2017,6922249,"12,204.00",Cityglen Ltd T/A Hytyme ltd,24115,"Environment, Housing & Regeneration Directorate",Bed and Breakfast Accommodation,G400,,
http://opendatacommunities.org/id/london-borough-council/sutton,London Borough of Sutton,24/11/2017,6920803,"9,712.50",Civica UK Ltd,10978,Resources Directorate,IT Licences,F385,,
http://opendatacommunities.org/id/london-borough-council/sutton,London Borough of Sutton,24/11/2017,6920804,"9,712.50",Civica UK Ltd,10978,Resources Directorate,IT Licences,F385,,
http://opendatacommunities.org/id/london-borough-council/sutton,London Borough of Sutton,06/12/2017,40139454,"2,805.00",Claremont Care Svs Ltd,18724,Peoples Services Directorate,Nursing Care - Ext Provider,G311,,
http://opendatacommunities.org/id/london-borough-council/sutton,London Borough of Sutton,06/12/2017,40139455,"4,000.00",Claremont Care Svs Ltd,18724,Peoples Services Directorate,Nursing Care - Ext Provider,G311,,
http://opendatacommunities.org/id/london-borough-council/sutton,London Borough of Sutton,06/12/2017,40139560,"4,200.00",Claremont Care Svs Ltd,18724,Peoples Services Directorate,Nursing Care - Ext Provider,G311,,
http://opendatacommunities.org/id/london-borough-council/sutton,London Borough of Sutton,06/12/2017,40139739,"3,200.00",Claremont Care Svs Ltd,18724,Peoples Services Directorate,Interim Placements - Ext Provider,G317,,
http://opendatacommunities.org/id/london-borough-council/sutton,London Borough of Sutton,06/12/2017,40139746,"3,400.00",Claremont Care Svs Ltd,18724,Peoples Services Directorate,Nursing Care - Ext Provider,G311,,
http://opendatacommunities.org/id/london-borough-council/sutton,London Borough of Sutton,15/11/2017,1247035,"54,747.66",Clay Hill School Priory,29031,Peoples Services Directorate,Independent Schools,G325,,
http://opendatacommunities.org/id/london-borough-council/sutton,London Borough of Sutton,08/12/2017,6921576,"6,412.50",Cleaner Greener Safer Happier Ltd,29981,"Environment, Housing & Regeneration Directorate",Materials - General,F100,,
http://opendatacommunities.org/id/london-borough-council/sutton,London Borough of Sutton,06/12/2017,40139438,"2,000.00",Cloyda Limited,20402,Peoples Services Directorate,Residential Care - Ext Provider,G310,,
http://opendatacommunities.org/id/london-borough-council/sutton,London Borough of Sutton,06/12/2017,40139475,"2,600.00",Cloyda Limited,20402,Peoples Services Directorate,Residential Care - Ext Provider,G310,,
http://opendatacommunities.org/id/london-borough-council/sutton,London Borough of Sutton,08/08/2017,6921314,"-1,442.00",Cmg Homes Ltd,11026,Peoples Services Directorate,Telephones - Other Expenses,F373,,
http://opendatacommunities.org/id/london-borough-council/sutton,London Borough of Sutton,06/12/2017,40139629,"7,036.00",Cmg Homes Ltd,11026,Peoples Services Directorate,Residential Care - Ext Provider,G310,,
http://opendatacommunities.org/id/london-borough-council/sutton,London Borough of Sutton,06/12/2017,40139691,"7,000.00",Cmg Homes Ltd,11026,Peoples Services Directorate,Residential Care - Ext Provider,G310,,
http://opendatacommunities.org/id/london-borough-council/sutton,London Borough of Sutton,06/12/2017,40139784,"5,416.92",Cmg Homes Ltd,11026,Peoples Services Directorate,Residential Care - Ext Provider,G310,,
http://opendatacommunities.org/id/london-borough-council/sutton,London Borough of Sutton,30/11/2017,6921359,"2,361.12",Cobalt Telephone Technologies,15645,"Environment, Housing & Regeneration Directorate",Credit Card Commission,F460,,
http://opendatacommunities.org/id/london-borough-council/sutton,London Borough of Sutton,01/11/2017,40138962,"7,460.57",Cognithan Ltd,29938,Peoples Services Directorate,Supported Living - Ext Provider,G306,,
http://opendatacommunities.org/id/london-borough-council/sutton,London Borough of Sutton,01/11/2017,40142167,"1,748.57",Cognithan Ltd,29938,Peoples Services Directorate,Supported Living - Ext Provider,G306,,
http://opendatacommunities.org/id/london-borough-council/sutton,London Borough of Sutton,04/12/2017,1246513,"1,080.00",Cognus Ltd,26829,Peoples Services Directorate,Special Educational Needs,G331,,
http://opendatacommunities.org/id/london-borough-council/sutton,London Borough of Sutton,04/12/2017,6921259,"22,266.68",Cognus Ltd,26829,Peoples Services Directorate,LAC - Education,F269,,
http://opendatacommunities.org/id/london-borough-council/sutton,London Borough of Sutton,15/12/2017,6922070,"99,756.93",Cognus Ltd,26829,Peoples Services Directorate,Contractual Consultant Fees,G430,,
http://opendatacommunities.org/id/london-borough-council/sutton,London Borough of Sutton,15/12/2017,6922070,"242,243.07",Cognus Ltd,26829,Peoples Services Directorate,Contractual Consultant Fees,G430,,
http://opendatacommunities.org/id/london-borough-council/sutton,London Borough of Sutton,16/11/2017,6922071,"99,756.93",Cognus Ltd,26829,Peoples Services Directorate,Contractual Consultant Fees,G430,,
http://opendatacommunities.org/id/london-borough-council/sutton,London Borough of Sutton,16/11/2017,6922071,"242,243.07",Cognus Ltd,26829,Peoples Services Directorate,Contractual Consultant Fees,G430,,
http://opendatacommunities.org/id/london-borough-council/sutton,London Borough of Sutton,06/12/2017,40139547,"20,851.74",Coleg Elidyr Camphill Communities,28764,Peoples Services Directorate,Interim Placements - Ext Provider,G317,,
http://opendatacommunities.org/id/london-borough-council/sutton,London Borough of Sutton,30/11/2017,6921054,"1,746.00",Colin Bull Properties,99898,"Environment, Housing & Regeneration Directorate",Depositors,X460,,
http://opendatacommunities.org/id/london-borough-council/sutton,London Borough of Sutton,20/10/2017,40142218,586.43,Comfort Care Services UK Ltd,17585,Peoples Services Directorate,Supported Living - Ext Provider,G306,,
http://opendatacommunities.org/id/london-borough-council/sutton,London Borough of Sutton,31/10/2017,40136815,465.75,Community Home Care Provider,11097,Peoples Services Directorate,Home Care,G334,,
http://opendatacommunities.org/id/london-borough-council/sutton,London Borough of Sutton,31/10/2017,40136839,513,Community Home Care Provider,11097,Peoples Services Directorate,Home Care,G334,,
http://opendatacommunities.org/id/london-borough-council/sutton,London Borough of Sutton,23/10/2017,40136840,567,Community Home Care Provider,11097,Peoples Services Directorate,Home Care,G334,,
http://opendatacommunities.org/id/london-borough-council/sutton,London Borough of Sutton,31/10/2017,40136939,567,Community Home Care Provider,11097,Peoples Services Directorate,Home Care,G334,,
http://opendatacommunities.org/id/london-borough-council/sutton,London Borough of Sutton,23/10/2017,40136979,459,Community Home Care Provider,11097,Peoples Services Directorate,Home Care,G334,,
http://opendatacommunities.org/id/london-borough-council/sutton,London Borough of Sutton,22/11/2017,40136997,476,Community Home Care Provider,11097,Peoples Services Directorate,Home Care,G334,,
http://opendatacommunities.org/id/london-borough-council/sutton,London Borough of Sutton,30/11/2017,40137730,567,Community Home Care Provider,11097,Peoples Services Directorate,Home Care,G334,,
http://opendatacommunities.org/id/london-borough-council/sutton,London Borough of Sutton,30/11/2017,40137731,476,Community Home Care Provider,11097,Peoples Services Directorate,Home Care,G334,,
http://opendatacommunities.org/id/london-borough-council/sutton,London Borough of Sutton,30/11/2017,40137739,465.75,Community Home Care Provider,11097,Peoples Services Directorate,Home Care,G334,,
http://opendatacommunities.org/id/london-borough-council/sutton,London Borough of Sutton,13/11/2017,40139827,567,Community Home Care Provider,11097,Peoples Services Directorate,Home Care,G334,,
http://opendatacommunities.org/id/london-borough-council/sutton,London Borough of Sutton,13/11/2017,40139829,476,Community Home Care Provider,11097,Peoples Services Directorate,Home Care,G334,,
http://opendatacommunities.org/id/london-borough-council/sutton,London Borough of Sutton,13/11/2017,40139839,567,Community Home Care Provider,11097,Peoples Services Directorate,Home Care,G334,,
http://opendatacommunities.org/id/london-borough-council/sutton,London Borough of Sutton,13/11/2017,40139840,945,Community Home Care Provider,11097,Peoples Services Directorate,Home Care,G334,,
http://opendatacommunities.org/id/london-borough-council/sutton,London Borough of Sutton,13/11/2017,40139842,476,Community Home Care Provider,11097,Peoples Services Directorate,Home Care,G334,,
http://opendatacommunities.org/id/london-borough-council/sutton,London Borough of Sutton,13/11/2017,40139862,465.75,Community Home Care Provider,11097,Peoples Services Directorate,Home Care,G334,,
http://opendatacommunities.org/id/london-borough-council/sutton,London Borough of Sutton,13/11/2017,40139879,476,Community Home Care Provider,11097,Peoples Services Directorate,Home Care,G334,,
http://opendatacommunities.org/id/london-borough-council/sutton,London Borough of Sutton,13/11/2017,40139880,945,Community Home Care Provider,11097,Peoples Services Directorate,Home Care,G334,,
http://opendatacommunities.org/id/london-borough-council/sutton,London Borough of Sutton,07/12/2017,40141633,567,Community Home Care Provider,11097,Peoples Services Directorate,Home Care,G334,,
http://opendatacommunities.org/id/london-borough-council/sutton,London Borough of Sutton,12/12/2017,40141634,459,Community Home Care Provider,11097,Peoples Services Directorate,Home Care,G334,,
http://opendatacommunities.org/id/london-borough-council/sutton,London Borough of Sutton,07/12/2017,40141662,729,Community Home Care Provider,11097,Peoples Services Directorate,Home Care,G334,,
http://opendatacommunities.org/id/london-borough-council/sutton,London Borough of Sutton,07/12/2017,40141664,476,Community Home Care Provider,11097,Peoples Services Directorate,Home Care,G334,,
http://opendatacommunities.org/id/london-borough-council/sutton,London Borough of Sutton,12/12/2017,40141681,476,Community Home Care Provider,11097,Peoples Services Directorate,Home Care,G334,,
http://opendatacommunities.org/id/london-borough-council/sutton,London Borough of Sutton,31/10/2017,40142079,476,Community Home Care Provider,11097,Peoples Services Directorate,Home Care,G334,,
http://opendatacommunities.org/id/london-borough-council/sutton,London Borough of Sutton,22/11/2017,40144698,567,Community Home Care Provider,11097,Peoples Services Directorate,Home Care,G334,,
http://opendatacommunities.org/id/london-borough-council/sutton,London Borough of Sutton,27/12/2017,40144761,459,Community Home Care Provider,11097,Peoples Services Directorate,Home Care,G334,,
http://opendatacommunities.org/id/london-borough-council/sutton,London Borough of Sutton,27/12/2017,40144775,567,Community Home Care Provider,11097,Peoples Services Directorate,Home Care,G334,,
http://opendatacommunities.org/id/london-borough-council/sutton,London Borough of Sutton,27/12/2017,40144777,476,Community Home Care Provider,11097,Peoples Services Directorate,Home Care,G334,,
http://opendatacommunities.org/id/london-borough-council/sutton,London Borough of Sutton,01/11/2017,40139301,"3,557.10",Compass Fostering London Ltd,25848,Peoples Services Directorate,Foster Parents,G326,,
http://opendatacommunities.org/id/london-borough-council/sutton,London Borough of Sutton,01/11/2017,40139302,"3,069.90",Compass Fostering London Ltd,25848,Peoples Services Directorate,Foster Parents,G326,,
http://opendatacommunities.org/id/london-borough-council/sutton,London Borough of Sutton,01/11/2017,40139303,"3,167.10",Compass Fostering London Ltd,25848,Peoples Services Directorate,Foster Parents,G326,,
http://opendatacommunities.org/id/london-borough-council/sutton,London Borough of Sutton,10/11/2017,6921156,"1,549.32",Contract Security Services,23827,Chief Executive's Directorate,General Office Expenses,F235,,
http://opendatacommunities.org/id/london-borough-council/sutton,London Borough of Sutton,14/12/2017,6922576,"1,540.81",Contract Security Services,23827,Chief Executive's Directorate,General Office Expenses,F235,,
http://opendatacommunities.org/id/london-borough-council/sutton,London Borough of Sutton,17/10/2017,6922555,"2,332.00",Coral Community Assessments,30058,Peoples Services Directorate,Children Assessments,G329,,
http://opendatacommunities.org/id/london-borough-council/sutton,London Borough of Sutton,19/12/2017,6922239,700,Core Assets Expert Services LTD T/A Carter Brown,29709,Peoples Services Directorate,Training - Course Fees,A520,,
http://opendatacommunities.org/id/london-borough-council/sutton,London Borough of Sutton,22/12/2017,6922452,"15,910.66",Corelogic Ltd,24747,Peoples Services Directorate,Fees - Computer Software,F384,,
http://opendatacommunities.org/id/london-borough-council/sutton,London Borough of Sutton,10/11/2017,1246799,"13,900.00",Cornerways Childrens Services Ltd,18435,Peoples Services Directorate,Independent Schools,G325,,
http://opendatacommunities.org/id/london-borough-council/sutton,London Borough of Sutton,10/11/2017,1246800,"13,125.40",Cornerways Childrens Services Ltd,18435,Peoples Services Directorate,Independent Schools,G325,,
http://opendatacommunities.org/id/london-borough-council/sutton,London Borough of Sutton,26/10/2017,40139274,"13,285.80",Cornerways Childrens Services Ltd,18435,Peoples Services Directorate,Residential Care-Children,G330,,
http://opendatacommunities.org/id/london-borough-council/sutton,London Borough of Sutton,08/11/2017,1246802,"17,991.00",Cressey Oasis Education Ltd,27626,Peoples Services Directorate,Independent Schools,G325,,
http://opendatacommunities.org/id/london-borough-council/sutton,London Borough of Sutton,08/11/2017,1246803,"18,455.00",Cressey Oasis Education Ltd,27626,Peoples Services Directorate,Independent Schools,G325,,
http://opendatacommunities.org/id/london-borough-council/sutton,London Borough of Sutton,08/11/2017,1246804,"16,992.00",Cressey Oasis Education Ltd,27626,Peoples Services Directorate,Independent Schools,G325,,
http://opendatacommunities.org/id/london-borough-council/sutton,London Borough of Sutton,08/11/2017,1246805,"18,297.00",Cressey Oasis Education Ltd,27626,Peoples Services Directorate,Independent Schools,G325,,
http://opendatacommunities.org/id/london-borough-council/sutton,London Borough of Sutton,08/11/2017,1246806,"19,125.33",Cressey Oasis Education Ltd,27626,Peoples Services Directorate,Independent Schools,G325,,
http://opendatacommunities.org/id/london-borough-council/sutton,London Borough of Sutton,08/11/2017,1246807,"26,291.00",Cressey Oasis Education Ltd,27626,Peoples Services Directorate,Independent Schools,G325,,
http://opendatacommunities.org/id/london-borough-council/sutton,London Borough of Sutton,08/11/2017,1246808,"20,373.00",Cressey Oasis Education Ltd,27626,Peoples Services Directorate,Independent Schools,G325,,
http://opendatacommunities.org/id/london-borough-council/sutton,London Borough of Sutton,08/11/2017,1246809,"26,668.00",Cressey Oasis Education Ltd,27626,Peoples Services Directorate,Independent Schools,G325,,
http://opendatacommunities.org/id/london-borough-council/sutton,London Borough of Sutton,08/11/2017,1246810,"21,542.00",Cressey Oasis Education Ltd,27626,Peoples Services Directorate,Independent Schools,G325,,
http://opendatacommunities.org/id/london-borough-council/sutton,London Borough of Sutton,08/11/2017,1246811,"18,918.67",Cressey Oasis Education Ltd,27626,Peoples Services Directorate,Independent Schools,G325,,
http://opendatacommunities.org/id/london-borough-council/sutton,London Borough of Sutton,08/11/2017,1246812,"18,455.00",Cressey Oasis Education Ltd,27626,Peoples Services Directorate,Independent Schools,G325,,
http://opendatacommunities.org/id/london-borough-council/sutton,London Borough of Sutton,08/11/2017,1246813,"16,635.20",Cressey Oasis Education Ltd,27626,Peoples Services Directorate,Independent Schools,G325,,
http://opendatacommunities.org/id/london-borough-council/sutton,London Borough of Sutton,08/11/2017,1246814,"17,201.33",Cressey Oasis Education Ltd,27626,Peoples Services Directorate,Independent Schools,G325,,
http://opendatacommunities.org/id/london-borough-council/sutton,London Borough of Sutton,08/11/2017,1246815,"18,455.00",Cressey Oasis Education Ltd,27626,Peoples Services Directorate,Independent Schools,G325,,
http://opendatacommunities.org/id/london-borough-council/sutton,London Borough of Sutton,08/11/2017,1246816,"12,666.16",Cressey Oasis Education Ltd,27626,Peoples Services Directorate,Independent Schools,G325,,
http://opendatacommunities.org/id/london-borough-council/sutton,London Borough of Sutton,08/11/2017,1246817,"18,455.00",Cressey Oasis Education Ltd,27626,Peoples Services Directorate,Independent Schools,G325,,
http://opendatacommunities.org/id/london-borough-council/sutton,London Borough of Sutton,08/11/2017,1246818,"21,707.00",Cressey Oasis Education Ltd,27626,Peoples Services Directorate,Independent Schools,G325,,
http://opendatacommunities.org/id/london-borough-council/sutton,London Borough of Sutton,08/11/2017,1246819,"12,840.33",Cressey Oasis Education Ltd,27626,Peoples Services Directorate,Independent Schools,G325,,
http://opendatacommunities.org/id/london-borough-council/sutton,London Borough of Sutton,08/11/2017,1246820,"6,997.67",Cressey Oasis Education Ltd,27626,Peoples Services Directorate,Independent Schools,G325,,
http://opendatacommunities.org/id/london-borough-council/sutton,London Borough of Sutton,08/11/2017,1246821,"17,991.00",Cressey Oasis Education Ltd,27626,Peoples Services Directorate,Independent Schools,G325,,
http://opendatacommunities.org/id/london-borough-council/sutton,London Borough of Sutton,15/11/2017,6921171,"1,860.00",Crest Manor Ltd,25469,Peoples Services Directorate,C.C.A Rent & Utilities,H211,,
http://opendatacommunities.org/id/london-borough-council/sutton,London Borough of Sutton,15/11/2017,6921172,770.28,Crest Manor Ltd,25469,Peoples Services Directorate,Approved Lodgings,H323,,
http://opendatacommunities.org/id/london-borough-council/sutton,London Borough of Sutton,15/11/2017,6921174,"1,645.00",Crest Manor Ltd,25469,Peoples Services Directorate,Approved Lodgings,H323,,
http://opendatacommunities.org/id/london-borough-council/sutton,London Borough of Sutton,15/11/2017,6921176,"1,275.00",Crest Manor Ltd,25469,Peoples Services Directorate,Approved Lodgings,H323,,
http://opendatacommunities.org/id/london-borough-council/sutton,London Borough of Sutton,15/11/2017,6921184,"2,310.00",Crest Manor Ltd,25469,Peoples Services Directorate,Approved Lodgings,H323,,
http://opendatacommunities.org/id/london-borough-council/sutton,London Borough of Sutton,15/11/2017,6921185,"1,695.00",Crest Manor Ltd,25469,Peoples Services Directorate,Approved Lodgings,H323,,
http://opendatacommunities.org/id/london-borough-council/sutton,London Borough of Sutton,15/11/2017,6921186,"1,695.00",Crest Manor Ltd,25469,Peoples Services Directorate,Approved Lodgings,H323,,
http://opendatacommunities.org/id/london-borough-council/sutton,London Borough of Sutton,15/11/2017,6921187,975,Crest Manor Ltd,25469,Peoples Services Directorate,Approved Lodgings,H323,,
http://opendatacommunities.org/id/london-borough-council/sutton,London Borough of Sutton,15/11/2017,6921188,"1,250.00",Crest Manor Ltd,25469,Peoples Services Directorate,Approved Lodgings,H323,,
http://opendatacommunities.org/id/london-borough-council/sutton,London Borough of Sutton,15/11/2017,6921190,"1,375.00",Crest Manor Ltd,25469,Peoples Services Directorate,Approved Lodgings,H323,,
http://opendatacommunities.org/id/london-borough-council/sutton,London Borough of Sutton,06/12/2017,40139510,"3,984.00",CRNH Ltd T/A St Judes Nursing Home,14297,Peoples Services Directorate,Nursing Care - Ext Provider,G311,,
http://opendatacommunities.org/id/london-borough-council/sutton,London Borough of Sutton,06/12/2017,40139511,"3,700.00",CRNH Ltd T/A St Judes Nursing Home,14297,Peoples Services Directorate,Nursing Care - Ext Provider,G311,,
http://opendatacommunities.org/id/london-borough-council/sutton,London Borough of Sutton,06/12/2017,40139615,"2,200.00",CRNH Ltd T/A St Judes Nursing Home,14297,Peoples Services Directorate,Nursing Care - Ext Provider,G311,,
http://opendatacommunities.org/id/london-borough-council/sutton,London Borough of Sutton,06/12/2017,40139708,"3,400.00",CRNH Ltd T/A St Judes Nursing Home,14297,Peoples Services Directorate,Nursing Care - Ext Provider,G311,,
http://opendatacommunities.org/id/london-borough-council/sutton,London Borough of Sutton,06/12/2017,40139709,"3,799.04",CRNH Ltd T/A St Judes Nursing Home,14297,Peoples Services Directorate,Nursing Care - Ext Provider,G311,,
http://opendatacommunities.org/id/london-borough-council/sutton,London Borough of Sutton,06/12/2017,40139763,"2,556.52",CRNH Ltd T/A St Judes Nursing Home,14297,Peoples Services Directorate,Nursing Care - Ext Provider,G311,,
http://opendatacommunities.org/id/london-borough-council/sutton,London Borough of Sutton,09/11/2017,40139329,"3,105.90",Croham Services for Children Limited,20855,Peoples Services Directorate,Foster Parents,G326,,
http://opendatacommunities.org/id/london-borough-council/sutton,London Borough of Sutton,09/11/2017,40139330,"3,105.90",Croham Services for Children Limited,20855,Peoples Services Directorate,Foster Parents,G326,,
http://opendatacommunities.org/id/london-borough-council/sutton,London Borough of Sutton,09/11/2017,40139331,"3,105.90",Croham Services for Children Limited,20855,Peoples Services Directorate,Foster Parents,G326,,
http://opendatacommunities.org/id/london-borough-council/sutton,London Borough of Sutton,09/11/2017,40139332,"3,105.90",Croham Services for Children Limited,20855,Peoples Services Directorate,Foster Parents,G326,,
http://opendatacommunities.org/id/london-borough-council/sutton,London Borough of Sutton,09/11/2017,40139333,"3,105.90",Croham Services for Children Limited,20855,Peoples Services Directorate,Foster Parents,G326,,
http://opendatacommunities.org/id/london-borough-council/sutton,London Borough of Sutton,09/11/2017,40139334,"3,105.90",Croham Services for Children Limited,20855,Peoples Services Directorate,Foster Parents,G326,,
http://opendatacommunities.org/id/london-borough-council/sutton,London Borough of Sutton,09/11/2017,40139335,"3,105.90",Croham Services for Children Limited,20855,Peoples Services Directorate,Foster Parents,G326,,
http://opendatacommunities.org/id/london-borough-council/sutton,London Borough of Sutton,01/12/2017,6921577,"1,215.00",Cromwood Ltd,26178,"Environment, Housing & Regeneration Directorate",Bed and Breakfast Accommodation,G400,,
http://opendatacommunities.org/id/london-borough-council/sutton,London Borough of Sutton,06/12/2017,40139712,"2,404.28",Crossways Community,11187,Peoples Services Directorate,Residential Care - Ext Provider,G310,,
http://opendatacommunities.org/id/london-borough-council/sutton,London Borough of Sutton,06/12/2017,40139769,"4,168.24",Crossways Community,11187,Peoples Services Directorate,Residential Care - Ext Provider,G310,,
http://opendatacommunities.org/id/london-borough-council/sutton,London Borough of Sutton,07/12/2017,6921746,"99,510.43",Croydon Council,11227,"Environment, Housing & Regeneration Directorate",Idverde - Contract Payment,G250,,
http://opendatacommunities.org/id/london-borough-council/sutton,London Borough of Sutton,13/12/2017,6922117,"37,167.90",Croydon Council,11227,"Environment, Housing & Regeneration Directorate",Civic Amenity,G172,,
http://opendatacommunities.org/id/london-borough-council/sutton,London Borough of Sutton,30/11/2017,1246355,"3,322.00",Cruisers Ltd,18087,Peoples Services Directorate,Hired Peoples Transport (Children),E072,,
http://opendatacommunities.org/id/london-borough-council/sutton,London Borough of Sutton,30/11/2017,1246356,"3,630.00",Cruisers Ltd,18087,Peoples Services Directorate,Hired Peoples Transport (Children),E072,,
http://opendatacommunities.org/id/london-borough-council/sutton,London Borough of Sutton,30/12/2017,1247161,"2,145.00",Cruisers Ltd,18087,Peoples Services Directorate,Hired Peoples Transport (Children),E072,,
http://opendatacommunities.org/id/london-borough-council/sutton,London Borough of Sutton,30/12/2017,1247162,"2,114.00",Cruisers Ltd,18087,Peoples Services Directorate,Hired Peoples Transport (Children),E072,,
http://opendatacommunities.org/id/london-borough-council/sutton,London Borough of Sutton,06/12/2017,40139524,"8,926.00",CSS Ltd t/a Grove Care,19184,Peoples Services Directorate,Residential Care - Ext Provider,G310,,
http://opendatacommunities.org/id/london-borough-council/sutton,London Borough of Sutton,20/12/2017,6922319,"2,000.00",Curl La Tourelle Architects,18610,"Environment, Housing & Regeneration Directorate",External Fees  - Architects,Y100,,
http://opendatacommunities.org/id/london-borough-council/sutton,London Borough of Sutton,30/11/2017,6921966,"1,080.00",Cyberstyle Letting Limited,29264,"Environment, Housing & Regeneration Directorate",Bed and Breakfast Accommodation,G400,,
http://opendatacommunities.org/id/london-borough-council/sutton,London Borough of Sutton,30/11/2017,6921967,"1,080.00",Cyberstyle Letting Limited,29264,"Environment, Housing & Regeneration Directorate",Bed and Breakfast Accommodation,G400,,
http://opendatacommunities.org/id/london-borough-council/sutton,London Borough of Sutton,30/11/2017,6921968,"2,010.00",Cyberstyle Letting Limited,29264,"Environment, Housing & Regeneration Directorate",Bed and Breakfast Accommodation,G400,,
http://opendatacommunities.org/id/london-borough-council/sutton,London Borough of Sutton,30/11/2017,6921969,"2,010.00",Cyberstyle Letting Limited,29264,"Environment, Housing & Regeneration Directorate",Bed and Breakfast Accommodation,G400,,
http://opendatacommunities.org/id/london-borough-council/sutton,London Borough of Sutton,30/11/2017,6921970,630,Cyberstyle Letting Limited,29264,"Environment, Housing & Regeneration Directorate",Bed and Breakfast Accommodation,G400,,
http://opendatacommunities.org/id/london-borough-council/sutton,London Borough of Sutton,30/11/2017,6921971,"1,605.00",Cyberstyle Letting Limited,29264,"Environment, Housing & Regeneration Directorate",Bed and Breakfast Accommodation,G400,,
http://opendatacommunities.org/id/london-borough-council/sutton,London Borough of Sutton,14/12/2017,6922042,746,D Karapinar,26474,"Environment, Housing & Regeneration Directorate",General Office Expenses,F235,,
http://opendatacommunities.org/id/london-borough-council/sutton,London Borough of Sutton,01/12/2017,6921704,"4,302.90",Daley Bread Ltd T/A Daley Care,28917,Peoples Services Directorate,Approved Lodgings,H323,,
http://opendatacommunities.org/id/london-borough-council/sutton,London Borough of Sutton,10/12/2017,6921705,"2,694.29",Daley Bread Ltd T/A Daley Care,28917,Peoples Services Directorate,Approved Lodgings,H323,,
http://opendatacommunities.org/id/london-borough-council/sutton,London Borough of Sutton,10/12/2017,40141063,"4,302.90",Daley Bread Ltd T/A Daley Care,28917,Peoples Services Directorate,Approved Lodgings,H323,,
http://opendatacommunities.org/id/london-borough-council/sutton,London Borough of Sutton,12/12/2017,6921862,"27,500.00",David Rubie Mitchell & Co.Clients premium Account,99827,Peoples Services Directorate,Purchase Price,Y010,,
http://opendatacommunities.org/id/london-borough-council/sutton,London Borough of Sutton,27/11/2017,40136807,562,Day and Nite Services,26773,Peoples Services Directorate,Home Care,G334,,
http://opendatacommunities.org/id/london-borough-council/sutton,London Borough of Sutton,27/11/2017,40136819,492,Day and Nite Services,26773,Peoples Services Directorate,Home Care,G334,,
http://opendatacommunities.org/id/london-borough-council/sutton,London Borough of Sutton,27/11/2017,40136825,534,Day and Nite Services,26773,Peoples Services Directorate,Home Care,G334,,
http://opendatacommunities.org/id/london-borough-council/sutton,London Borough of Sutton,27/11/2017,40136827,464,Day and Nite Services,26773,Peoples Services Directorate,Home Care,G334,,
http://opendatacommunities.org/id/london-borough-council/sutton,London Borough of Sutton,27/11/2017,40136829,492,Day and Nite Services,26773,Peoples Services Directorate,Home Care,G334,,
http://opendatacommunities.org/id/london-borough-council/sutton,London Borough of Sutton,27/11/2017,40136830,518,Day and Nite Services,26773,Peoples Services Directorate,Home Care,G334,,
http://opendatacommunities.org/id/london-borough-council/sutton,London Borough of Sutton,27/11/2017,40136831,520,Day and Nite Services,26773,Peoples Services Directorate,Home Care,G334,,
http://opendatacommunities.org/id/london-borough-council/sutton,London Borough of Sutton,27/11/2017,40136832,417,Day and Nite Services,26773,Peoples Services Directorate,Home Care,G334,,
http://opendatacommunities.org/id/london-borough-council/sutton,London Borough of Sutton,27/11/2017,40136980,650,Day and Nite Services,26773,Peoples Services Directorate,Home Care,G334,,
http://opendatacommunities.org/id/london-borough-council/sutton,London Borough of Sutton,05/12/2017,40139814,734,Day and Nite Services,26773,Peoples Services Directorate,Home Care,G334,,
http://opendatacommunities.org/id/london-borough-council/sutton,London Borough of Sutton,05/12/2017,40139815,562,Day and Nite Services,26773,Peoples Services Directorate,Home Care,G334,,
http://opendatacommunities.org/id/london-borough-council/sutton,London Borough of Sutton,05/12/2017,40139821,492,Day and Nite Services,26773,Peoples Services Directorate,Home Care,G334,,
http://opendatacommunities.org/id/london-borough-council/sutton,London Borough of Sutton,05/12/2017,40139836,534,Day and Nite Services,26773,Peoples Services Directorate,Home Care,G334,,
http://opendatacommunities.org/id/london-borough-council/sutton,London Borough of Sutton,05/12/2017,40139838,464,Day and Nite Services,26773,Peoples Services Directorate,Home Care,G334,,
http://opendatacommunities.org/id/london-borough-council/sutton,London Borough of Sutton,05/12/2017,40139848,518,Day and Nite Services,26773,Peoples Services Directorate,Home Care,G334,,
http://opendatacommunities.org/id/london-borough-council/sutton,London Borough of Sutton,05/12/2017,40139849,520,Day and Nite Services,26773,Peoples Services Directorate,Home Care,G334,,
http://opendatacommunities.org/id/london-borough-council/sutton,London Borough of Sutton,05/12/2017,40139850,650,Day and Nite Services,26773,Peoples Services Directorate,Home Care,G334,,
http://opendatacommunities.org/id/london-borough-council/sutton,London Borough of Sutton,05/12/2017,40139851,417,Day and Nite Services,26773,Peoples Services Directorate,Home Care,G334,,
http://opendatacommunities.org/id/london-borough-council/sutton,London Borough of Sutton,05/12/2017,40139869,492,Day and Nite Services,26773,Peoples Services Directorate,Home Care,G334,,
http://opendatacommunities.org/id/london-borough-council/sutton,London Borough of Sutton,30/10/2017,40139875,417,Day and Nite Services,26773,Peoples Services Directorate,Home Care,G334,,
http://opendatacommunities.org/id/london-borough-council/sutton,London Borough of Sutton,20/11/2017,40139885,562,Day and Nite Services,26773,Peoples Services Directorate,Home Care,G334,,
http://opendatacommunities.org/id/london-borough-council/sutton,London Borough of Sutton,11/12/2017,40140147,734,Day and Nite Services,26773,Peoples Services Directorate,Home Care,G334,,
http://opendatacommunities.org/id/london-borough-council/sutton,London Borough of Sutton,11/12/2017,40140148,562,Day and Nite Services,26773,Peoples Services Directorate,Home Care,G334,,
http://opendatacommunities.org/id/london-borough-council/sutton,London Borough of Sutton,11/12/2017,40141638,518,Day and Nite Services,26773,Peoples Services Directorate,Home Care,G334,,
http://opendatacommunities.org/id/london-borough-council/sutton,London Borough of Sutton,11/12/2017,40141639,492,Day and Nite Services,26773,Peoples Services Directorate,Home Care,G334,,
http://opendatacommunities.org/id/london-borough-council/sutton,London Borough of Sutton,11/12/2017,40141646,534,Day and Nite Services,26773,Peoples Services Directorate,Home Care,G334,,
http://opendatacommunities.org/id/london-borough-council/sutton,London Borough of Sutton,11/12/2017,40141648,650,Day and Nite Services,26773,Peoples Services Directorate,Home Care,G334,,
http://opendatacommunities.org/id/london-borough-council/sutton,London Borough of Sutton,11/12/2017,40141649,464,Day and Nite Services,26773,Peoples Services Directorate,Home Care,G334,,
http://opendatacommunities.org/id/london-borough-council/sutton,London Borough of Sutton,11/12/2017,40141651,492,Day and Nite Services,26773,Peoples Services Directorate,Home Care,G334,,
http://opendatacommunities.org/id/london-borough-council/sutton,London Borough of Sutton,11/12/2017,40141657,520,Day and Nite Services,26773,Peoples Services Directorate,Home Care,G334,,
http://opendatacommunities.org/id/london-borough-council/sutton,London Borough of Sutton,11/12/2017,40141658,417,Day and Nite Services,26773,Peoples Services Directorate,Home Care,G334,,
http://opendatacommunities.org/id/london-borough-council/sutton,London Borough of Sutton,19/12/2017,40144699,650,Day and Nite Services,26773,Peoples Services Directorate,Home Care,G334,,
http://opendatacommunities.org/id/london-borough-council/sutton,London Borough of Sutton,19/12/2017,40144702,464,Day and Nite Services,26773,Peoples Services Directorate,Home Care,G334,,
http://opendatacommunities.org/id/london-borough-council/sutton,London Borough of Sutton,19/12/2017,40144704,492,Day and Nite Services,26773,Peoples Services Directorate,Home Care,G334,,
http://opendatacommunities.org/id/london-borough-council/sutton,London Borough of Sutton,19/12/2017,40144705,518,Day and Nite Services,26773,Peoples Services Directorate,Home Care,G334,,
http://opendatacommunities.org/id/london-borough-council/sutton,London Borough of Sutton,19/12/2017,40144706,417,Day and Nite Services,26773,Peoples Services Directorate,Home Care,G334,,
http://opendatacommunities.org/id/london-borough-council/sutton,London Borough of Sutton,19/12/2017,40144723,734,Day and Nite Services,26773,Peoples Services Directorate,Home Care,G334,,
http://opendatacommunities.org/id/london-borough-council/sutton,London Borough of Sutton,19/12/2017,40144725,562,Day and Nite Services,26773,Peoples Services Directorate,Home Care,G334,,
http://opendatacommunities.org/id/london-borough-council/sutton,London Borough of Sutton,19/12/2017,40144731,520,Day and Nite Services,26773,Peoples Services Directorate,Home Care,G334,,
http://opendatacommunities.org/id/london-borough-council/sutton,London Borough of Sutton,19/12/2017,40144748,492,Day and Nite Services,26773,Peoples Services Directorate,Home Care,G334,,
http://opendatacommunities.org/id/london-borough-council/sutton,London Borough of Sutton,07/12/2017,6921826,582.75,Debigno Ltd t/a Pathway Analytics,28654,Chief Executive's Directorate,Provider Contract Payments,F470,,
http://opendatacommunities.org/id/london-borough-council/sutton,London Borough of Sutton,30/11/2017,6921461,477.02,Deepstore Ltd,21074,Resources Directorate,Offsite Storage,F231,,
http://opendatacommunities.org/id/london-borough-council/sutton,London Borough of Sutton,30/11/2017,6921462,614.9,Deepstore Ltd,21074,Resources Directorate,Offsite Storage,F231,,
http://opendatacommunities.org/id/london-borough-council/sutton,London Borough of Sutton,12/12/2017,6922094,"1,175.00",Demco Europe Ltd,15812,Peoples Services Directorate,Repairs to Administrative Equipment,F030,,
http://opendatacommunities.org/id/london-borough-council/sutton,London Borough of Sutton,18/12/2017,1247024,500,Dene Magna School,27018,Peoples Services Directorate,Payments to Schools,G065,,
http://opendatacommunities.org/id/london-borough-council/sutton,London Borough of Sutton,09/11/2017,6922263,"1,271.00",Denhan Property Services,28353,"Environment, Housing & Regeneration Directorate",Bed and Breakfast Accommodation,G400,,
http://opendatacommunities.org/id/london-borough-council/sutton,London Borough of Sutton,09/11/2017,6922264,"1,085.00",Denhan Property Services,28353,"Environment, Housing & Regeneration Directorate",Bed and Breakfast Accommodation,G400,,
http://opendatacommunities.org/id/london-borough-council/sutton,London Borough of Sutton,09/11/2017,6922266,836,Denhan Property Services,28353,"Environment, Housing & Regeneration Directorate",Bed and Breakfast Accommodation,G400,,
http://opendatacommunities.org/id/london-borough-council/sutton,London Borough of Sutton,09/11/2017,6922267,"1,767.00",Denhan Property Services,28353,"Environment, Housing & Regeneration Directorate",Bed and Breakfast Accommodation,G400,,
http://opendatacommunities.org/id/london-borough-council/sutton,London Borough of Sutton,09/11/2017,6922268,"2,294.00",Denhan Property Services,28353,"Environment, Housing & Regeneration Directorate",Bed and Breakfast Accommodation,G400,,
http://opendatacommunities.org/id/london-borough-council/sutton,London Borough of Sutton,09/11/2017,6922269,"1,974.70",Denhan Property Services,28353,"Environment, Housing & Regeneration Directorate",Bed and Breakfast Accommodation,G400,,
http://opendatacommunities.org/id/london-borough-council/sutton,London Borough of Sutton,09/11/2017,6922270,"1,441.50",Denhan Property Services,28353,"Environment, Housing & Regeneration Directorate",Bed and Breakfast Accommodation,G400,,
http://opendatacommunities.org/id/london-borough-council/sutton,London Borough of Sutton,09/11/2017,6922271,"1,236.90",Denhan Property Services,28353,"Environment, Housing & Regeneration Directorate",Bed and Breakfast Accommodation,G400,,
http://opendatacommunities.org/id/london-borough-council/sutton,London Borough of Sutton,09/11/2017,6922278,"1,171.80",Denhan Property Services,28353,"Environment, Housing & Regeneration Directorate",Bed and Breakfast Accommodation,G400,,
http://opendatacommunities.org/id/london-borough-council/sutton,London Borough of Sutton,09/11/2017,6922279,"1,054.00",Denhan Property Services,28353,"Environment, Housing & Regeneration Directorate",Bed and Breakfast Accommodation,G400,,
http://opendatacommunities.org/id/london-borough-council/sutton,London Borough of Sutton,10/10/2017,6922280,"1,302.00",Denhan Property Services,28353,"Environment, Housing & Regeneration Directorate",Bed and Breakfast Accommodation,G400,,
http://opendatacommunities.org/id/london-borough-council/sutton,London Borough of Sutton,01/10/2017,6922281,"1,023.00",Denhan Property Services,28353,"Environment, Housing & Regeneration Directorate",Bed and Breakfast Accommodation,G400,,
http://opendatacommunities.org/id/london-borough-council/sutton,London Borough of Sutton,09/11/2017,6922283,"1,271.00",Denhan Property Services,28353,"Environment, Housing & Regeneration Directorate",Bed and Breakfast Accommodation,G400,,
http://opendatacommunities.org/id/london-borough-council/sutton,London Borough of Sutton,16/10/2017,6922284,"1,643.00",Denhan Property Services,28353,"Environment, Housing & Regeneration Directorate",Bed and Breakfast Accommodation,G400,,
http://opendatacommunities.org/id/london-borough-council/sutton,London Borough of Sutton,09/11/2017,6922285,"1,410.50",Denhan Property Services,28353,"Environment, Housing & Regeneration Directorate",Bed and Breakfast Accommodation,G400,,
http://opendatacommunities.org/id/london-borough-council/sutton,London Borough of Sutton,16/10/2017,6922286,"1,943.70",Denhan Property Services,28353,"Environment, Housing & Regeneration Directorate",Bed and Breakfast Accommodation,G400,,
http://opendatacommunities.org/id/london-borough-council/sutton,London Borough of Sutton,10/10/2017,6922287,"1,023.00",Denhan Property Services,28353,"Environment, Housing & Regeneration Directorate",Bed and Breakfast Accommodation,G400,,
http://opendatacommunities.org/id/london-borough-council/sutton,London Borough of Sutton,10/10/2017,6922288,"1,441.50",Denhan Property Services,28353,"Environment, Housing & Regeneration Directorate",Bed and Breakfast Accommodation,G400,,
http://opendatacommunities.org/id/london-borough-council/sutton,London Borough of Sutton,09/11/2017,6922289,"1,943.70",Denhan Property Services,28353,"Environment, Housing & Regeneration Directorate",Bed and Breakfast Accommodation,G400,,
http://opendatacommunities.org/id/london-borough-council/sutton,London Borough of Sutton,09/11/2017,6922290,"1,178.00",Denhan Property Services,28353,"Environment, Housing & Regeneration Directorate",Bed and Breakfast Accommodation,G400,,
http://opendatacommunities.org/id/london-borough-council/sutton,London Borough of Sutton,09/11/2017,6922291,"1,271.00",Denhan Property Services,28353,"Environment, Housing & Regeneration Directorate",Bed and Breakfast Accommodation,G400,,
http://opendatacommunities.org/id/london-borough-council/sutton,London Borough of Sutton,09/11/2017,6922292,"1,441.50",Denhan Property Services,28353,"Environment, Housing & Regeneration Directorate",Bed and Breakfast Accommodation,G400,,
http://opendatacommunities.org/id/london-borough-council/sutton,London Borough of Sutton,07/12/2017,6922342,"1,134.00",Denhan Property Services,28353,"Environment, Housing & Regeneration Directorate",Bed and Breakfast Accommodation,G400,,
http://opendatacommunities.org/id/london-borough-council/sutton,London Borough of Sutton,07/12/2017,6922343,693,Denhan Property Services,28353,"Environment, Housing & Regeneration Directorate",Bed and Breakfast Accommodation,G400,,
http://opendatacommunities.org/id/london-borough-council/sutton,London Borough of Sutton,07/12/2017,6922344,"1,395.00",Denhan Property Services,28353,"Environment, Housing & Regeneration Directorate",Bed and Breakfast Accommodation,G400,,
http://opendatacommunities.org/id/london-borough-council/sutton,London Borough of Sutton,07/12/2017,6922345,"1,020.00",Denhan Property Services,28353,"Environment, Housing & Regeneration Directorate",Bed and Breakfast Accommodation,G400,,
http://opendatacommunities.org/id/london-borough-council/sutton,London Borough of Sutton,07/12/2017,6922346,"1,710.00",Denhan Property Services,28353,"Environment, Housing & Regeneration Directorate",Bed and Breakfast Accommodation,G400,,
http://opendatacommunities.org/id/london-borough-council/sutton,London Borough of Sutton,07/12/2017,6922347,"1,260.00",Denhan Property Services,28353,"Environment, Housing & Regeneration Directorate",Bed and Breakfast Accommodation,G400,,
http://opendatacommunities.org/id/london-borough-council/sutton,London Borough of Sutton,07/12/2017,6922348,"1,050.00",Denhan Property Services,28353,"Environment, Housing & Regeneration Directorate",Bed and Breakfast Accommodation,G400,,
http://opendatacommunities.org/id/london-borough-council/sutton,London Borough of Sutton,07/12/2017,6922349,"2,220.00",Denhan Property Services,28353,"Environment, Housing & Regeneration Directorate",Bed and Breakfast Accommodation,G400,,
http://opendatacommunities.org/id/london-borough-council/sutton,London Borough of Sutton,01/11/2017,6922350,990,Denhan Property Services,28353,"Environment, Housing & Regeneration Directorate",Bed and Breakfast Accommodation,G400,,
http://opendatacommunities.org/id/london-borough-council/sutton,London Borough of Sutton,07/12/2017,6922351,"1,140.00",Denhan Property Services,28353,"Environment, Housing & Regeneration Directorate",Bed and Breakfast Accommodation,G400,,
http://opendatacommunities.org/id/london-borough-council/sutton,London Borough of Sutton,07/12/2017,6922353,"1,197.00",Denhan Property Services,28353,"Environment, Housing & Regeneration Directorate",Bed and Breakfast Accommodation,G400,,
http://opendatacommunities.org/id/london-borough-council/sutton,London Borough of Sutton,07/12/2017,6922354,"1,911.00",Denhan Property Services,28353,"Environment, Housing & Regeneration Directorate",Bed and Breakfast Accommodation,G400,,
http://opendatacommunities.org/id/london-borough-council/sutton,London Borough of Sutton,20/11/2017,6922355,"1,395.00",Denhan Property Services,28353,"Environment, Housing & Regeneration Directorate",Bed and Breakfast Accommodation,G400,,
http://opendatacommunities.org/id/london-borough-council/sutton,London Borough of Sutton,07/12/2017,6922356,"1,395.00",Denhan Property Services,28353,"Environment, Housing & Regeneration Directorate",Bed and Breakfast Accommodation,G400,,
http://opendatacommunities.org/id/london-borough-council/sutton,London Borough of Sutton,07/12/2017,6922357,"1,230.00",Denhan Property Services,28353,"Environment, Housing & Regeneration Directorate",Bed and Breakfast Accommodation,G400,,
http://opendatacommunities.org/id/london-borough-council/sutton,London Borough of Sutton,07/12/2017,6922358,"1,590.00",Denhan Property Services,28353,"Environment, Housing & Regeneration Directorate",Bed and Breakfast Accommodation,G400,,
http://opendatacommunities.org/id/london-borough-council/sutton,London Borough of Sutton,07/12/2017,6922359,"1,365.00",Denhan Property Services,28353,"Environment, Housing & Regeneration Directorate",Bed and Breakfast Accommodation,G400,,
http://opendatacommunities.org/id/london-borough-council/sutton,London Borough of Sutton,07/12/2017,6922360,"1,230.00",Denhan Property Services,28353,"Environment, Housing & Regeneration Directorate",Bed and Breakfast Accommodation,G400,,
http://opendatacommunities.org/id/london-borough-council/sutton,London Borough of Sutton,07/12/2017,6922361,"1,881.00",Denhan Property Services,28353,"Environment, Housing & Regeneration Directorate",Bed and Breakfast Accommodation,G400,,
http://opendatacommunities.org/id/london-borough-council/sutton,London Borough of Sutton,07/12/2017,6922362,"1,881.00",Denhan Property Services,28353,"Environment, Housing & Regeneration Directorate",Bed and Breakfast Accommodation,G400,,
http://opendatacommunities.org/id/london-borough-council/sutton,London Borough of Sutton,13/10/2017,6922259,956.44,Development Connections & Associates Ltd,26224,Peoples Services Directorate,Training - Course Fees,A520,,
http://opendatacommunities.org/id/london-borough-council/sutton,London Borough of Sutton,22/12/2017,6921360,"1,300.00",D'Gama Ltd,26438,"Environment, Housing & Regeneration Directorate",General Office Expenses,F235,,
http://opendatacommunities.org/id/london-borough-council/sutton,London Borough of Sutton,03/11/2017,40138936,"2,261.84",Direct Care And Support Services,23268,Peoples Services Directorate,Supported Living - Ext Provider,G306,,
http://opendatacommunities.org/id/london-borough-council/sutton,London Borough of Sutton,03/11/2017,40138937,"2,232.44",Direct Care And Support Services,23268,Peoples Services Directorate,Supported Living - Ext Provider,G306,,
http://opendatacommunities.org/id/london-borough-council/sutton,London Borough of Sutton,03/11/2017,40138938,"2,664.48",Direct Care And Support Services,23268,Peoples Services Directorate,Supported Living - Ext Provider,G306,,
http://opendatacommunities.org/id/london-borough-council/sutton,London Borough of Sutton,03/11/2017,40138939,"3,697.12",Direct Care And Support Services,23268,Peoples Services Directorate,Supported Living - Ext Provider,G306,,
http://opendatacommunities.org/id/london-borough-council/sutton,London Borough of Sutton,03/11/2017,40138940,"2,204.16",Direct Care And Support Services,23268,Peoples Services Directorate,Supported Living - Ext Provider,G306,,
http://opendatacommunities.org/id/london-borough-council/sutton,London Borough of Sutton,03/11/2017,40138978,"3,132.80",Direct Care And Support Services,23268,Peoples Services Directorate,Supported Living - Ext Provider,G306,,
http://opendatacommunities.org/id/london-borough-council/sutton,London Borough of Sutton,03/11/2017,40138986,"2,356.31",Direct Care And Support Services,23268,Peoples Services Directorate,Supported Living - Ext Provider,G306,,
http://opendatacommunities.org/id/london-borough-council/sutton,London Borough of Sutton,03/11/2017,40138987,"2,497.98",Direct Care And Support Services,23268,Peoples Services Directorate,Supported Living - Ext Provider,G306,,
http://opendatacommunities.org/id/london-borough-council/sutton,London Borough of Sutton,03/11/2017,40138988,"2,343.60",Direct Care And Support Services,23268,Peoples Services Directorate,Supported Living - Ext Provider,G306,,
http://opendatacommunities.org/id/london-borough-council/sutton,London Borough of Sutton,03/11/2017,40142163,"1,032.64",Direct Care And Support Services,23268,Peoples Services Directorate,Supported Living - Ext Provider,G306,,
http://opendatacommunities.org/id/london-borough-council/sutton,London Borough of Sutton,03/11/2017,40142169,"1,032.64",Direct Care And Support Services,23268,Peoples Services Directorate,Supported Living - Ext Provider,G306,,
http://opendatacommunities.org/id/london-borough-council/sutton,London Borough of Sutton,03/11/2017,40142170,"1,032.64",Direct Care And Support Services,23268,Peoples Services Directorate,Supported Living - Ext Provider,G306,,
http://opendatacommunities.org/id/london-borough-council/sutton,London Borough of Sutton,03/11/2017,40142171,"1,032.64",Direct Care And Support Services,23268,Peoples Services Directorate,Supported Living - Ext Provider,G306,,
http://opendatacommunities.org/id/london-borough-council/sutton,London Borough of Sutton,04/12/2017,40142195,"2,261.84",Direct Care And Support Services,23268,Peoples Services Directorate,Supported Living - Ext Provider,G306,,
http://opendatacommunities.org/id/london-borough-council/sutton,London Borough of Sutton,04/12/2017,40142196,"2,204.16",Direct Care And Support Services,23268,Peoples Services Directorate,Supported Living - Ext Provider,G306,,
http://opendatacommunities.org/id/london-borough-council/sutton,London Borough of Sutton,03/11/2017,40142197,"3,496.00",Direct Care And Support Services,23268,Peoples Services Directorate,Supported Living - Ext Provider,G306,,
http://opendatacommunities.org/id/london-borough-council/sutton,London Borough of Sutton,04/12/2017,40142200,"2,232.44",Direct Care And Support Services,23268,Peoples Services Directorate,Supported Living - Ext Provider,G306,,
http://opendatacommunities.org/id/london-borough-council/sutton,London Borough of Sutton,04/12/2017,40142201,"3,697.12",Direct Care And Support Services,23268,Peoples Services Directorate,Supported Living - Ext Provider,G306,,
http://opendatacommunities.org/id/london-borough-council/sutton,London Borough of Sutton,04/12/2017,40142202,"2,664.48",Direct Care And Support Services,23268,Peoples Services Directorate,Supported Living - Ext Provider,G306,,
http://opendatacommunities.org/id/london-borough-council/sutton,London Borough of Sutton,04/12/2017,40142239,"2,280.30",Direct Care And Support Services,23268,Peoples Services Directorate,Supported Living - Ext Provider,G306,,
http://opendatacommunities.org/id/london-borough-council/sutton,London Borough of Sutton,04/12/2017,40142240,"2,417.40",Direct Care And Support Services,23268,Peoples Services Directorate,Supported Living - Ext Provider,G306,,
http://opendatacommunities.org/id/london-borough-council/sutton,London Borough of Sutton,30/11/2017,40142241,"2,404.20",Direct Care And Support Services,23268,Peoples Services Directorate,Supported Living - Ext Provider,G306,,
http://opendatacommunities.org/id/london-borough-council/sutton,London Borough of Sutton,04/12/2017,40142242,"3,132.80",Direct Care And Support Services,23268,Peoples Services Directorate,Supported Living - Ext Provider,G306,,
http://opendatacommunities.org/id/london-borough-council/sutton,London Borough of Sutton,21/11/2017,40139370,"12,835.80",Direct Care Ltd,28832,Peoples Services Directorate,Residential Care-Children,G330,,
http://opendatacommunities.org/id/london-borough-council/sutton,London Borough of Sutton,05/12/2017,6921353,"1,000.00",Dr Bilikisu A Alatishe,27008,"Environment, Housing & Regeneration Directorate",General Office Expenses,F235,,
http://opendatacommunities.org/id/london-borough-council/sutton,London Borough of Sutton,30/10/2017,6922364,"1,040.00",Dr Danielle Shbero,28728,Peoples Services Directorate,Personal Requisites,F106,,
http://opendatacommunities.org/id/london-borough-council/sutton,London Borough of Sutton,15/10/2017,6921025,"1,430.47",Dr Gbenga Sunday Asigo,26990,Peoples Services Directorate,Fees - Other,F299,,
http://opendatacommunities.org/id/london-borough-council/sutton,London Borough of Sutton,06/12/2017,6921634,"2,021.94",Dr Gbenga Sunday Asigo,26990,Peoples Services Directorate,Fees - Other,F299,,
http://opendatacommunities.org/id/london-borough-council/sutton,London Borough of Sutton,31/10/2017,6921475,"1,425.80",Dr L Spirling,27020,Peoples Services Directorate,Fees - Other,F299,,
http://opendatacommunities.org/id/london-borough-council/sutton,London Borough of Sutton,21/12/2017,6922409,"1,065.65",Dr L Spirling,27020,Peoples Services Directorate,Fees - Other,F299,,
http://opendatacommunities.org/id/london-borough-council/sutton,London Borough of Sutton,01/12/2017,6921102,"2,360.00",Dreamlettings,11391,"Environment, Housing & Regeneration Directorate",General Office Expenses,F235,,
http://opendatacommunities.org/id/london-borough-council/sutton,London Borough of Sutton,29/11/2017,6921014,925.78,DSI Billing Services Ltd,17962,Resources Directorate,Postages - General,F350,,
http://opendatacommunities.org/id/london-borough-council/sutton,London Borough of Sutton,08/12/2017,6921856,804.65,DSI Billing Services Ltd,17962,Resources Directorate,Postages - General,F350,,
http://opendatacommunities.org/id/london-borough-council/sutton,London Borough of Sutton,13/12/2017,6922032,807.32,DSI Billing Services Ltd,17962,Resources Directorate,Postages - General,F350,,
http://opendatacommunities.org/id/london-borough-council/sutton,London Borough of Sutton,13/11/2017,6921249,"1,800.00",Dunfield & Mead Ltd,28055,Peoples Services Directorate,Approved Lodgings,H323,,
http://opendatacommunities.org/id/london-borough-council/sutton,London Borough of Sutton,13/11/2017,6921250,"1,800.00",Dunfield & Mead Ltd,28055,Peoples Services Directorate,Approved Lodgings,H323,,
http://opendatacommunities.org/id/london-borough-council/sutton,London Borough of Sutton,13/11/2017,6921251,"1,800.00",Dunfield & Mead Ltd,28055,Peoples Services Directorate,Approved Lodgings,H323,,
http://opendatacommunities.org/id/london-borough-council/sutton,London Borough of Sutton,13/11/2017,6921252,"2,000.00",Dunfield & Mead Ltd,28055,Peoples Services Directorate,Approved Lodgings,H323,,
http://opendatacommunities.org/id/london-borough-council/sutton,London Borough of Sutton,13/11/2017,6921253,"2,000.00",Dunfield & Mead Ltd,28055,Peoples Services Directorate,Approved Lodgings,H323,,
http://opendatacommunities.org/id/london-borough-council/sutton,London Borough of Sutton,13/11/2017,6921254,"2,000.00",Dunfield & Mead Ltd,28055,Peoples Services Directorate,Approved Lodgings,H323,,
http://opendatacommunities.org/id/london-borough-council/sutton,London Borough of Sutton,13/11/2017,6921255,"1,800.00",Dunfield & Mead Ltd,28055,Peoples Services Directorate,Approved Lodgings,H323,,
http://opendatacommunities.org/id/london-borough-council/sutton,London Borough of Sutton,13/11/2017,6921256,"1,800.00",Dunfield & Mead Ltd,28055,Peoples Services Directorate,Approved Lodgings,H323,,
http://opendatacommunities.org/id/london-borough-council/sutton,London Borough of Sutton,27/11/2017,40139250,"4,248.13",Dunfield & Mead Ltd,28055,Peoples Services Directorate,Approved Lodgings,H323,,
http://opendatacommunities.org/id/london-borough-council/sutton,London Borough of Sutton,27/11/2017,40139251,"3,706.71",Dunfield & Mead Ltd,28055,Peoples Services Directorate,Approved Lodgings,H323,,
http://opendatacommunities.org/id/london-borough-council/sutton,London Borough of Sutton,27/11/2017,40139252,"2,142.85",Dunfield & Mead Ltd,28055,Peoples Services Directorate,Accommodation - Supported Living,H201,,
http://opendatacommunities.org/id/london-borough-council/sutton,London Borough of Sutton,27/11/2017,40139253,"1,928.57",Dunfield & Mead Ltd,28055,Peoples Services Directorate,Accommodation - Supported Living,H201,,
http://opendatacommunities.org/id/london-borough-council/sutton,London Borough of Sutton,06/12/2017,40139481,"2,999.92",Dunheved Lodge,11403,Peoples Services Directorate,Residential Care - Ext Provider,G310,,
http://opendatacommunities.org/id/london-borough-council/sutton,London Borough of Sutton,29/10/2017,6920604,"1,729.00",Dunheved Partnership Ltd,26353,"Environment, Housing & Regeneration Directorate",Bed and Breakfast Accommodation,G400,,
http://opendatacommunities.org/id/london-borough-council/sutton,London Borough of Sutton,12/11/2017,6921750,"2,085.00",Dunheved Partnership Ltd,26353,"Environment, Housing & Regeneration Directorate",Bed and Breakfast Accommodation,G400,,
http://opendatacommunities.org/id/london-borough-council/sutton,London Borough of Sutton,19/11/2017,6921957,"2,023.00",Dunheved Partnership Ltd,26353,"Environment, Housing & Regeneration Directorate",Bed and Breakfast Accommodation,G400,,
http://opendatacommunities.org/id/london-borough-council/sutton,London Borough of Sutton,05/11/2017,6921965,"1,729.00",Dunheved Partnership Ltd,26353,"Environment, Housing & Regeneration Directorate",Bed and Breakfast Accommodation,G400,,
http://opendatacommunities.org/id/london-borough-council/sutton,London Borough of Sutton,26/11/2017,6922019,"1,988.00",Dunheved Partnership Ltd,26353,"Environment, Housing & Regeneration Directorate",Bed and Breakfast Accommodation,G400,,
http://opendatacommunities.org/id/london-borough-council/sutton,London Borough of Sutton,30/11/2017,40139368,"3,890.98",Dynamic Care Ltd,29928,Peoples Services Directorate,Approved Lodgings,H323,,
http://opendatacommunities.org/id/london-borough-council/sutton,London Borough of Sutton,30/11/2017,40139369,"3,355.27",Dynamic Care Ltd,29928,Peoples Services Directorate,Approved Lodgings,H323,,
http://opendatacommunities.org/id/london-borough-council/sutton,London Borough of Sutton,30/11/2017,6921573,"14,066.48",E Homes And Shelters,28378,"Environment, Housing & Regeneration Directorate",Bed and Breakfast Accommodation,G400,,
http://opendatacommunities.org/id/london-borough-council/sutton,London Borough of Sutton,26/11/2017,40136476,"2,940.00",Eager Health TA Care24Seven,29920,Peoples Services Directorate,Home Care,G334,,
http://opendatacommunities.org/id/london-borough-council/sutton,London Borough of Sutton,04/12/2017,40140253,"2,940.00",Eager Health TA Care24Seven,29920,Peoples Services Directorate,Home Care,G334,,
http://opendatacommunities.org/id/london-borough-council/sutton,London Borough of Sutton,11/12/2017,40141652,"2,940.00",Eager Health TA Care24Seven,29920,Peoples Services Directorate,Home Care,G334,,
http://opendatacommunities.org/id/london-borough-council/sutton,London Borough of Sutton,18/12/2017,40144713,"2,940.00",Eager Health TA Care24Seven,29920,Peoples Services Directorate,Home Care,G334,,
http://opendatacommunities.org/id/london-borough-council/sutton,London Borough of Sutton,26/12/2017,40144768,"2,800.01",Eager Health TA Care24Seven,29920,Peoples Services Directorate,Home Care,G334,,
http://opendatacommunities.org/id/london-borough-council/sutton,London Borough of Sutton,12/10/2017,1246786,"16,016.49",Eagle House Junior School,15445,Peoples Services Directorate,Independent Schools,G325,,
http://opendatacommunities.org/id/london-borough-council/sutton,London Borough of Sutton,12/10/2017,1246787,"16,016.49",Eagle House Junior School,15445,Peoples Services Directorate,Independent Schools,G325,,
http://opendatacommunities.org/id/london-borough-council/sutton,London Borough of Sutton,10/10/2017,1246788,"20,640.33",Eagle House Senior School,17549,Peoples Services Directorate,Independent Schools,G325,,
http://opendatacommunities.org/id/london-borough-council/sutton,London Borough of Sutton,10/10/2017,1246789,"17,207.67",Eagle House Senior School,17549,Peoples Services Directorate,Independent Schools,G325,,
http://opendatacommunities.org/id/london-borough-council/sutton,London Borough of Sutton,10/10/2017,1246790,"16,618.33",Eagle House Senior School,17549,Peoples Services Directorate,Independent Schools,G325,,
http://opendatacommunities.org/id/london-borough-council/sutton,London Borough of Sutton,10/10/2017,1246791,"17,690.67",Eagle House Senior School,17549,Peoples Services Directorate,Independent Schools,G325,,
http://opendatacommunities.org/id/london-borough-council/sutton,London Borough of Sutton,10/10/2017,1246792,"16,618.33",Eagle House Senior School,17549,Peoples Services Directorate,Independent Schools,G325,,
http://opendatacommunities.org/id/london-borough-council/sutton,London Borough of Sutton,10/10/2017,1246793,"20,849.67",Eagle House Senior School,17549,Peoples Services Directorate,Independent Schools,G325,,
http://opendatacommunities.org/id/london-borough-council/sutton,London Borough of Sutton,10/10/2017,1246794,"16,618.33",Eagle House Senior School,17549,Peoples Services Directorate,Independent Schools,G325,,
http://opendatacommunities.org/id/london-borough-council/sutton,London Borough of Sutton,10/10/2017,1246795,"16,835.67",Eagle House Senior School,17549,Peoples Services Directorate,Independent Schools,G325,,
http://opendatacommunities.org/id/london-borough-council/sutton,London Borough of Sutton,10/10/2017,1246796,"17,158.00",Eagle House Senior School,17549,Peoples Services Directorate,Independent Schools,G325,,
http://opendatacommunities.org/id/london-borough-council/sutton,London Borough of Sutton,10/10/2017,1246797,"16,618.33",Eagle House Senior School,17549,Peoples Services Directorate,Independent Schools,G325,,
http://opendatacommunities.org/id/london-borough-council/sutton,London Borough of Sutton,10/10/2017,1246798,"16,618.33",Eagle House Senior School,17549,Peoples Services Directorate,Independent Schools,G325,,
http://opendatacommunities.org/id/london-borough-council/sutton,London Borough of Sutton,08/12/2017,1246850,"8,233.33",Eagle House Senior School,17549,Peoples Services Directorate,Independent Schools,G325,,
http://opendatacommunities.org/id/london-borough-council/sutton,London Borough of Sutton,18/12/2017,6922206,624,Earth Anchors Ltd,15290,"Environment, Housing & Regeneration Directorate",Furniture - Purchase,F080,,
http://opendatacommunities.org/id/london-borough-council/sutton,London Borough of Sutton,06/12/2017,40139526,"2,428.57",Eastcroft Nursing Home,11420,Peoples Services Directorate,Nursing Care - Ext Provider,G311,,
http://opendatacommunities.org/id/london-borough-council/sutton,London Borough of Sutton,06/12/2017,40139578,"3,400.00",Eastcroft Nursing Home,11420,Peoples Services Directorate,Nursing Care - Ext Provider,G311,,
http://opendatacommunities.org/id/london-borough-council/sutton,London Borough of Sutton,06/12/2017,40139627,"3,400.00",Eastcroft Nursing Home,11420,Peoples Services Directorate,Nursing Care - Ext Provider,G311,,
http://opendatacommunities.org/id/london-borough-council/sutton,London Borough of Sutton,06/12/2017,40139780,"3,300.00",Eastcroft Nursing Home,11420,Peoples Services Directorate,Nursing Care - Ext Provider,G311,,
http://opendatacommunities.org/id/london-borough-council/sutton,London Borough of Sutton,30/11/2017,6921880,432.4,Ecolocal Services Ltd,11438,Resources Directorate,Courier Post,F355,,
http://opendatacommunities.org/id/london-borough-council/sutton,London Borough of Sutton,22/11/2017,6920978,"-1,081.04",EDF Energy (Seeboard),13999,HRA Directorate,Electricity - Anti Hypothermia Heating,D622,,
http://opendatacommunities.org/id/london-borough-council/sutton,London Borough of Sutton,22/11/2017,6920978,"1,837.72",EDF Energy (Seeboard),13999,HRA Directorate,Electricity - Anti Hypothermia Heating,D622,,
http://opendatacommunities.org/id/london-borough-council/sutton,London Borough of Sutton,22/11/2017,6921045,-443.69,EDF Energy (Seeboard),13999,HRA Directorate,Electricity - Anti Hypothermia Heating,D622,,
http://opendatacommunities.org/id/london-borough-council/sutton,London Borough of Sutton,22/11/2017,6921045,877.95,EDF Energy (Seeboard),13999,HRA Directorate,Electricity - Anti Hypothermia Heating,D622,,
http://opendatacommunities.org/id/london-borough-council/sutton,London Borough of Sutton,22/11/2017,6921046,613.46,EDF Energy (Seeboard),13999,HRA Directorate,Electricity - Anti Hypothermia Heating,D622,,
http://opendatacommunities.org/id/london-borough-council/sutton,London Borough of Sutton,23/11/2017,6921049,"-1,701.01",EDF Energy (Seeboard),13999,HRA Directorate,Electricity - Anti Hypothermia Heating,D622,,
http://opendatacommunities.org/id/london-borough-council/sutton,London Borough of Sutton,23/11/2017,6921049,"1,459.37",EDF Energy (Seeboard),13999,HRA Directorate,Electricity - Anti Hypothermia Heating,D622,,
http://opendatacommunities.org/id/london-borough-council/sutton,London Borough of Sutton,27/11/2017,6921183,-580.59,EDF Energy (Seeboard),13999,HRA Directorate,Electricity - Anti Hypothermia Heating,D622,,
http://opendatacommunities.org/id/london-borough-council/sutton,London Borough of Sutton,27/11/2017,6921183,732.75,EDF Energy (Seeboard),13999,HRA Directorate,Electricity - Anti Hypothermia Heating,D622,,
http://opendatacommunities.org/id/london-borough-council/sutton,London Borough of Sutton,28/11/2017,6921282,"9,078.02",EDF Energy (Seeboard),13999,"Environment, Housing & Regeneration Directorate",Electricity - General,D620,,
http://opendatacommunities.org/id/london-borough-council/sutton,London Borough of Sutton,28/11/2017,6921282,"-7,467.93",EDF Energy (Seeboard),13999,"Environment, Housing & Regeneration Directorate",Electricity - General,D620,,
http://opendatacommunities.org/id/london-borough-council/sutton,London Borough of Sutton,28/11/2017,6921282,"1,406.13",EDF Energy (Seeboard),13999,"Environment, Housing & Regeneration Directorate",Electricity - General,D620,,
http://opendatacommunities.org/id/london-borough-council/sutton,London Borough of Sutton,01/12/2017,6921670,805.77,EDF Energy (Seeboard),13999,"Environment, Housing & Regeneration Directorate",Electricity - General,D620,,
http://opendatacommunities.org/id/london-borough-council/sutton,London Borough of Sutton,01/12/2017,1246777,"11,375.00",Educational Excellence & Wellbeing Ltd,28404,Peoples Services Directorate,Independent Schools,G325,,
http://opendatacommunities.org/id/london-borough-council/sutton,London Borough of Sutton,24/11/2017,6921228,"5,647.36",EE Airtime,24846,Resources Directorate,"Telephones - Mobile, Pagers etc.",F374,,
http://opendatacommunities.org/id/london-borough-council/sutton,London Borough of Sutton,24/11/2017,6921230,519.32,EE Airtime,24846,Resources Directorate,"Telephones - Mobile, Pagers etc.",F374,,
http://opendatacommunities.org/id/london-borough-council/sutton,London Borough of Sutton,24/11/2017,6921231,928.81,EE Airtime,24846,Resources Directorate,"Telephones - Mobile, Pagers etc.",F374,,
http://opendatacommunities.org/id/london-borough-council/sutton,London Borough of Sutton,24/12/2017,6922559,523.54,EE Airtime,24846,Resources Directorate,"Telephones - Mobile, Pagers etc.",F374,,
http://opendatacommunities.org/id/london-borough-council/sutton,London Borough of Sutton,24/12/2017,6922561,960.4,EE Airtime,24846,Resources Directorate,"Telephones - Mobile, Pagers etc.",F374,,
http://opendatacommunities.org/id/london-borough-council/sutton,London Borough of Sutton,24/12/2017,6922562,"4,294.37",EE Airtime,24846,Resources Directorate,"Telephones - Mobile, Pagers etc.",F374,,
http://opendatacommunities.org/id/london-borough-council/sutton,London Borough of Sutton,31/10/2017,6921147,"37,065.28",Effectable,99815,"Environment, Housing & Regeneration Directorate",Grants -Made,Y610,,
http://opendatacommunities.org/id/london-borough-council/sutton,London Borough of Sutton,30/09/2017,6920610,"9,513.57",Eldercare,22163,Peoples Services Directorate,Equipment,H250,,
http://opendatacommunities.org/id/london-borough-council/sutton,London Borough of Sutton,31/10/2017,6920611,"8,507.47",Eldercare,22163,Peoples Services Directorate,Equipment,H250,,
http://opendatacommunities.org/id/london-borough-council/sutton,London Borough of Sutton,31/10/2017,6921070,"1,242.50",Eldercare,22163,Peoples Services Directorate,Agency Services,G431,,
http://opendatacommunities.org/id/london-borough-council/sutton,London Borough of Sutton,31/10/2017,6921071,"5,400.00",Eldercare,22163,Peoples Services Directorate,Agency Services,G431,,
http://opendatacommunities.org/id/london-borough-council/sutton,London Borough of Sutton,31/10/2017,6921072,"13,933.69",Eldercare,22163,HRA Directorate,Supporting People - Alarm Services,H237,,
http://opendatacommunities.org/id/london-borough-council/sutton,London Borough of Sutton,31/10/2017,6921199,"9,430.48",Eldercare,22163,Peoples Services Directorate,Agency Services,G431,,
http://opendatacommunities.org/id/london-borough-council/sutton,London Borough of Sutton,30/11/2017,6921433,"5,400.00",Eldercare,22163,Peoples Services Directorate,Agency Services,G431,,
http://opendatacommunities.org/id/london-borough-council/sutton,London Borough of Sutton,30/11/2017,6921434,"13,484.22",Eldercare,22163,HRA Directorate,Supporting People - Alarm Services,H237,,
http://opendatacommunities.org/id/london-borough-council/sutton,London Borough of Sutton,30/11/2017,6921575,"1,065.00",Eldercare,22163,Peoples Services Directorate,Agency Services,G431,,
http://opendatacommunities.org/id/london-borough-council/sutton,London Borough of Sutton,30/11/2017,6921887,"10,691.38",Eldercare,22163,Peoples Services Directorate,Equipment,H250,,
http://opendatacommunities.org/id/london-borough-council/sutton,London Borough of Sutton,06/12/2017,40139437,"4,484.80",Eleanor Nursing & Social Care Ltd,25134,Peoples Services Directorate,Residential Care - Ext Provider,G310,,
http://opendatacommunities.org/id/london-borough-council/sutton,London Borough of Sutton,30/11/2017,6921431,531.4,Emizon Networks Ltd,26950,Resources Directorate,FM - Planned Maintenance Contract - Mitie,G613,,
http://opendatacommunities.org/id/london-borough-council/sutton,London Borough of Sutton,30/11/2017,6921055,"2,742.00",Emmet Scanlan & Rebecca Rocca,99898,"Environment, Housing & Regeneration Directorate",Depositors,X460,,
http://opendatacommunities.org/id/london-borough-council/sutton,London Borough of Sutton,10/11/2017,6920165,"57,080.00",Encompass,29087,Peoples Services Directorate,Provider Contract Payments,F470,,
http://opendatacommunities.org/id/london-borough-council/sutton,London Borough of Sutton,10/11/2017,6920165,"50,090.00",Encompass,29087,Peoples Services Directorate,Provider Contract Payments,F470,,
http://opendatacommunities.org/id/london-borough-council/sutton,London Borough of Sutton,01/12/2017,6921261,"733,400.00",Encompass,29087,"Environment, Housing & Regeneration Directorate",Housing Contract Fee,G025,,
http://opendatacommunities.org/id/london-borough-council/sutton,London Borough of Sutton,29/11/2017,40137020,"1,208.32",Enviva Paediatric Care/formerlyPNL Nursing Link Ltd (Pnl),28212,Peoples Services Directorate,Provider Contract Payments,F470,,
http://opendatacommunities.org/id/london-borough-council/sutton,London Borough of Sutton,22/11/2017,40137022,953.94,Enviva Paediatric Care/formerlyPNL Nursing Link Ltd (Pnl),28212,Peoples Services Directorate,Provider Contract Payments,F470,,
http://opendatacommunities.org/id/london-borough-council/sutton,London Borough of Sutton,07/12/2017,40139969,890.34,Enviva Paediatric Care/formerlyPNL Nursing Link Ltd (Pnl),28212,Peoples Services Directorate,Provider Contract Payments,F470,,
http://opendatacommunities.org/id/london-borough-council/sutton,London Borough of Sutton,13/12/2017,40144670,"1,053.88",Enviva Paediatric Care/formerlyPNL Nursing Link Ltd (Pnl),28212,Peoples Services Directorate,Provider Contract Payments,F470,,
http://opendatacommunities.org/id/london-borough-council/sutton,London Borough of Sutton,06/12/2017,40139564,"1,724.00",Eothen Homes Ltd,11539,Peoples Services Directorate,Residential Care - Ext Provider,G310,,
http://opendatacommunities.org/id/london-borough-council/sutton,London Borough of Sutton,06/12/2017,40139608,"1,724.16",Eothen Homes Ltd,11539,Peoples Services Directorate,Residential Care - Ext Provider,G310,,
http://opendatacommunities.org/id/london-borough-council/sutton,London Borough of Sutton,06/12/2017,40139803,"1,724.16",Eothen Homes Ltd,11539,Peoples Services Directorate,Residential Care - Ext Provider,G310,,
http://opendatacommunities.org/id/london-borough-council/sutton,London Borough of Sutton,06/12/2017,40139804,"2,948.00",Eothen Homes Ltd,11539,Peoples Services Directorate,Residential Care - Ext Provider,G310,,
http://opendatacommunities.org/id/london-borough-council/sutton,London Borough of Sutton,09/11/2017,6919979,492,ESRI (UK) Ltd,15407,Chief Executive's Directorate,Fees - Other,F299,,
http://opendatacommunities.org/id/london-borough-council/sutton,London Borough of Sutton,05/11/2017,40139314,"3,954.94",Ethelbert Specialist Homes Ltd,11560,Peoples Services Directorate,Foster Parents,G326,,
http://opendatacommunities.org/id/london-borough-council/sutton,London Borough of Sutton,05/11/2017,6921458,"3,443.00",Euro Hotels (Croydon Court) Ltd,21414,"Environment, Housing & Regeneration Directorate",Bed and Breakfast Accommodation,G400,,
http://opendatacommunities.org/id/london-borough-council/sutton,London Borough of Sutton,12/11/2017,6921687,"3,024.00",Euro Hotels (Croydon Court) Ltd,21414,"Environment, Housing & Regeneration Directorate",Bed and Breakfast Accommodation,G400,,
http://opendatacommunities.org/id/london-borough-council/sutton,London Borough of Sutton,19/11/2017,6921879,"2,877.00",Euro Hotels (Croydon Court) Ltd,21414,"Environment, Housing & Regeneration Directorate",Bed and Breakfast Accommodation,G400,,
http://opendatacommunities.org/id/london-borough-council/sutton,London Borough of Sutton,26/11/2017,6921947,"2,681.00",Euro Hotels (Croydon Court) Ltd,21414,"Environment, Housing & Regeneration Directorate",Bed and Breakfast Accommodation,G400,,
http://opendatacommunities.org/id/london-borough-council/sutton,London Borough of Sutton,10/12/2017,6922502,"2,541.00",Euro Hotels (Croydon Court) Ltd,21414,"Environment, Housing & Regeneration Directorate",Bed and Breakfast Accommodation,G400,,
http://opendatacommunities.org/id/london-borough-council/sutton,London Borough of Sutton,03/12/2017,6922511,"2,681.00",Euro Hotels (Croydon Court) Ltd,21414,"Environment, Housing & Regeneration Directorate",Bed and Breakfast Accommodation,G400,,
http://opendatacommunities.org/id/london-borough-council/sutton,London Borough of Sutton,17/12/2017,6922522,"2,681.00",Euro Hotels (Croydon Court) Ltd,21414,"Environment, Housing & Regeneration Directorate",Bed and Breakfast Accommodation,G400,,
http://opendatacommunities.org/id/london-borough-council/sutton,London Borough of Sutton,01/10/2017,6922484,"1,490.00",Euro Hotels (Gilroy Court) Ltd,25822,"Environment, Housing & Regeneration Directorate",Bed and Breakfast Accommodation,G400,,
http://opendatacommunities.org/id/london-borough-council/sutton,London Borough of Sutton,08/10/2017,6922498,"1,638.00",Euro Hotels (Gilroy Court) Ltd,25822,"Environment, Housing & Regeneration Directorate",Bed and Breakfast Accommodation,G400,,
http://opendatacommunities.org/id/london-borough-council/sutton,London Borough of Sutton,15/10/2017,6922500,"1,883.00",Euro Hotels (Gilroy Court) Ltd,25822,"Environment, Housing & Regeneration Directorate",Bed and Breakfast Accommodation,G400,,
http://opendatacommunities.org/id/london-borough-council/sutton,London Borough of Sutton,22/10/2017,6922501,"2,628.00",Euro Hotels (Gilroy Court) Ltd,25822,"Environment, Housing & Regeneration Directorate",Bed and Breakfast Accommodation,G400,,
http://opendatacommunities.org/id/london-borough-council/sutton,London Borough of Sutton,26/11/2017,6921300,595,Euro Hotels (Thornton Heath) Ltd,10030,"Environment, Housing & Regeneration Directorate",Bed and Breakfast Accommodation,G400,,
http://opendatacommunities.org/id/london-borough-council/sutton,London Borough of Sutton,26/11/2017,6921427,"4,477.20",Euro Hotels (Thornton Heath) Ltd,10030,"Environment, Housing & Regeneration Directorate",Bed and Breakfast Accommodation,G400,,
http://opendatacommunities.org/id/london-borough-council/sutton,London Borough of Sutton,05/11/2017,6921752,"3,052.00",Euro Hotels (Thornton Heath) Ltd,10030,"Environment, Housing & Regeneration Directorate",Bed and Breakfast Accommodation,G400,,
http://opendatacommunities.org/id/london-borough-council/sutton,London Borough of Sutton,12/11/2017,6921878,"3,662.40",Euro Hotels (Thornton Heath) Ltd,10030,"Environment, Housing & Regeneration Directorate",Bed and Breakfast Accommodation,G400,,
http://opendatacommunities.org/id/london-borough-council/sutton,London Borough of Sutton,19/11/2017,6922101,"3,530.00",Euro Hotels (Thornton Heath) Ltd,10030,"Environment, Housing & Regeneration Directorate",Bed and Breakfast Accommodation,G400,,
http://opendatacommunities.org/id/london-borough-council/sutton,London Borough of Sutton,19/11/2017,6922102,595,Euro Hotels (Thornton Heath) Ltd,10030,"Environment, Housing & Regeneration Directorate",Bed and Breakfast Accommodation,G400,,
http://opendatacommunities.org/id/london-borough-council/sutton,London Borough of Sutton,11/12/2017,1247057,"6,666.66",Everyday Arts Ltd ( t/a The Green Room School),29110,Peoples Services Directorate,Independent Schools,G325,,
http://opendatacommunities.org/id/london-borough-council/sutton,London Borough of Sutton,31/08/2017,6921936,975,Experian Limited,11588,"Environment, Housing & Regeneration Directorate",General Office Expenses,F235,,
http://opendatacommunities.org/id/london-borough-council/sutton,London Borough of Sutton,30/11/2017,6921373,750,F L Beadle & Sons Ltd,97197,"Environment, Housing & Regeneration Directorate",Other,Y450,,
http://opendatacommunities.org/id/london-borough-council/sutton,London Borough of Sutton,30/11/2017,6921374,425,F L Beadle & Sons Ltd,97197,"Environment, Housing & Regeneration Directorate",Other,Y450,,
http://opendatacommunities.org/id/london-borough-council/sutton,London Borough of Sutton,30/11/2017,6921375,"4,188.10",F L Beadle & Sons Ltd,97197,"Environment, Housing & Regeneration Directorate",Other,Y450,,
http://opendatacommunities.org/id/london-borough-council/sutton,London Borough of Sutton,05/12/2017,6921338,"5,000.00",F M Conway Limited,97060,"Environment, Housing & Regeneration Directorate",Road Markings,D523,,
http://opendatacommunities.org/id/london-borough-council/sutton,London Borough of Sutton,13/12/2017,6922132,"9,759.94",F M Conway Limited,97060,"Environment, Housing & Regeneration Directorate",Roads & Sewers Etc-Main Contract,Y300,,
http://opendatacommunities.org/id/london-borough-council/sutton,London Borough of Sutton,18/10/2017,40139267,"13,781.76",Fairport Care Services Ltd,29873,Peoples Services Directorate,Residential Care-Children,G330,,
http://opendatacommunities.org/id/london-borough-council/sutton,London Borough of Sutton,30/11/2017,6921301,500,Family Action Enterprises Ltd,29710,Peoples Services Directorate,Training - Course Fees,A520,,
http://opendatacommunities.org/id/london-borough-council/sutton,London Borough of Sutton,30/11/2017,6922024,695,Family Action Enterprises Ltd,29710,Peoples Services Directorate,Training - Course Fees,A520,,
http://opendatacommunities.org/id/london-borough-council/sutton,London Borough of Sutton,30/11/2017,40139382,"5,571.42",Family First Fostering,27926,Peoples Services Directorate,Foster Parents,G326,,
http://opendatacommunities.org/id/london-borough-council/sutton,London Borough of Sutton,21/12/2017,1246924,"25,916.67",Family Mosaic Housing,21012,"Environment, Housing & Regeneration Directorate",Supporting People - Mental Health Services,H243,,
http://opendatacommunities.org/id/london-borough-council/sutton,London Borough of Sutton,21/12/2017,1246925,"18,833.33",Family Mosaic Housing,21012,"Environment, Housing & Regeneration Directorate",Supporting People - Generic Services,H241,,
http://opendatacommunities.org/id/london-borough-council/sutton,London Borough of Sutton,06/12/2017,40139478,"2,400.00",Family Star Ltd,19653,Peoples Services Directorate,Nursing Care - Ext Provider,G311,,
http://opendatacommunities.org/id/london-borough-council/sutton,London Borough of Sutton,06/12/2017,40139635,"3,400.00",Family Star Ltd,19653,Peoples Services Directorate,Nursing Care - Ext Provider,G311,,
http://opendatacommunities.org/id/london-borough-council/sutton,London Borough of Sutton,01/12/2017,6922488,"2,607.00",Fern Court London Limited,26961,"Environment, Housing & Regeneration Directorate",Bed and Breakfast Accommodation,G400,,
http://opendatacommunities.org/id/london-borough-council/sutton,London Borough of Sutton,01/12/2017,6922523,"5,054.00",Fern Court London Limited,26961,"Environment, Housing & Regeneration Directorate",Bed and Breakfast Accommodation,G400,,
http://opendatacommunities.org/id/london-borough-council/sutton,London Borough of Sutton,01/11/2017,6921505,648,Fierce Neutral Ltd,16535,"Environment, Housing & Regeneration Directorate",Bed and Breakfast Accommodation,G400,,
http://opendatacommunities.org/id/london-borough-council/sutton,London Borough of Sutton,01/11/2017,6921509,616,Fierce Neutral Ltd,16535,"Environment, Housing & Regeneration Directorate",Bed and Breakfast Accommodation,G400,,
http://opendatacommunities.org/id/london-borough-council/sutton,London Borough of Sutton,01/11/2017,6921511,720,Fierce Neutral Ltd,16535,"Environment, Housing & Regeneration Directorate",Bed and Breakfast Accommodation,G400,,
http://opendatacommunities.org/id/london-borough-council/sutton,London Borough of Sutton,01/11/2017,6921512,420,Fierce Neutral Ltd,16535,"Environment, Housing & Regeneration Directorate",Bed and Breakfast Accommodation,G400,,
http://opendatacommunities.org/id/london-borough-council/sutton,London Borough of Sutton,01/11/2017,6921513,"1,023.00",Fierce Neutral Ltd,16535,"Environment, Housing & Regeneration Directorate",Bed and Breakfast Accommodation,G400,,
http://opendatacommunities.org/id/london-borough-council/sutton,London Borough of Sutton,01/11/2017,6921514,"1,147.00",Fierce Neutral Ltd,16535,"Environment, Housing & Regeneration Directorate",Bed and Breakfast Accommodation,G400,,
http://opendatacommunities.org/id/london-borough-council/sutton,London Borough of Sutton,01/11/2017,6921515,"1,147.00",Fierce Neutral Ltd,16535,"Environment, Housing & Regeneration Directorate",Bed and Breakfast Accommodation,G400,,
http://opendatacommunities.org/id/london-borough-council/sutton,London Borough of Sutton,01/11/2017,6921516,999,Fierce Neutral Ltd,16535,"Environment, Housing & Regeneration Directorate",Bed and Breakfast Accommodation,G400,,
http://opendatacommunities.org/id/london-borough-council/sutton,London Borough of Sutton,01/11/2017,6921517,"1,147.00",Fierce Neutral Ltd,16535,"Environment, Housing & Regeneration Directorate",Bed and Breakfast Accommodation,G400,,
http://opendatacommunities.org/id/london-borough-council/sutton,London Borough of Sutton,01/11/2017,6921518,960,Fierce Neutral Ltd,16535,"Environment, Housing & Regeneration Directorate",Bed and Breakfast Accommodation,G400,,
http://opendatacommunities.org/id/london-borough-council/sutton,London Borough of Sutton,01/11/2017,6921519,868,Fierce Neutral Ltd,16535,"Environment, Housing & Regeneration Directorate",Bed and Breakfast Accommodation,G400,,
